Workbook

Sheet original
A1: WAVELENGTH | B1: T% | C1: T% | D1: T% | E1: T% | F1: T% | G1: T% | H1: T% | I1: T% | J1: T% | K1: T% | L1: T% | M1: T%
A2: 1/CM | B2: FE3O4 NP | C2: GO | D2: FE-GO | E2: LEVODOPA | F2: SA-LS | G2: SA-LS-LD | H2: SA-LS-FE | I2: SA-LS-FE-LD | J2: SA-LS-GO | K2: SA-LS-GO-LD | L2: SA-LS-FE-GO | M2: SA-LS-FE-GO-LD
A3: 399.824163 | B3: 3.402057 | C3: 81.688061 | D3: 27.118572 | E3: 79.811707 | F3: 63.023733 | G3: 52.254376 | H3: 50.176774 | I3: 39.554835 | J3: 31.328784 | K3: 39.478299 | L3: 56.926942 | M3: 38.058841
A4: 401.252106 | B4: 3.298871 | C4: 86.714362 | D4: 28.650192 | E4: 87.756139 | F4: 63.76752 | G4: 58.508639 | H4: 50.502057 | I4: 46.865773 | J4: 32.275996 | K4: 38.83301 | L4: 58.09114 | M4: 48.045155
A5: 402.68005 | B5: 3.459323 | C5: 91.774684 | D5: 29.903648 | E5: 92.656494 | F5: 64.438973 | G5: 62.958857 | H5: 50.059417 | I5: 50.744847 | J5: 33.047194 | K5: 38.3629 | L5: 59.726562 | M5: 54.455034
A6: 404.107993 | B6: 3.5494 | C6: 91.667372 | D6: 29.688431 | E6: 92.388527 | F6: 65.025689 | G6: 62.925721 | H6: 49.877046 | I6: 51.386152 | J6: 32.474715 | K6: 38.103548 | L6: 58.903673 | M6: 54.581046
A7: 405.535937 | B7: 3.472209 | C7: 92.122539 | D7: 30.190348 | E7: 92.458733 | F7: 65.525454 | G7: 63.558267 | H7: 49.770878 | I7: 52.366222 | J7: 32.893902 | K7: 38.100382 | L7: 58.84471 | M7: 54.920897
A8: 406.96388 | B8: 3.696794 | C8: 94.025528 | D8: 30.433625 | E8: 93.78237 | F8: 65.912678 | G8: 64.411122 | H8: 49.384525 | I8: 52.631993 | J8: 32.793045 | K8: 38.316128 | L8: 59.623093 | M8: 56.034363
A9: 408.391824 | B9: 3.779548 | C9: 92.107075 | D9: 29.914948 | E9: 93.442835 | F9: 66.166479 | G9: 62.65917 | H9: 49.757544 | I9: 51.498807 | J9: 32.308602 | K9: 38.155755 | L9: 58.778049 | M9: 54.970846
A10: 409.819767 | B10: 3.71445 | C10: 92.504718 | D10: 30.311606 | E10: 93.784032 | F10: 66.283953 | G10: 62.4524 | H10: 49.965729 | I10: 51.740744 | J10: 32.636167 | K10: 37.979439 | L10: 59.019943 | M10: 55.344676
A11: 411.247711 | B11: 3.887496 | C11: 93.258557 | D11: 30.190182 | E11: 93.669124 | F11: 66.27316 | G11: 62.801333 | H11: 49.476455 | I11: 51.6695 | J11: 32.067579 | K11: 37.987731 | L11: 59.269207 | M11: 55.584576
A12: 412.675654 | B12: 3.901207 | C12: 91.86001 | D12: 30.015209 | E12: 92.811851 | F12: 66.143707 | G12: 62.863568 | H12: 49.317096 | I12: 51.151942 | J12: 31.861354 | K12: 37.79953 | L12: 58.833515 | M12: 54.729656
A13: 414.103597 | B13: 3.844948 | C13: 93.115956 | D13: 30.517135 | E13: 93.205081 | F13: 65.898795 | G13: 63.961034 | H13: 48.984221 | I13: 51.726003 | J13: 32.112282 | K13: 37.693352 | L13: 59.30969 | M13: 55.268923
A14: 415.531541 | B14: 3.901362 | C14: 92.019283 | D14: 29.942358 | E14: 91.732255 | F14: 65.560863 | G14: 62.166912 | H14: 48.834236 | I14: 50.568811 | J14: 31.519381 | K14: 37.607345 | L14: 58.799816 | M14: 53.427747
A15: 416.959484 | B15: 3.862229 | C15: 86.259858 | D15: 28.566752 | E15: 85.736726 | F15: 65.174187 | G15: 56.58808 | H15: 49.684897 | I15: 44.992595 | J15: 31.192162 | K15: 37.409759 | L15: 57.248135 | M15: 45.806532
A16: 418.387428 | B16: 3.910348 | C16: 78.859911 | D16: 26.59908 | E16: 73.985494 | F16: 64.779999 | G16: 48.286318 | H16: 50.904458 | I16: 34.446025 | J16: 30.133108 | K16: 37.260949 | L16: 54.057379 | M16: 32.372599
A17: 419.815371 | B17: 3.935599 | C17: 83.035186 | D17: 27.833688 | E17: 79.92816 | F17: 64.506716 | G17: 52.310642 | H17: 50.246154 | I17: 39.695842 | J17: 29.713659 | K17: 36.742759 | L17: 53.993196 | M17: 38.592454
A18: 421.243315 | B18: 3.903377 | C18: 88.817812 | D18: 29.603834 | E18: 87.569479 | F18: 64.419858 | G18: 58.185487 | H18: 49.674465 | I18: 46.689395 | J18: 30.652029 | K18: 36.493902 | L18: 57.077327 | M18: 47.543732
A19: 422.671258 | B19: 3.968455 | C19: 88.786786 | D19: 29.398304 | E19: 87.864735 | F19: 64.494162 | G19: 58.364366 | H19: 49.470187 | I19: 46.415819 | J19: 30.359957 | K19: 36.580318 | L19: 57.680998 | M19: 47.733188
A20: 424.099202 | B20: 3.94813 | C20: 87.447505 | D20: 29.254651 | E20: 86.930613 | F20: 64.686313 | G20: 57.757685 | H20: 49.221849 | I20: 45.831819 | J20: 30.307808 | K20: 36.495291 | L20: 56.928674 | M20: 46.809014
A21: 425.527145 | B21: 3.99803 | C21: 90.050252 | D21: 30.019822 | E21: 88.947636 | F21: 64.998001 | G21: 59.496401 | H21: 49.203822 | I21: 47.839248 | J21: 31.032245 | K21: 36.242644 | L21: 57.790316 | M21: 49.503294
A22: 426.955088 | B22: 4.051373 | C22: 92.37839 | D22: 30.28938 | E22: 91.701844 | F22: 65.427639 | G22: 61.183091 | H22: 49.324591 | I22: 50.008869 | J22: 31.175022 | K22: 36.163612 | L22: 58.366922 | M22: 52.967953
A23: 428.383032 | B23: 3.941007 | C23: 93.44912 | D23: 30.671042 | E23: 93.332905 | F23: 65.940032 | G23: 62.411962 | H23: 49.191751 | I23: 51.595434 | J23: 31.373847 | K23: 36.123456 | L23: 58.564458 | M23: 54.990133
A24: 429.810975 | B24: 3.989846 | C24: 93.917926 | D24: 30.899723 | E24: 92.861859 | F24: 66.494517 | G24: 62.40359 | H24: 49.033149 | I24: 51.27463 | J24: 31.160873 | K24: 35.986975 | L24: 58.776232 | M24: 54.449521
A25: 431.238919 | B25: 4.102672 | C25: 92.940644 | D25: 30.646076 | E25: 92.016752 | F25: 67.058856 | G25: 61.500546 | H25: 49.155647 | I25: 50.366872 | J25: 30.632589 | K25: 35.758419 | L25: 58.305597 | M25: 53.39851
A26: 432.666862 | B26: 4.080409 | C26: 93.221763 | D26: 30.753386 | E26: 92.373917 | F26: 67.590662 | G26: 61.671866 | H26: 49.237991 | I26: 50.81608 | J26: 30.898246 | K26: 35.558815 | L26: 58.455516 | M26: 53.853835
A27: 434.094806 | B27: 4.076418 | C27: 92.686657 | D27: 30.386892 | E27: 90.763097 | F27: 68.038781 | G27: 60.467404 | H27: 49.235826 | I27: 49.646325 | J27: 30.695818 | K27: 35.418326 | L27: 58.365782 | M27: 52.015043
A28: 435.522749 | B28: 4.012289 | C28: 90.590429 | D28: 29.960698 | E28: 88.623292 | F28: 68.365987 | G28: 58.718485 | H28: 49.125041 | I28: 47.650224 | J28: 30.245452 | K28: 35.295158 | L28: 57.480318 | M28: 49.219441
A29: 436.950692 | B29: 4.043009 | C29: 92.081163 | D29: 30.59956 | E29: 90.512777 | F29: 68.584589 | G29: 60.164416 | H29: 48.781322 | I29: 48.640053 | J29: 30.653786 | K29: 35.228974 | L29: 57.783936 | M29: 51.088609
A30: 438.378636 | B30: 4.203843 | C30: 93.906596 | D30: 30.961224 | E30: 92.740612 | F30: 68.694013 | G30: 61.718339 | H30: 48.806035 | I30: 50.527156 | J30: 30.841372 | K30: 35.143452 | L30: 58.163003 | M30: 54.074292
A31: 439.806579 | B31: 4.213089 | C31: 93.551821 | D31: 31.024859 | E31: 92.724538 | F31: 68.693871 | G31: 61.856652 | H31: 49.044082 | I31: 50.896111 | J31: 30.880784 | K31: 35.1353 | L31: 58.0208 | M31: 54.099848
A32: 441.234523 | B32: 4.269092 | C32: 92.849585 | D32: 30.958895 | E32: 90.979953 | F32: 68.607779 | G32: 61.054136 | H32: 49.034619 | I32: 49.212213 | J32: 30.751118 | K32: 35.284915 | L32: 57.832525 | M32: 51.43946
A33: 442.662466 | B33: 4.386625 | C33: 90.979343 | D33: 30.502053 | E33: 88.590164 | F33: 68.465561 | G33: 59.220194 | H33: 49.076135 | I33: 47.078437 | J33: 30.282026 | K33: 35.263346 | L33: 57.159164 | M33: 48.691775
A34: 444.09041 | B34: 4.402851 | C34: 90.943692 | D34: 30.868012 | E34: 89.020313 | F34: 68.281871 | G34: 59.441189 | H34: 49.194383 | I34: 47.704235 | J34: 30.595188 | K34: 35.190145 | L34: 57.615828 | M34: 49.755895
A35: 445.518353 | B35: 4.530351 | C35: 91.460558 | D35: 31.058603 | E35: 89.300472 | F35: 68.07666 | G35: 59.514243 | H35: 49.323333 | I35: 47.856232 | J35: 30.652991 | K35: 35.285495 | L35: 58.232143 | M35: 50.178752
A36: 446.946297 | B36: 4.553946 | C36: 90.28215 | D36: 30.793408 | E36: 88.581884 | F36: 67.872157 | G36: 58.593439 | H36: 49.565197 | I36: 47.336651 | J36: 30.230839 | K36: 35.23 | L36: 57.724278 | M36: 49.115052
A37: 448.37424 | B37: 4.555201 | C37: 92.4696 | D37: 31.589642 | E37: 91.5902 | F37: 67.674012 | G37: 60.976025 | H37: 49.488075 | I37: 49.889406 | J37: 30.475919 | K37: 35.215371 | L37: 58.246491 | M37: 52.327114
A38: 449.802183 | B38: 4.787302 | C38: 94.346699 | D38: 32.051301 | E38: 93.505059 | F38: 67.507595 | G38: 62.650412 | H38: 49.204984 | I38: 51.40237 | J38: 30.604614 | K38: 35.278597 | L38: 58.717787 | M38: 54.717602
A39: 451.230127 | B39: 4.843343 | C39: 91.826635 | D39: 31.644716 | E39: 90.49966 | F39: 67.413242 | G39: 60.299955 | H39: 48.991384 | I39: 48.949297 | J39: 30.464604 | K39: 35.080437 | L39: 58.02308 | M39: 51.29673
A40: 452.65807 | B40: 4.863829 | C40: 90.974088 | D40: 31.806225 | E40: 88.802146 | F40: 67.389904 | G40: 58.829809 | H40: 48.758245 | I40: 47.510111 | J40: 30.316865 | K40: 34.847717 | L40: 57.908791 | M40: 49.166368
A41: 454.086014 | B41: 5.107643 | C41: 92.668011 | D41: 32.259139 | E41: 91.007033 | F41: 67.377845 | G41: 60.324232 | H41: 48.761373 | I41: 49.620782 | J41: 29.914707 | K41: 34.698521 | L41: 58.153898 | M41: 51.849241
A42: 455.513957 | B42: 5.225476 | C42: 92.451166 | D42: 32.213331 | E42: 90.830204 | F42: 67.389812 | G42: 60.645653 | H42: 48.866148 | I42: 49.787512 | J42: 29.755181 | K42: 34.462393 | L42: 57.939519 | M42: 51.421803
A43: 456.941901 | B43: 5.370467 | C43: 90.600047 | D43: 31.646695 | E43: 87.763332 | F43: 67.445844 | G43: 58.313297 | H43: 48.903512 | I43: 46.358654 | J43: 29.50823 | K43: 34.279802 | L43: 57.239784 | M43: 46.6952
A44: 458.369844 | B44: 5.534286 | C44: 90.137113 | D44: 31.824878 | E44: 88.114519 | F44: 67.535421 | G44: 57.647552 | H44: 48.738013 | I44: 46.026664 | J44: 29.284036 | K44: 34.04988 | L44: 56.891904 | M44: 46.923705
A45: 459.797788 | B45: 5.57774 | C45: 92.378233 | D45: 32.909005 | E45: 91.180667 | F45: 67.650073 | G45: 60.11608 | H45: 48.237384 | I45: 48.974325 | J45: 29.486851 | K45: 33.80161 | L45: 57.826474 | M45: 51.212163
A46: 461.225731 | B46: 5.793989 | C46: 92.890744 | D46: 33.120216 | E46: 91.488109 | F46: 67.784815 | G46: 60.384515 | H46: 47.960738 | I46: 49.168646 | J46: 29.324582 | K46: 33.746394 | L46: 58.003017 | M46: 51.75526
A47: 462.653674 | B47: 6.01696 | C47: 92.712904 | D47: 33.416443 | E47: 91.563086 | F47: 67.923391 | G47: 60.247591 | H47: 48.013927 | I47: 49.551259 | J47: 29.306124 | K47: 33.7016 | L47: 57.837295 | M47: 52.072356
A48: 464.081618 | B48: 6.217574 | C48: 94.978491 | D48: 34.375436 | E48: 93.649469 | F48: 68.046094 | G48: 62.246862 | H48: 47.917056 | I48: 51.778127 | J48: 29.363553 | K48: 33.639846 | L48: 58.527021 | M48: 54.819227
A49: 465.509561 | B49: 6.437021 | C49: 94.752834 | D49: 34.276844 | E49: 93.341422 | F49: 68.145458 | G49: 61.901839 | H49: 47.76445 | I49: 51.283219 | J49: 28.886332 | K49: 33.581617 | L49: 58.231034 | M49: 54.383397
A50: 466.937505 | B50: 6.496584 | C50: 91.777986 | D50: 33.809881 | E50: 89.933393 | F50: 68.224101 | G50: 58.989121 | H50: 47.576694 | I50: 48.244955 | J50: 28.618199 | K50: 33.421773 | L50: 57.237809 | M50: 50.274226
A51: 468.365448 | B51: 6.676858 | C51: 91.542836 | D51: 34.227262 | E51: 88.816209 | F51: 68.283919 | G51: 58.251084 | H51: 47.423068 | I51: 47.357064 | J51: 28.471874 | K51: 33.268372 | L51: 56.949239 | M51: 48.931407
A52: 469.793392 | B52: 6.897805 | C52: 92.473526 | D52: 34.624814 | E52: 90.084591 | F52: 68.346702 | G52: 59.392504 | H52: 47.509447 | I52: 48.431837 | J52: 28.280229 | K52: 33.15299 | L52: 56.682436 | M52: 50.277278
A53: 471.221335 | B53: 6.926453 | C53: 91.899677 | D53: 34.587792 | E53: 89.259627 | F53: 68.438517 | G53: 58.852323 | H53: 47.49411 | I53: 47.370198 | J53: 28.232426 | K53: 33.004159 | L53: 56.368371 | M53: 48.816623
A54: 472.649278 | B54: 7.099684 | C54: 91.149329 | D54: 34.552503 | E54: 88.131913 | F54: 68.562804 | G54: 57.202912 | H54: 47.446105 | I54: 45.610169 | J54: 27.772884 | K54: 32.796758 | L54: 56.245339 | M54: 46.944158
A55: 474.077222 | B55: 7.297611 | C55: 92.522716 | D55: 35.280623 | E55: 90.709083 | F55: 68.722519 | G55: 58.809228 | H55: 47.411106 | I55: 48.009371 | J55: 27.764006 | K55: 32.524946 | L55: 56.615702 | M55: 50.301276
A56: 475.505165 | B56: 7.385651 | C56: 94.405322 | D56: 36.007069 | E56: 92.349934 | F56: 68.922505 | G56: 60.783332 | H56: 47.142742 | I56: 50.028802 | J56: 28.015003 | K56: 32.383858 | L56: 57.079998 | M56: 52.72371
A57: 476.933109 | B57: 7.514138 | C57: 94.331222 | D57: 36.00101 | E57: 91.981938 | F57: 69.12914 | G57: 60.434741 | H57: 47.13508 | I57: 49.738586 | J57: 27.574342 | K57: 32.349472 | L57: 56.925961 | M57: 52.240666
A58: 478.361052 | B58: 7.547347 | C58: 94.288359 | D58: 36.24938 | E58: 92.656089 | F58: 69.307403 | G58: 60.558245 | H58: 47.269665 | I58: 50.294336 | J58: 27.318651 | K58: 32.287667 | L58: 57.048409 | M58: 52.943822
A59: 479.788996 | B59: 7.609352 | C59: 95.020788 | D59: 36.657727 | E59: 93.004 | F59: 69.450821 | G59: 60.846285 | H59: 47.031331 | I59: 50.554996 | J59: 27.315742 | K59: 32.228992 | L59: 57.192408 | M59: 53.401126
A60: 481.216939 | B60: 7.717308 | C60: 94.117692 | D60: 36.51223 | E60: 91.769065 | F60: 69.550647 | G60: 59.649232 | H60: 46.915071 | I60: 49.369034 | J60: 27.12633 | K60: 32.011774 | L60: 56.625572 | M60: 51.917492
A61: 482.644883 | B61: 7.754219 | C61: 93.819925 | D61: 36.656708 | E61: 91.538201 | F61: 69.591324 | G61: 59.486231 | H61: 47.028236 | I61: 49.069884 | J61: 27.206827 | K61: 31.718222 | L61: 56.687763 | M61: 51.348159
A62: 484.072826 | B62: 7.893762 | C62: 94.022724 | D62: 36.765686 | E62: 91.407547 | F62: 69.592327 | G62: 59.344424 | H62: 47.034949 | I62: 48.570526 | J62: 27.118255 | K62: 31.627602 | L62: 56.663092 | M62: 50.632386
A63: 485.500769 | B63: 8.031326 | C63: 93.136868 | D63: 36.682886 | E63: 90.941918 | F63: 69.591259 | G63: 58.616056 | H63: 46.946601 | I63: 48.010376 | J63: 27.00038 | K63: 31.498461 | L63: 56.112272 | M63: 49.944921
A64: 486.928713 | B64: 8.121221 | C64: 94.06713 | D64: 37.215112 | E64: 92.161475 | F64: 69.593009 | G64: 59.725674 | H64: 46.783303 | I64: 49.29044 | J64: 27.161391 | K64: 31.315161 | L64: 56.59792 | M64: 51.696858
A65: 488.356656 | B65: 8.225129 | C65: 94.941021 | D65: 37.535662 | E65: 92.892914 | F65: 69.590284 | G65: 60.399101 | H65: 46.795948 | I65: 50.108045 | J65: 27.08744 | K65: 31.214158 | L65: 56.9577 | M65: 52.815572
A66: 489.7846 | B66: 8.191527 | C66: 93.733267 | D66: 37.401343 | E66: 91.638453 | F66: 69.593666 | G66: 59.225373 | H66: 46.921201 | I66: 49.063494 | J66: 27.067936 | K66: 31.027538 | L66: 56.654429 | M66: 51.368194
A67: 491.212543 | B67: 8.217055 | C67: 92.48856 | D67: 37.187145 | E67: 89.724719 | F67: 69.597834 | G67: 57.61764 | H67: 46.847387 | I67: 47.236024 | J67: 26.929624 | K67: 30.896453 | L67: 56.35255 | M67: 49.047364
A68: 492.640487 | B68: 8.313671 | C68: 92.062714 | D68: 37.068652 | E68: 89.224458 | F68: 69.57418 | G68: 57.10096 | H68: 46.784276 | I68: 46.771013 | J68: 26.671982 | K68: 30.831589 | L68: 55.958703 | M68: 48.46021
A69: 494.06843 | B69: 8.27048 | C69: 93.584061 | D69: 37.71955 | E69: 91.283547 | F69: 69.516378 | G69: 58.920855 | H69: 46.759158 | I69: 48.739484 | J69: 27.054525 | K69: 30.663667 | L69: 56.334804 | M69: 51.057585
A70: 495.496373 | B70: 8.279776 | C70: 95.113003 | D70: 38.238356 | E70: 92.678696 | F70: 69.432937 | G70: 60.023467 | H70: 46.691108 | I70: 49.799024 | J70: 27.222812 | K70: 30.628362 | L70: 56.716514 | M70: 52.825098
A71: 496.924317 | B71: 8.26361 | C71: 94.610426 | D71: 38.117486 | E71: 92.468053 | F71: 69.312174 | G71: 59.430675 | H71: 46.773942 | I71: 49.372165 | J71: 26.984956 | K71: 30.624798 | L71: 56.445391 | M71: 52.381274
A72: 498.35226 | B72: 8.189113 | C72: 94.945849 | D72: 38.280183 | E72: 93.013779 | F72: 69.143138 | G72: 59.92411 | H72: 46.85922 | I72: 49.922052 | J72: 27.037117 | K72: 30.447515 | L72: 56.827189 | M72: 52.855817
A73: 499.780204 | B73: 8.212917 | C73: 94.491977 | D73: 38.028529 | E73: 91.998388 | F73: 68.949636 | G73: 59.205101 | H73: 46.834576 | I73: 49.138439 | J73: 26.823263 | K73: 30.27214 | L73: 56.661706 | M73: 51.748658
A74: 501.208147 | B74: 8.109691 | C74: 91.333157 | D74: 37.242293 | E74: 88.416571 | F74: 68.767782 | G74: 56.303763 | H74: 46.804023 | I74: 45.924221 | J74: 26.518903 | K74: 30.106111 | L74: 55.443327 | M74: 47.546537
A75: 502.636091 | B75: 7.963487 | C75: 90.984253 | D75: 37.388077 | E75: 88.013761 | F75: 68.604063 | G75: 55.914174 | H75: 46.800659 | I75: 45.186282 | J75: 26.614001 | K75: 30.005742 | L75: 55.477155 | M75: 46.737046
A76: 504.064034 | B76: 7.952054 | C76: 93.081119 | D76: 37.919203 | E76: 90.314672 | F76: 68.466555 | G76: 57.372428 | H76: 46.821609 | I76: 47.209988 | J76: 26.657298 | K76: 29.990041 | L76: 56.028053 | M76: 49.359436
A77: 505.491978 | B77: 7.854473 | C77: 93.453724 | D77: 38.023884 | E77: 90.636478 | F77: 68.371259 | G77: 57.678979 | H77: 46.751315 | I77: 47.730014 | J77: 26.755233 | K77: 29.893577 | L77: 55.915518 | M77: 49.81393
A78: 506.919921 | B78: 7.791842 | C78: 93.540988 | D78: 38.008877 | E78: 90.429021 | F78: 68.296337 | G78: 57.659673 | H78: 46.761465 | I78: 47.291004 | J78: 26.703417 | K78: 29.778493 | L78: 55.876784 | M78: 49.370184
A79: 508.347864 | B79: 7.745491 | C79: 93.727401 | D79: 38.007756 | E79: 90.690637 | F79: 68.215775 | G79: 57.631282 | H79: 46.912464 | I79: 47.651365 | J79: 26.514782 | K79: 29.597403 | L79: 55.904794 | M79: 49.902536
A80: 509.775808 | B80: 7.537465 | C80: 93.698583 | D80: 38.041164 | E80: 90.528427 | F80: 68.139693 | G80: 57.557376 | H80: 46.812526 | I80: 47.824252 | J80: 26.627768 | K80: 29.413644 | L80: 56.059626 | M80: 50.082875
A81: 511.203751 | B81: 7.360625 | C81: 93.856376 | D81: 37.90296 | E81: 90.727564 | F81: 68.07059 | G81: 57.593249 | H81: 46.690835 | I81: 47.612951 | J81: 26.54247 | K81: 29.363948 | L81: 56.111017 | M81: 50.087735
A82: 512.631695 | B82: 7.225917 | C82: 93.869896 | D82: 37.856555 | E82: 91.275198 | F82: 68.004103 | G82: 57.838255 | H82: 46.769402 | I82: 47.943834 | J82: 26.43916 | K82: 29.209274 | L82: 55.993033 | M82: 50.564852
A83: 514.059638 | B83: 7.069182 | C83: 93.494675 | D83: 37.830285 | E83: 90.516608 | F83: 67.955531 | G83: 57.549097 | H83: 46.758581 | I83: 47.526348 | J83: 26.56854 | K83: 29.050215 | L83: 56.117987 | M83: 49.923972
A84: 515.487582 | B84: 6.945325 | C84: 92.232199 | D84: 37.266378 | E84: 88.483486 | F84: 67.948097 | G84: 55.91784 | H84: 46.817618 | I84: 45.746216 | J84: 26.434994 | K84: 29.077707 | L84: 55.842663 | M84: 47.547666
A85: 516.915525 | B85: 6.7626 | C85: 91.139871 | D85: 36.829856 | E85: 87.095086 | F85: 68.001453 | G85: 54.701852 | H85: 46.920608 | I85: 44.509759 | J85: 26.386023 | K85: 29.015194 | L85: 55.291807 | M85: 45.663481
A86: 518.343469 | B86: 6.552538 | C86: 91.260803 | D86: 36.75886 | E86: 87.206481 | F86: 68.130643 | G86: 54.778769 | H86: 46.827309 | I86: 44.384987 | J86: 26.403551 | K86: 28.926759 | L86: 55.19943 | M86: 45.61057
A87: 519.771412 | B87: 6.384097 | C87: 91.772135 | D87: 36.684874 | E87: 88.456218 | F87: 68.331273 | G87: 55.274233 | H87: 46.929615 | I87: 45.237594 | J87: 26.315696 | K87: 28.883162 | L87: 55.364157 | M87: 47.01515
A88: 521.199355 | B88: 6.217002 | C88: 93.488424 | D88: 37.110132 | E88: 90.724741 | F88: 68.576354 | G88: 56.949548 | H88: 47.090972 | I88: 47.254966 | J88: 26.690928 | K88: 28.775245 | L88: 56.106965 | M88: 49.70719
A89: 522.627299 | B89: 6.039503 | C89: 95.003949 | D89: 37.296621 | E89: 92.021256 | F89: 68.844176 | G89: 58.150739 | H89: 47.016716 | I89: 48.433403 | J89: 26.921043 | K89: 28.847058 | L89: 56.687747 | M89: 51.363415
A90: 524.055242 | B90: 5.785594 | C90: 94.127223 | D90: 36.726351 | E90: 90.846376 | F90: 69.129486 | G90: 57.30233 | H90: 47.025676 | I90: 47.572547 | J90: 26.718416 | K90: 28.942209 | L90: 56.268213 | M90: 50.028091
A91: 525.483186 | B91: 5.536109 | C91: 92.97574 | D91: 36.226344 | E91: 89.081149 | F91: 69.425946 | G91: 56.344701 | H91: 47.132865 | I91: 46.069862 | J91: 26.69236 | K91: 28.858095 | L91: 55.862462 | M91: 47.823329
A92: 526.911129 | B92: 5.360352 | C92: 93.292338 | D92: 36.013201 | E92: 89.742406 | F92: 69.715917 | G92: 56.602569 | H92: 47.142267 | I92: 46.220284 | J92: 26.771648 | K92: 28.883499 | L92: 56.014848 | M92: 48.362873
A93: 528.339073 | B93: 5.104597 | C93: 94.131378 | D93: 35.976827 | E93: 91.570255 | F93: 69.983317 | G93: 57.63093 | H93: 47.158117 | I93: 47.792123 | J93: 26.924323 | K93: 28.95188 | L93: 56.30896 | M93: 50.584353
A94: 529.767016 | B94: 4.841793 | C94: 94.826833 | D94: 35.839341 | E94: 92.171539 | F94: 70.217559 | G94: 58.470422 | H94: 47.156922 | I94: 48.410409 | J94: 26.980701 | K94: 28.984334 | L94: 56.539003 | M94: 51.481988
A95: 531.194959 | B95: 4.632692 | C95: 94.616228 | D95: 35.344349 | E95: 91.981007 | F95: 70.412704 | G95: 58.265528 | H95: 47.10348 | I95: 48.059357 | J95: 26.795334 | K95: 29.071378 | L95: 56.45597 | M95: 51.215094
A96: 532.622903 | B96: 4.394187 | C96: 94.349233 | D96: 35.003861 | E96: 92.030316 | F96: 70.568525 | G96: 58.075754 | H96: 47.051158 | I96: 48.121361 | J96: 26.849477 | K96: 29.0575 | L96: 56.40498 | M96: 51.198946
A97: 534.050846 | B97: 4.176901 | C97: 94.413769 | D97: 34.599939 | E97: 91.747809 | F97: 70.694345 | G97: 58.060369 | H97: 47.000732 | I97: 47.888337 | J97: 26.818182 | K97: 28.988493 | L97: 56.318249 | M97: 50.873049
A98: 535.47879 | B98: 3.957755 | C98: 93.980434 | D98: 34.00391 | E98: 91.327081 | F98: 70.800457 | G98: 57.663837 | H98: 46.987078 | I98: 47.430857 | J98: 26.605203 | K98: 28.954105 | L98: 56.09261 | M98: 50.284194
A99: 536.906733 | B99: 3.71398 | C99: 94.065572 | D99: 33.740967 | E99: 91.561572 | F99: 70.876801 | G99: 57.801321 | H99: 46.981618 | I99: 47.695177 | J99: 26.741992 | K99: 28.90624 | L99: 56.28065 | M99: 50.458629
A100: 538.334677 | B100: 3.534559 | C100: 94.365878 | D100: 33.371713 | E100: 91.751413 | F100: 70.916256 | G100: 57.886821 | H100: 46.894799 | I100: 47.82772 | J100: 26.783557 | K100: 28.869286 | L100: 56.310592 | M100: 50.654372
A101: 539.76262 | B101: 3.330009 | C101: 94.144362 | D101: 32.884255 | E101: 91.747592 | F101: 70.93236 | G101: 57.678339 | H101: 46.794994 | I101: 47.70742 | J101: 26.653518 | K101: 28.801399 | L101: 56.045913 | M101: 50.569617
A102: 541.190564 | B102: 3.069099 | C102: 94.35256 | D102: 32.552329 | E102: 91.974274 | F102: 70.923427 | G102: 57.945618 | H102: 46.818733 | I102: 47.775386 | J102: 26.602309 | K102: 28.780995 | L102: 56.113713 | M102: 50.709723
A103: 542.618507 | B103: 2.880783 | C103: 94.430805 | D103: 32.025471 | E103: 92.033414 | F103: 70.881583 | G103: 57.830334 | H103: 46.867876 | I103: 47.715592 | J103: 26.454226 | K103: 28.818429 | L103: 56.087461 | M103: 50.693432
A104: 544.04645 | B104: 2.745154 | C104: 94.030515 | D104: 31.495364 | E104: 91.517627 | F104: 70.826883 | G104: 57.331063 | H104: 46.787373 | I104: 47.287138 | J104: 26.454458 | K104: 28.757818 | L104: 55.938375 | M104: 50.063387
A105: 545.474394 | B105: 2.562746 | C105: 93.619741 | D105: 30.899934 | E105: 90.57599 | F105: 70.779315 | G105: 56.92865 | H105: 46.733852 | I105: 46.362625 | J105: 26.390424 | K105: 28.727354 | L105: 55.821606 | M105: 48.950215
A106: 546.902337 | B106: 2.325176 | C106: 93.169968 | D106: 30.210762 | E106: 90.222722 | F106: 70.745716 | G106: 56.542816 | H106: 46.746311 | I106: 45.96385 | J106: 26.174302 | K106: 28.759651 | L106: 55.620544 | M106: 48.551913
A107: 548.330281 | B107: 2.113012 | C107: 93.217247 | D107: 29.810005 | E107: 90.386342 | F107: 70.745451 | G107: 56.616721 | H107: 46.656668 | I107: 46.26874 | J107: 26.270723 | K107: 28.773635 | L107: 55.679423 | M107: 48.872468
A108: 549.758224 | B108: 1.954115 | C108: 93.248698 | D108: 29.305994 | E108: 90.221193 | F108: 70.793799 | G108: 56.679746 | H108: 46.623178 | I108: 46.158265 | J108: 26.257356 | K108: 28.875309 | L108: 55.647758 | M108: 48.724177
A109: 551.186168 | B109: 1.82208 | C109: 93.374925 | D109: 28.838228 | E109: 90.905 | F109: 70.877435 | G109: 57.028011 | H109: 46.701851 | I109: 46.618135 | J109: 26.168112 | K109: 28.928917 | L109: 55.597749 | M109: 49.314294
A110: 552.614111 | B110: 1.724736 | C110: 94.243262 | D110: 28.56737 | E110: 92.09748 | F110: 70.973518 | G110: 57.962307 | H110: 46.726482 | I110: 47.481471 | J110: 26.325267 | K110: 28.926289 | L110: 55.915887 | M110: 50.520234
A111: 554.042055 | B111: 1.60749 | C111: 94.299653 | D111: 27.984421 | E111: 92.049843 | F111: 71.065768 | G111: 57.918553 | H111: 46.774472 | I111: 47.250123 | J111: 26.272741 | K111: 29.055837 | L111: 55.925614 | M111: 50.362099
A112: 555.469998 | B112: 1.449338 | C112: 93.931377 | D112: 27.46748 | E112: 91.837932 | F112: 71.142132 | G112: 57.543295 | H112: 46.809397 | I112: 47.1226 | J112: 26.227805 | K112: 29.203538 | L112: 55.879663 | M112: 50.122392
A113: 556.897941 | B113: 1.351954 | C113: 94.28994 | D113: 27.085756 | E113: 92.078778 | F113: 71.198943 | G113: 57.909985 | H113: 46.738697 | I113: 47.465545 | J113: 26.312261 | K113: 29.287029 | L113: 56.028035 | M113: 50.584875
A114: 558.325885 | B114: 1.250021 | C114: 94.141573 | D114: 26.558337 | E114: 92.004869 | F114: 71.240145 | G114: 57.909307 | H114: 46.684493 | I114: 47.358034 | J114: 26.209129 | K114: 29.264557 | L114: 55.827122 | M114: 50.473432
A115: 559.753828 | B115: 1.092797 | C115: 94.09327 | D115: 26.193719 | E115: 92.240864 | F115: 71.265433 | G115: 57.95289 | H115: 46.632895 | I115: 47.496095 | J115: 26.210329 | K115: 29.180547 | L115: 55.861509 | M115: 50.562535
A116: 561.181772 | B116: 1.006789 | C116: 94.342805 | D116: 25.673328 | E116: 92.347118 | F116: 71.265807 | G116: 58.142418 | H116: 46.563368 | I116: 47.575113 | J116: 26.20904 | K116: 29.24355 | L116: 56.026649 | M116: 50.768916
A117: 562.609715 | B117: 0.96185 | C117: 93.908107 | D117: 25.082289 | E117: 91.950641 | F117: 71.236866 | G117: 57.84726 | H117: 46.562006 | I117: 47.245436 | J117: 26.113431 | K117: 29.30269 | L117: 55.816472 | M117: 50.341458
A118: 564.037659 | B118: 0.91622 | C118: 93.921608 | D118: 24.801303 | E118: 92.078904 | F118: 71.181949 | G118: 57.829133 | H118: 46.55974 | I118: 47.286941 | J118: 26.147897 | K118: 29.256163 | L118: 55.817322 | M118: 50.3076
A119: 565.465602 | B119: 0.903838 | C119: 93.949453 | D119: 24.355573 | E119: 92.031471 | F119: 71.104579 | G119: 57.658476 | H119: 46.491303 | I119: 47.14142 | J119: 26.06617 | K119: 29.265744 | L119: 55.748953 | M119: 50.13534
A120: 566.893545 | B120: 0.842207 | C120: 93.342546 | D120: 23.94062 | E120: 91.382239 | F120: 71.009573 | G120: 57.255976 | H120: 46.449401 | I120: 46.62491 | J120: 26.053368 | K120: 29.299365 | L120: 55.506531 | M120: 49.272641
A121: 568.321489 | B121: 0.781066 | C121: 93.252361 | D121: 23.72305 | E121: 91.100179 | F121: 70.908241 | G121: 57.429198 | H121: 46.519946 | I121: 46.383061 | J121: 26.172755 | K121: 29.392368 | L121: 55.563459 | M121: 48.934405
A122: 569.749432 | B122: 0.812325 | C122: 93.057428 | D122: 23.365898 | E122: 90.934164 | F122: 70.811566 | G122: 57.25577 | H122: 46.615529 | I122: 46.161117 | J122: 26.0904 | K122: 29.486735 | L122: 55.495814 | M122: 48.889523
A123: 571.177376 | B123: 0.817648 | C123: 93.07759 | D123: 23.261215 | E123: 91.167886 | F123: 70.719042 | G123: 57.201871 | H123: 46.617038 | I123: 46.360813 | J123: 26.151453 | K123: 29.452334 | L123: 55.547363 | M123: 49.196533
A124: 572.605319 | B124: 0.789134 | C124: 93.898132 | D124: 23.243774 | E124: 92.053046 | F124: 70.627411 | G124: 57.893635 | H124: 46.555463 | I124: 47.129535 | J124: 26.297141 | K124: 29.471725 | L124: 55.816257 | M124: 50.24124
A125: 574.033263 | B125: 0.794344 | C125: 93.410904 | D125: 22.901368 | E125: 91.611179 | F125: 70.543437 | G125: 57.443925 | H125: 46.462175 | I125: 46.788868 | J125: 26.213121 | K125: 29.53163 | L125: 55.531497 | M125: 49.727707
A126: 575.461206 | B126: 0.81113 | C126: 92.123871 | D126: 22.640247 | E126: 90.049765 | F126: 70.475446 | G126: 56.272505 | H126: 46.403222 | I126: 45.42209 | J126: 26.160396 | K126: 29.534015 | L126: 55.127037 | M126: 47.796517
A127: 576.88915 | B127: 0.817523 | C127: 92.532819 | D127: 22.65193 | E127: 90.494625 | F127: 70.42827 | G127: 56.723546 | H127: 46.447324 | I127: 45.688919 | J127: 26.189165 | K127: 29.564514 | L127: 55.288401 | M127: 48.333906
A128: 578.317093 | B128: 0.801035 | C128: 93.265591 | D128: 22.722903 | E128: 91.60098 | F128: 70.411976 | G128: 57.5279 | H128: 46.433458 | I128: 46.804276 | J128: 26.262933 | K128: 29.58469 | L128: 55.556517 | M128: 49.804342
A129: 579.745036 | B129: 0.791784 | C129: 92.746782 | D129: 22.616306 | E129: 90.68635 | F129: 70.430763 | G129: 56.959258 | H129: 46.358615 | I129: 46.191351 | J129: 26.267743 | K129: 29.632773 | L129: 55.508262 | M129: 48.811996
A130: 581.17298 | B130: 0.822635 | C130: 92.410209 | D130: 22.429525 | E130: 90.184364 | F130: 70.474996 | G130: 56.551534 | H130: 46.373882 | I130: 45.653012 | J130: 26.126811 | K130: 29.673576 | L130: 55.340744 | M130: 48.227625
A131: 582.600923 | B131: 0.835098 | C131: 93.019681 | D131: 22.517378 | E131: 91.266393 | F131: 70.538986 | G131: 57.257548 | H131: 46.389614 | I131: 46.57705 | J131: 26.21309 | K131: 29.610939 | L131: 55.482678 | M131: 49.513518
A132: 584.028867 | B132: 0.833151 | C132: 93.129354 | D132: 22.513829 | E132: 91.235112 | F132: 70.623537 | G132: 57.46351 | H132: 46.356604 | I132: 46.674807 | J132: 26.292492 | K132: 29.607136 | L132: 55.558389 | M132: 49.538232
A133: 585.45681 | B133: 0.857598 | C133: 92.844284 | D133: 22.434249 | E133: 91.006943 | F133: 70.720447 | G133: 57.256533 | H133: 46.345674 | I133: 46.437146 | J133: 26.204068 | K133: 29.584432 | L133: 55.387012 | M133: 49.215283
A134: 586.884754 | B134: 0.885275 | C134: 93.398899 | D134: 22.6882 | E134: 92.017195 | F134: 70.820012 | G134: 57.782864 | H134: 46.316289 | I134: 47.203183 | J134: 26.352682 | K134: 29.48286 | L134: 55.594359 | M134: 50.289192
A135: 588.312697 | B135: 0.913144 | C135: 93.746316 | D135: 22.773831 | E135: 92.334998 | F135: 70.920631 | G135: 58.064679 | H135: 46.254928 | I135: 47.530579 | J135: 26.415642 | K135: 29.49268 | L135: 55.776545 | M135: 50.757786
A136: 589.74064 | B136: 0.927863 | C136: 93.046728 | D136: 22.629511 | E136: 91.464397 | F136: 71.021063 | G136: 57.4456 | H136: 46.175316 | I136: 46.897161 | J136: 26.281856 | K136: 29.504426 | L136: 55.45877 | M136: 49.751855
A137: 591.168584 | B137: 0.928875 | C137: 92.311124 | D137: 22.641925 | E137: 90.42866 | F137: 71.119885 | G137: 56.698644 | H137: 46.071773 | I137: 45.955413 | J137: 26.26435 | K137: 29.504125 | L137: 55.125648 | M137: 48.351024
A138: 592.596527 | B138: 0.93051 | C138: 92.302763 | D138: 22.733414 | E138: 90.442409 | F138: 71.219911 | G138: 56.667991 | H138: 45.937757 | I138: 45.880006 | J138: 26.220665 | K138: 29.572255 | L138: 54.988431 | M138: 48.353944
A139: 594.024471 | B139: 0.926456 | C139: 92.999118 | D139: 22.969914 | E139: 91.62164 | F139: 71.324131 | G139: 57.48102 | H139: 45.745995 | I139: 46.987607 | J139: 26.262234 | K139: 29.576012 | L139: 55.068443 | M139: 49.888029
A140: 595.452414 | B140: 0.972088 | C140: 93.525879 | D140: 23.14213 | E140: 92.105294 | F140: 71.428203 | G140: 58.017886 | H140: 45.498518 | I140: 47.527588 | J140: 26.30824 | K140: 29.626762 | L140: 55.086919 | M140: 50.631424
A141: 596.880358 | B141: 1.055813 | C141: 93.496783 | D141: 23.146618 | E141: 91.994596 | F141: 71.52121 | G141: 58.049324 | H141: 45.139548 | I141: 47.567116 | J141: 26.170595 | K141: 29.696775 | L141: 54.78897 | M141: 50.656759
A142: 598.308301 | B142: 1.088333 | C142: 93.275798 | D142: 23.252087 | E142: 91.80431 | F142: 71.597273 | G142: 57.958572 | H142: 44.592862 | I142: 47.468973 | J142: 26.086502 | K142: 29.649422 | L142: 54.407952 | M142: 50.418803
A143: 599.736245 | B143: 1.092853 | C143: 92.732039 | D143: 23.263689 | E143: 90.900052 | F143: 71.658659 | G143: 57.411648 | H143: 43.851734 | I143: 46.60235 | J143: 25.894024 | K143: 29.644092 | L143: 53.755867 | M143: 49.340807
A144: 601.164188 | B144: 1.095297 | C144: 92.81645 | D144: 23.35127 | E144: 91.124911 | F144: 71.705594 | G144: 57.467687 | H144: 42.923699 | I144: 46.753272 | J144: 25.672942 | K144: 29.605232 | L144: 53.078249 | M144: 49.605438
A145: 602.592131 | B145: 1.09168 | C145: 93.611928 | D145: 23.615317 | E145: 92.320544 | F145: 71.736153 | G145: 58.172776 | H145: 41.789308 | I145: 47.727817 | J145: 25.568334 | K145: 29.495342 | L145: 52.660375 | M145: 50.856355
A146: 604.020075 | B146: 1.113627 | C146: 93.464633 | D146: 23.615087 | E146: 92.197907 | F146: 71.749274 | G146: 57.946037 | H146: 40.414331 | I146: 47.475314 | J146: 25.128197 | K146: 29.446788 | L146: 51.756787 | M146: 50.5433
A147: 605.448018 | B147: 1.138455 | C147: 93.307025 | D147: 23.672661 | E147: 92.203079 | F147: 71.739263 | G147: 57.814601 | H147: 39.020163 | I147: 47.40978 | J147: 24.641632 | K147: 29.302882 | L147: 50.70709 | M147: 50.39931
A148: 606.875962 | B148: 1.135384 | C148: 93.740352 | D148: 23.834183 | E148: 92.663919 | F148: 71.705085 | G148: 58.145842 | H148: 37.816146 | I148: 47.726467 | J148: 24.318585 | K148: 29.101654 | L148: 50.003912 | M148: 50.824028
A149: 608.303905 | B149: 1.123448 | C149: 93.564928 | D149: 23.799072 | E149: 92.388168 | F149: 71.657157 | G149: 57.839231 | H149: 36.893674 | I149: 47.356139 | J149: 23.854898 | K149: 28.973925 | L149: 49.254454 | M149: 50.45919
A150: 609.731849 | B150: 1.106035 | C150: 93.606197 | D150: 23.97599 | E150: 92.540588 | F150: 71.597809 | G150: 57.792558 | H150: 36.525971 | I150: 47.34847 | J150: 23.620168 | K150: 28.805351 | L150: 48.907083 | M150: 50.451564
A151: 611.159792 | B151: 1.046197 | C151: 93.808825 | D151: 24.205193 | E151: 92.67605 | F151: 71.518875 | G151: 57.832194 | H151: 36.741679 | I151: 47.330934 | J151: 23.528945 | K151: 28.61632 | L151: 48.912407 | M151: 50.393228
A152: 612.587736 | B152: 0.925572 | C152: 93.501923 | D152: 24.33599 | E152: 92.393193 | F152: 71.424488 | G152: 57.440542 | H152: 37.500745 | I152: 47.039605 | J152: 23.406737 | K152: 28.443433 | L152: 49.019329 | M152: 49.954559
A153: 614.015679 | B153: 0.798899 | C153: 93.449929 | D153: 24.632176 | E153: 92.444547 | F153: 71.326985 | G153: 57.30518 | H153: 38.579447 | I153: 46.937171 | J153: 23.531933 | K153: 28.263169 | L153: 49.557852 | M153: 49.780809
A154: 615.443622 | B154: 0.702151 | C154: 93.029331 | D154: 24.751073 | E154: 91.662693 | F154: 71.229179 | G154: 56.785109 | H154: 39.648587 | I154: 46.231927 | J154: 23.55319 | K154: 28.093201 | L154: 50.055317 | M154: 48.860672
A155: 616.871566 | B155: 0.656398 | C155: 92.693483 | D155: 24.899629 | E155: 91.022689 | F155: 71.130999 | G155: 56.49871 | H155: 40.68758 | I155: 46.048889 | J155: 23.544785 | K155: 27.908405 | L155: 50.551489 | M155: 48.474496
A156: 618.299509 | B156: 0.699785 | C156: 93.297464 | D156: 25.285445 | E156: 91.778651 | F156: 71.039461 | G156: 57.041978 | H156: 41.518884 | I156: 46.638582 | J156: 23.794822 | K156: 27.749479 | L156: 51.245684 | M156: 49.19212
A157: 619.727453 | B157: 0.786176 | C157: 93.246545 | D157: 25.42209 | E157: 92.004936 | F157: 70.959669 | G157: 56.842617 | H157: 42.098896 | I157: 46.305064 | J157: 23.924826 | K157: 27.622252 | L157: 51.554459 | M157: 48.848983
A158: 621.155396 | B158: 0.888709 | C158: 93.184811 | D158: 25.624266 | E158: 92.151038 | F158: 70.891937 | G158: 56.746993 | H158: 42.637129 | I158: 46.313352 | J158: 24.074757 | K158: 27.538143 | L158: 51.897382 | M158: 48.791953
A159: 622.58334 | B159: 0.998268 | C159: 93.65786 | D159: 25.919777 | E159: 92.61766 | F159: 70.843534 | G159: 57.217584 | H159: 43.11832 | I159: 46.822967 | J159: 24.270543 | K159: 27.575335 | L159: 52.386251 | M159: 49.379869
A160: 624.011283 | B160: 1.076669 | C160: 93.110138 | D160: 25.953832 | E160: 92.030778 | F160: 70.825585 | G160: 56.835797 | H160: 43.523939 | I160: 46.367022 | J160: 24.301547 | K160: 27.668603 | L160: 52.455932 | M160: 48.672553
A161: 625.439226 | B161: 1.178891 | C161: 92.712932 | D161: 26.160502 | E161: 91.617849 | F161: 70.838558 | G161: 56.681027 | H161: 43.87756 | I161: 46.202631 | J161: 24.48557 | K161: 27.81373 | L161: 52.575351 | M161: 48.234122
A162: 626.86717 | B162: 1.345855 | C162: 93.269884 | D162: 26.492603 | E162: 92.135378 | F162: 70.874668 | G162: 57.334779 | H162: 44.077943 | I162: 46.873158 | J162: 24.716623 | K162: 28.038287 | L162: 52.808419 | M162: 49.04303
A163: 628.295113 | B163: 1.508351 | C163: 93.523553 | D163: 26.735771 | E163: 92.478309 | F163: 70.929977 | G163: 57.783068 | H163: 44.141575 | I163: 47.488367 | J163: 24.85959 | K163: 28.255039 | L163: 52.815092 | M163: 49.79274
A164: 629.723057 | B164: 1.64648 | C164: 93.596492 | D164: 27.061484 | E164: 92.567318 | F164: 71.002385 | G164: 58.129543 | H164: 44.09703 | I164: 47.930069 | J164: 25.034954 | K164: 28.493423 | L164: 52.785313 | M164: 50.210638
A165: 631.151 | B165: 1.759019 | C165: 93.3745 | D165: 27.245599 | E165: 92.203675 | F165: 71.089158 | G165: 58.144898 | H165: 43.909306 | I165: 47.929311 | J165: 25.019505 | K165: 28.721645 | L165: 52.532613 | M165: 50.038103
A166: 632.578944 | B166: 1.852387 | C166: 92.912547 | D166: 27.414655 | E166: 91.582493 | F166: 71.192432 | G166: 57.963345 | H166: 43.710621 | I166: 47.790388 | J166: 25.000128 | K166: 28.899073 | L166: 52.202252 | M166: 49.618113
A167: 634.006887 | B167: 1.95979 | C167: 92.763275 | D167: 27.702212 | E167: 91.173103 | F167: 71.313311 | G167: 58.027958 | H167: 43.566026 | I167: 47.709522 | J167: 25.111198 | K167: 29.13847 | L167: 52.079037 | M167: 49.378027
A168: 635.434831 | B168: 2.042971 | C168: 92.658681 | D168: 27.934021 | E168: 90.990313 | F168: 71.442645 | G168: 58.114891 | H168: 43.429616 | I168: 47.724238 | J168: 25.172565 | K168: 29.336426 | L168: 52.069794 | M168: 49.368321
A169: 636.862774 | B169: 2.120167 | C169: 92.886769 | D169: 28.35178 | E169: 91.376688 | F169: 71.576116 | G169: 58.555401 | H169: 43.43157 | I169: 48.378098 | J169: 25.425864 | K169: 29.444313 | L169: 52.425337 | M169: 50.122217
A170: 638.290717 | B170: 2.226005 | C170: 93.026971 | D170: 28.741652 | E170: 91.435695 | F170: 71.716771 | G170: 58.820685 | H170: 43.58119 | I170: 48.731766 | J170: 25.748038 | K170: 29.598854 | L170: 52.822842 | M170: 50.482876
A171: 639.718661 | B171: 2.291109 | C171: 92.704837 | D171: 28.964152 | E171: 90.904066 | F171: 71.860409 | G171: 58.636469 | H171: 43.846952 | I171: 48.594015 | J171: 26.034404 | K171: 29.701457 | L171: 53.102202 | M171: 50.134236
A172: 641.146604 | B172: 2.372254 | C172: 92.945605 | D172: 29.381278 | E172: 91.052683 | F172: 71.999835 | G172: 59.025683 | H172: 44.317243 | I172: 49.062654 | J172: 26.480415 | K172: 29.773857 | L172: 53.755066 | M172: 50.59952
A173: 642.574548 | B173: 2.52591 | C173: 93.114698 | D173: 29.74038 | E173: 91.12383 | F173: 72.13317 | G173: 59.295794 | H173: 44.894754 | I173: 49.360581 | J173: 26.79308 | K173: 29.887266 | L173: 54.356298 | M173: 50.96103
A174: 644.002491 | B174: 2.655922 | C174: 92.87203 | D174: 30.079008 | E174: 90.737726 | F174: 72.25767 | G174: 59.120656 | H174: 45.53556 | I174: 49.294969 | J174: 27.036992 | K174: 29.907952 | L174: 54.78342 | M174: 50.746411
A175: 645.430435 | B175: 2.7697 | C175: 93.118696 | D175: 30.619111 | E175: 90.810939 | F175: 72.370497 | G175: 59.384891 | H175: 46.249919 | I175: 49.620035 | J175: 27.381482 | K175: 29.916966 | L175: 55.397335 | M175: 51.054263
A176: 646.858378 | B176: 2.907891 | C176: 93.05914 | D176: 31.019223 | E176: 90.531661 | F176: 72.47198 | G176: 59.446057 | H176: 46.9694 | I176: 49.753384 | J176: 27.559073 | K176: 29.939426 | L176: 55.860829 | M176: 51.149877
A177: 648.286322 | B177: 3.047704 | C177: 92.820521 | D177: 31.443805 | E177: 90.02042 | F177: 72.561796 | G177: 59.315942 | H177: 47.694751 | I177: 49.773844 | J177: 27.742154 | K177: 29.90061 | L177: 56.267754 | M177: 50.999289
A178: 649.714265 | B178: 3.204156 | C178: 93.043052 | D178: 31.932225 | E178: 90.100038 | F178: 72.6395 | G178: 59.457564 | H178: 48.34601 | I178: 49.894588 | J178: 27.931897 | K178: 29.910932 | L178: 56.728958 | M178: 51.132775
A179: 651.142208 | B179: 3.354407 | C179: 92.884076 | D179: 32.269006 | E179: 90.08619 | F179: 72.704554 | G179: 59.373846 | H179: 48.874666 | I179: 49.771311 | J179: 27.972953 | K179: 29.89301 | L179: 56.949475 | M179: 51.000723
A180: 652.570152 | B180: 3.488772 | C180: 92.84699 | D180: 32.759021 | E180: 90.18295 | F180: 72.757786 | G180: 59.539424 | H180: 49.292617 | I180: 49.918333 | J180: 28.139457 | K180: 29.864318 | L180: 57.150147 | M180: 51.094567
A181: 653.998095 | B181: 3.636596 | C181: 93.178241 | D181: 33.259382 | E181: 90.496656 | F181: 72.802203 | G181: 59.922751 | H181: 49.614076 | I181: 50.249757 | J181: 28.265659 | K181: 29.960495 | L181: 57.37661 | M181: 51.490221
A182: 655.426039 | B182: 3.784928 | C182: 93.148954 | D182: 33.651047 | E182: 90.534421 | F182: 72.837598 | G182: 59.998174 | H182: 49.931653 | I182: 50.45159 | J182: 28.271265 | K182: 30.055583 | L182: 57.542792 | M182: 51.705988
A183: 656.853982 | B183: 3.949987 | C183: 93.126126 | D183: 34.111605 | E183: 90.558071 | F183: 72.868391 | G183: 60.115608 | H183: 50.196532 | I183: 50.637919 | J183: 28.388788 | K183: 30.195422 | L183: 57.687242 | M183: 51.876771
A184: 658.281926 | B184: 4.136597 | C184: 92.994693 | D184: 34.454584 | E184: 90.414074 | F184: 72.905194 | G184: 60.078542 | H184: 50.388522 | I184: 50.516977 | J184: 28.452804 | K184: 30.431483 | L184: 57.673071 | M184: 51.660814
A185: 659.709869 | B185: 4.328436 | C185: 92.908233 | D185: 34.880962 | E185: 90.596658 | F185: 72.948275 | G185: 60.223325 | H185: 50.602076 | I185: 50.66624 | J185: 28.540796 | K185: 30.641135 | L185: 57.755388 | M185: 51.72103
A186: 661.137812 | B186: 4.522723 | C186: 93.28505 | D186: 35.403877 | E186: 91.324557 | F186: 72.992711 | G186: 60.856181 | H186: 50.731464 | I186: 51.326777 | J186: 28.675653 | K186: 30.85242 | L186: 57.946215 | M186: 52.505976
A187: 662.565756 | B187: 4.705924 | C187: 93.267426 | D187: 35.771735 | E187: 91.46041 | F187: 73.040764 | G187: 61.064394 | H187: 50.807716 | I187: 51.585941 | J187: 28.701027 | K187: 31.040226 | L187: 57.916348 | M187: 52.799625
A188: 663.993699 | B188: 4.909747 | C188: 93.289004 | D188: 36.235968 | E188: 91.885603 | F188: 73.09415 | G188: 61.28487 | H188: 50.884907 | I188: 51.772558 | J188: 28.835803 | K188: 31.178482 | L188: 57.937308 | M188: 53.065699
A189: 665.421643 | B189: 5.12602 | C189: 93.602424 | D189: 36.39094 | E189: 92.013424 | F189: 73.154045 | G189: 61.73567 | H189: 50.85305 | I189: 52.231133 | J189: 28.850384 | K189: 31.380834 | L189: 58.155347 | M189: 53.555078
A190: 666.849586 | B190: 5.327364 | C190: 92.181368 | D190: 35.736995 | E190: 87.03314 | F190: 73.223523 | G190: 60.862108 | H190: 51.165318 | I190: 52.085118 | J190: 28.452996 | K190: 31.736859 | L190: 58.575626 | M190: 52.130873
A191: 668.27753 | B191: 5.574608 | C191: 88.790106 | D191: 35.402158 | E191: 78.307047 | F191: 73.303372 | G191: 58.512482 | H191: 52.438264 | I191: 50.671064 | J191: 28.237382 | K191: 32.219657 | L191: 58.93981 | M191: 48.447369
A192: 669.705473 | B192: 5.761986 | C192: 90.291739 | D192: 36.739988 | E192: 83.847198 | F192: 73.388907 | G192: 59.699941 | H192: 52.184582 | I192: 50.926488 | J192: 28.720892 | K192: 32.113225 | L192: 58.354134 | M192: 50.085935
A193: 671.133417 | B193: 5.897291 | C193: 92.464423 | D193: 37.65025 | E193: 89.672565 | F193: 73.477357 | G193: 61.499828 | H193: 51.588212 | I193: 52.156207 | J193: 29.009074 | K193: 32.022644 | L193: 58.246294 | M193: 52.632473
A194: 672.56136 | B194: 6.079428 | C194: 93.264353 | D194: 38.218657 | E194: 91.058745 | F194: 73.568896 | G194: 62.359092 | H194: 51.578317 | I194: 52.992309 | J194: 29.194823 | K194: 32.179781 | L194: 58.476463 | M194: 53.744143
A195: 673.989303 | B195: 6.261375 | C195: 93.105677 | D195: 38.480311 | E195: 90.759616 | F195: 73.662612 | G195: 62.391497 | H195: 51.731513 | I195: 53.113684 | J195: 29.256467 | K195: 32.343319 | L195: 58.470621 | M195: 53.802824
A196: 675.417247 | B196: 6.413927 | C196: 93.081044 | D196: 38.738659 | E196: 90.697028 | F196: 73.753146 | G196: 62.526171 | H196: 51.77868 | I196: 53.275781 | J196: 29.362646 | K196: 32.442961 | L196: 58.49116 | M196: 53.886234
A197: 676.84519 | B197: 6.602882 | C197: 93.237809 | D197: 39.101085 | E197: 90.465444 | F197: 73.837427 | G197: 62.851974 | H197: 51.92034 | I197: 53.560967 | J197: 29.520553 | K197: 32.681354 | L197: 58.636921 | M197: 54.084909
A198: 678.273134 | B198: 6.788987 | C198: 93.190123 | D198: 39.34215 | E198: 90.450639 | F198: 73.914506 | G198: 63.026734 | H198: 52.064817 | I198: 53.736155 | J198: 29.579553 | K198: 32.893556 | L198: 58.692222 | M198: 54.233426
A199: 679.701077 | B199: 6.953054 | C199: 93.142956 | D199: 39.620717 | E199: 90.556289 | F199: 73.979799 | G199: 63.294541 | H199: 52.230544 | I199: 54.037071 | J199: 29.69519 | K199: 33.067351 | L199: 58.884221 | M199: 54.504403
A200: 681.129021 | B200: 7.108404 | C200: 93.000817 | D200: 39.872108 | E200: 90.39707 | F200: 74.032517 | G200: 63.427222 | H200: 52.384302 | I200: 54.180763 | J200: 29.803121 | K200: 33.309033 | L200: 58.994906 | M200: 54.618462
... 2324 more rows

Sheet ADDED+20
A1: WAVELENGTH | B1: T% | C1: T% | D1: T% | E1: T% | F1: T% | G1: T% | H1: T% | I1: T% | J1: T% | K1: T% | L1: T%
A2: 1/CM | B2: FE3O4 NP | C2: GO | D2: FE-GO | E2: SA-LS | F2: SA-LS | G2: LEVODOPA | H2: LEVODOPA | I2: SA-LS-LD | J2: SA-LS-FE-LD | K2: SA-LS-GO-LD | L2: SA-LS-FE-GO-LD
A3: 399.824163 | B3: 3.402057 | C3: 81.688061 | D3: 27.118572 | E3: 63.023733 | F3: =E3+60 -> 123.023733 | G3: 79.811707 | H3: =G3+30 -> 109.811707 | I3: 52.254376 | J3: 39.554835 | K3: 39.478299 | L3: 38.058841
A4: 401.252106 | B4: 3.298871 | C4: 86.714362 | D4: 28.650192 | E4: 63.76752 | F4: =E4+60 -> 123.76752 | G4: 87.756139 | H4: =G4+30 -> 117.756139 | I4: 58.508639 | J4: 46.865773 | K4: 38.83301 | L4: 48.045155
A5: 402.68005 | B5: 3.459323 | C5: 91.774684 | D5: 29.903648 | E5: 64.438973 | F5: 124.438973 | G5: 92.656494 | H5: 122.656494 | I5: 62.958857 | J5: 50.744847 | K5: 38.3629 | L5: 54.455034
A6: 404.107993 | B6: 3.5494 | C6: 91.667372 | D6: 29.688431 | E6: 65.025689 | F6: 125.025689 | G6: 92.388527 | H6: 122.388527 | I6: 62.925721 | J6: 51.386152 | K6: 38.103548 | L6: 54.581046
A7: 405.535937 | B7: 3.472209 | C7: 92.122539 | D7: 30.190348 | E7: 65.525454 | F7: 125.525454 | G7: 92.458733 | H7: 122.458733 | I7: 63.558267 | J7: 52.366222 | K7: 38.100382 | L7: 54.920897
A8: 406.96388 | B8: 3.696794 | C8: 94.025528 | D8: 30.433625 | E8: 65.912678 | F8: 125.912678 | G8: 93.78237 | H8: 123.78237 | I8: 64.411122 | J8: 52.631993 | K8: 38.316128 | L8: 56.034363
A9: 408.391824 | B9: 3.779548 | C9: 92.107075 | D9: 29.914948 | E9: 66.166479 | F9: 126.166479 | G9: 93.442835 | H9: 123.442835 | I9: 62.65917 | J9: 51.498807 | K9: 38.155755 | L9: 54.970846
A10: 409.819767 | B10: 3.71445 | C10: 92.504718 | D10: 30.311606 | E10: 66.283953 | F10: 126.283953 | G10: 93.784032 | H10: 123.784032 | I10: 62.4524 | J10: 51.740744 | K10: 37.979439 | L10: 55.344676
A11: 411.247711 | B11: 3.887496 | C11: 93.258557 | D11: 30.190182 | E11: 66.27316 | F11: 126.27316 | G11: 93.669124 | H11: 123.669124 | I11: 62.801333 | J11: 51.6695 | K11: 37.987731 | L11: 55.584576
A12: 412.675654 | B12: 3.901207 | C12: 91.86001 | D12: 30.015209 | E12: 66.143707 | F12: 126.143707 | G12: 92.811851 | H12: 122.811851 | I12: 62.863568 | J12: 51.151942 | K12: 37.79953 | L12: 54.729656
A13: 414.103597 | B13: 3.844948 | C13: 93.115956 | D13: 30.517135 | E13: 65.898795 | F13: 125.898795 | G13: 93.205081 | H13: 123.205081 | I13: 63.961034 | J13: 51.726003 | K13: 37.693352 | L13: 55.268923
A14: 415.531541 | B14: 3.901362 | C14: 92.019283 | D14: 29.942358 | E14: 65.560863 | F14: 125.560863 | G14: 91.732255 | H14: 121.732255 | I14: 62.166912 | J14: 50.568811 | K14: 37.607345 | L14: 53.427747
A15: 416.959484 | B15: 3.862229 | C15: 86.259858 | D15: 28.566752 | E15: 65.174187 | F15: 125.174187 | G15: 85.736726 | H15: 115.736726 | I15: 56.58808 | J15: 44.992595 | K15: 37.409759 | L15: 45.806532
A16: 418.387428 | B16: 3.910348 | C16: 78.859911 | D16: 26.59908 | E16: 64.779999 | F16: 124.779999 | G16: 73.985494 | H16: 103.985494 | I16: 48.286318 | J16: 34.446025 | K16: 37.260949 | L16: 32.372599
A17: 419.815371 | B17: 3.935599 | C17: 83.035186 | D17: 27.833688 | E17: 64.506716 | F17: 124.506716 | G17: 79.92816 | H17: 109.92816 | I17: 52.310642 | J17: 39.695842 | K17: 36.742759 | L17: 38.592454
A18: 421.243315 | B18: 3.903377 | C18: 88.817812 | D18: 29.603834 | E18: 64.419858 | F18: 124.419858 | G18: 87.569479 | H18: 117.569479 | I18: 58.185487 | J18: 46.689395 | K18: 36.493902 | L18: 47.543732
A19: 422.671258 | B19: 3.968455 | C19: 88.786786 | D19: 29.398304 | E19: 64.494162 | F19: 124.494162 | G19: 87.864735 | H19: 117.864735 | I19: 58.364366 | J19: 46.415819 | K19: 36.580318 | L19: 47.733188
A20: 424.099202 | B20: 3.94813 | C20: 87.447505 | D20: 29.254651 | E20: 64.686313 | F20: 124.686313 | G20: 86.930613 | H20: 116.930613 | I20: 57.757685 | J20: 45.831819 | K20: 36.495291 | L20: 46.809014
A21: 425.527145 | B21: 3.99803 | C21: 90.050252 | D21: 30.019822 | E21: 64.998001 | F21: 124.998001 | G21: 88.947636 | H21: 118.947636 | I21: 59.496401 | J21: 47.839248 | K21: 36.242644 | L21: 49.503294
A22: 426.955088 | B22: 4.051373 | C22: 92.37839 | D22: 30.28938 | E22: 65.427639 | F22: 125.427639 | G22: 91.701844 | H22: 121.701844 | I22: 61.183091 | J22: 50.008869 | K22: 36.163612 | L22: 52.967953
A23: 428.383032 | B23: 3.941007 | C23: 93.44912 | D23: 30.671042 | E23: 65.940032 | F23: 125.940032 | G23: 93.332905 | H23: 123.332905 | I23: 62.411962 | J23: 51.595434 | K23: 36.123456 | L23: 54.990133
A24: 429.810975 | B24: 3.989846 | C24: 93.917926 | D24: 30.899723 | E24: 66.494517 | F24: 126.494517 | G24: 92.861859 | H24: 122.861859 | I24: 62.40359 | J24: 51.27463 | K24: 35.986975 | L24: 54.449521
A25: 431.238919 | B25: 4.102672 | C25: 92.940644 | D25: 30.646076 | E25: 67.058856 | F25: 127.058856 | G25: 92.016752 | H25: 122.016752 | I25: 61.500546 | J25: 50.366872 | K25: 35.758419 | L25: 53.39851
A26: 432.666862 | B26: 4.080409 | C26: 93.221763 | D26: 30.753386 | E26: 67.590662 | F26: 127.590662 | G26: 92.373917 | H26: 122.373917 | I26: 61.671866 | J26: 50.81608 | K26: 35.558815 | L26: 53.853835
A27: 434.094806 | B27: 4.076418 | C27: 92.686657 | D27: 30.386892 | E27: 68.038781 | F27: 128.038781 | G27: 90.763097 | H27: 120.763097 | I27: 60.467404 | J27: 49.646325 | K27: 35.418326 | L27: 52.015043
A28: 435.522749 | B28: 4.012289 | C28: 90.590429 | D28: 29.960698 | E28: 68.365987 | F28: 128.365987 | G28: 88.623292 | H28: 118.623292 | I28: 58.718485 | J28: 47.650224 | K28: 35.295158 | L28: 49.219441
A29: 436.950692 | B29: 4.043009 | C29: 92.081163 | D29: 30.59956 | E29: 68.584589 | F29: 128.584589 | G29: 90.512777 | H29: 120.512777 | I29: 60.164416 | J29: 48.640053 | K29: 35.228974 | L29: 51.088609
A30: 438.378636 | B30: 4.203843 | C30: 93.906596 | D30: 30.961224 | E30: 68.694013 | F30: 128.694013 | G30: 92.740612 | H30: 122.740612 | I30: 61.718339 | J30: 50.527156 | K30: 35.143452 | L30: 54.074292
A31: 439.806579 | B31: 4.213089 | C31: 93.551821 | D31: 31.024859 | E31: 68.693871 | F31: 128.693871 | G31: 92.724538 | H31: 122.724538 | I31: 61.856652 | J31: 50.896111 | K31: 35.1353 | L31: 54.099848
A32: 441.234523 | B32: 4.269092 | C32: 92.849585 | D32: 30.958895 | E32: 68.607779 | F32: 128.607779 | G32: 90.979953 | H32: 120.979953 | I32: 61.054136 | J32: 49.212213 | K32: 35.284915 | L32: 51.43946
A33: 442.662466 | B33: 4.386625 | C33: 90.979343 | D33: 30.502053 | E33: 68.465561 | F33: 128.465561 | G33: 88.590164 | H33: 118.590164 | I33: 59.220194 | J33: 47.078437 | K33: 35.263346 | L33: 48.691775
A34: 444.09041 | B34: 4.402851 | C34: 90.943692 | D34: 30.868012 | E34: 68.281871 | F34: 128.281871 | G34: 89.020313 | H34: 119.020313 | I34: 59.441189 | J34: 47.704235 | K34: 35.190145 | L34: 49.755895
A35: 445.518353 | B35: 4.530351 | C35: 91.460558 | D35: 31.058603 | E35: 68.07666 | F35: 128.07666 | G35: 89.300472 | H35: 119.300472 | I35: 59.514243 | J35: 47.856232 | K35: 35.285495 | L35: 50.178752
A36: 446.946297 | B36: 4.553946 | C36: 90.28215 | D36: 30.793408 | E36: 67.872157 | F36: 127.872157 | G36: 88.581884 | H36: 118.581884 | I36: 58.593439 | J36: 47.336651 | K36: 35.23 | L36: 49.115052
A37: 448.37424 | B37: 4.555201 | C37: 92.4696 | D37: 31.589642 | E37: 67.674012 | F37: 127.674012 | G37: 91.5902 | H37: 121.5902 | I37: 60.976025 | J37: 49.889406 | K37: 35.215371 | L37: 52.327114
A38: 449.802183 | B38: 4.787302 | C38: 94.346699 | D38: 32.051301 | E38: 67.507595 | F38: 127.507595 | G38: 93.505059 | H38: 123.505059 | I38: 62.650412 | J38: 51.40237 | K38: 35.278597 | L38: 54.717602
A39: 451.230127 | B39: 4.843343 | C39: 91.826635 | D39: 31.644716 | E39: 67.413242 | F39: 127.413242 | G39: 90.49966 | H39: 120.49966 | I39: 60.299955 | J39: 48.949297 | K39: 35.080437 | L39: 51.29673
A40: 452.65807 | B40: 4.863829 | C40: 90.974088 | D40: 31.806225 | E40: 67.389904 | F40: 127.389904 | G40: 88.802146 | H40: 118.802146 | I40: 58.829809 | J40: 47.510111 | K40: 34.847717 | L40: 49.166368
A41: 454.086014 | B41: 5.107643 | C41: 92.668011 | D41: 32.259139 | E41: 67.377845 | F41: 127.377845 | G41: 91.007033 | H41: 121.007033 | I41: 60.324232 | J41: 49.620782 | K41: 34.698521 | L41: 51.849241
A42: 455.513957 | B42: 5.225476 | C42: 92.451166 | D42: 32.213331 | E42: 67.389812 | F42: 127.389812 | G42: 90.830204 | H42: 120.830204 | I42: 60.645653 | J42: 49.787512 | K42: 34.462393 | L42: 51.421803
A43: 456.941901 | B43: 5.370467 | C43: 90.600047 | D43: 31.646695 | E43: 67.445844 | F43: 127.445844 | G43: 87.763332 | H43: 117.763332 | I43: 58.313297 | J43: 46.358654 | K43: 34.279802 | L43: 46.6952
A44: 458.369844 | B44: 5.534286 | C44: 90.137113 | D44: 31.824878 | E44: 67.535421 | F44: 127.535421 | G44: 88.114519 | H44: 118.114519 | I44: 57.647552 | J44: 46.026664 | K44: 34.04988 | L44: 46.923705
A45: 459.797788 | B45: 5.57774 | C45: 92.378233 | D45: 32.909005 | E45: 67.650073 | F45: 127.650073 | G45: 91.180667 | H45: 121.180667 | I45: 60.11608 | J45: 48.974325 | K45: 33.80161 | L45: 51.212163
A46: 461.225731 | B46: 5.793989 | C46: 92.890744 | D46: 33.120216 | E46: 67.784815 | F46: 127.784815 | G46: 91.488109 | H46: 121.488109 | I46: 60.384515 | J46: 49.168646 | K46: 33.746394 | L46: 51.75526
A47: 462.653674 | B47: 6.01696 | C47: 92.712904 | D47: 33.416443 | E47: 67.923391 | F47: 127.923391 | G47: 91.563086 | H47: 121.563086 | I47: 60.247591 | J47: 49.551259 | K47: 33.7016 | L47: 52.072356
A48: 464.081618 | B48: 6.217574 | C48: 94.978491 | D48: 34.375436 | E48: 68.046094 | F48: 128.046094 | G48: 93.649469 | H48: 123.649469 | I48: 62.246862 | J48: 51.778127 | K48: 33.639846 | L48: 54.819227
A49: 465.509561 | B49: 6.437021 | C49: 94.752834 | D49: 34.276844 | E49: 68.145458 | F49: 128.145458 | G49: 93.341422 | H49: 123.341422 | I49: 61.901839 | J49: 51.283219 | K49: 33.581617 | L49: 54.383397
A50: 466.937505 | B50: 6.496584 | C50: 91.777986 | D50: 33.809881 | E50: 68.224101 | F50: 128.224101 | G50: 89.933393 | H50: 119.933393 | I50: 58.989121 | J50: 48.244955 | K50: 33.421773 | L50: 50.274226
A51: 468.365448 | B51: 6.676858 | C51: 91.542836 | D51: 34.227262 | E51: 68.283919 | F51: 128.283919 | G51: 88.816209 | H51: 118.816209 | I51: 58.251084 | J51: 47.357064 | K51: 33.268372 | L51: 48.931407
A52: 469.793392 | B52: 6.897805 | C52: 92.473526 | D52: 34.624814 | E52: 68.346702 | F52: 128.346702 | G52: 90.084591 | H52: 120.084591 | I52: 59.392504 | J52: 48.431837 | K52: 33.15299 | L52: 50.277278
A53: 471.221335 | B53: 6.926453 | C53: 91.899677 | D53: 34.587792 | E53: 68.438517 | F53: 128.438517 | G53: 89.259627 | H53: 119.259627 | I53: 58.852323 | J53: 47.370198 | K53: 33.004159 | L53: 48.816623
A54: 472.649278 | B54: 7.099684 | C54: 91.149329 | D54: 34.552503 | E54: 68.562804 | F54: 128.562804 | G54: 88.131913 | H54: 118.131913 | I54: 57.202912 | J54: 45.610169 | K54: 32.796758 | L54: 46.944158
A55: 474.077222 | B55: 7.297611 | C55: 92.522716 | D55: 35.280623 | E55: 68.722519 | F55: 128.722519 | G55: 90.709083 | H55: 120.709083 | I55: 58.809228 | J55: 48.009371 | K55: 32.524946 | L55: 50.301276
A56: 475.505165 | B56: 7.385651 | C56: 94.405322 | D56: 36.007069 | E56: 68.922505 | F56: 128.922505 | G56: 92.349934 | H56: 122.349934 | I56: 60.783332 | J56: 50.028802 | K56: 32.383858 | L56: 52.72371
A57: 476.933109 | B57: 7.514138 | C57: 94.331222 | D57: 36.00101 | E57: 69.12914 | F57: 129.12914 | G57: 91.981938 | H57: 121.981938 | I57: 60.434741 | J57: 49.738586 | K57: 32.349472 | L57: 52.240666
A58: 478.361052 | B58: 7.547347 | C58: 94.288359 | D58: 36.24938 | E58: 69.307403 | F58: 129.307403 | G58: 92.656089 | H58: 122.656089 | I58: 60.558245 | J58: 50.294336 | K58: 32.287667 | L58: 52.943822
A59: 479.788996 | B59: 7.609352 | C59: 95.020788 | D59: 36.657727 | E59: 69.450821 | F59: 129.450821 | G59: 93.004 | H59: 123.004 | I59: 60.846285 | J59: 50.554996 | K59: 32.228992 | L59: 53.401126
A60: 481.216939 | B60: 7.717308 | C60: 94.117692 | D60: 36.51223 | E60: 69.550647 | F60: 129.550647 | G60: 91.769065 | H60: 121.769065 | I60: 59.649232 | J60: 49.369034 | K60: 32.011774 | L60: 51.917492
A61: 482.644883 | B61: 7.754219 | C61: 93.819925 | D61: 36.656708 | E61: 69.591324 | F61: 129.591324 | G61: 91.538201 | H61: 121.538201 | I61: 59.486231 | J61: 49.069884 | K61: 31.718222 | L61: 51.348159
A62: 484.072826 | B62: 7.893762 | C62: 94.022724 | D62: 36.765686 | E62: 69.592327 | F62: 129.592327 | G62: 91.407547 | H62: 121.407547 | I62: 59.344424 | J62: 48.570526 | K62: 31.627602 | L62: 50.632386
A63: 485.500769 | B63: 8.031326 | C63: 93.136868 | D63: 36.682886 | E63: 69.591259 | F63: 129.591259 | G63: 90.941918 | H63: 120.941918 | I63: 58.616056 | J63: 48.010376 | K63: 31.498461 | L63: 49.944921
A64: 486.928713 | B64: 8.121221 | C64: 94.06713 | D64: 37.215112 | E64: 69.593009 | F64: 129.593009 | G64: 92.161475 | H64: 122.161475 | I64: 59.725674 | J64: 49.29044 | K64: 31.315161 | L64: 51.696858
A65: 488.356656 | B65: 8.225129 | C65: 94.941021 | D65: 37.535662 | E65: 69.590284 | F65: 129.590284 | G65: 92.892914 | H65: 122.892914 | I65: 60.399101 | J65: 50.108045 | K65: 31.214158 | L65: 52.815572
A66: 489.7846 | B66: 8.191527 | C66: 93.733267 | D66: 37.401343 | E66: 69.593666 | F66: 129.593666 | G66: 91.638453 | H66: 121.638453 | I66: 59.225373 | J66: 49.063494 | K66: 31.027538 | L66: 51.368194
A67: 491.212543 | B67: 8.217055 | C67: 92.48856 | D67: 37.187145 | E67: 69.597834 | F67: 129.597834 | G67: 89.724719 | H67: 119.724719 | I67: 57.61764 | J67: 47.236024 | K67: 30.896453 | L67: 49.047364
A68: 492.640487 | B68: 8.313671 | C68: 92.062714 | D68: 37.068652 | E68: 69.57418 | F68: =E68+60 -> 129.57418 | G68: 89.224458 | H68: =G68+30 -> 119.224458 | I68: 57.10096 | J68: 46.771013 | K68: 30.831589 | L68: 48.46021
A69: 494.06843 | B69: 8.27048 | C69: 93.584061 | D69: 37.71955 | E69: 69.516378 | F69: 129.516378 | G69: 91.283547 | H69: 121.283547 | I69: 58.920855 | J69: 48.739484 | K69: 30.663667 | L69: 51.057585
A70: 495.496373 | B70: 8.279776 | C70: 95.113003 | D70: 38.238356 | E70: 69.432937 | F70: 129.432937 | G70: 92.678696 | H70: 122.678696 | I70: 60.023467 | J70: 49.799024 | K70: 30.628362 | L70: 52.825098
A71: 496.924317 | B71: 8.26361 | C71: 94.610426 | D71: 38.117486 | E71: 69.312174 | F71: 129.312174 | G71: 92.468053 | H71: 122.468053 | I71: 59.430675 | J71: 49.372165 | K71: 30.624798 | L71: 52.381274
A72: 498.35226 | B72: 8.189113 | C72: 94.945849 | D72: 38.280183 | E72: 69.143138 | F72: 129.143138 | G72: 93.013779 | H72: 123.013779 | I72: 59.92411 | J72: 49.922052 | K72: 30.447515 | L72: 52.855817
A73: 499.780204 | B73: 8.212917 | C73: 94.491977 | D73: 38.028529 | E73: 68.949636 | F73: 128.949636 | G73: 91.998388 | H73: 121.998388 | I73: 59.205101 | J73: 49.138439 | K73: 30.27214 | L73: 51.748658
A74: 501.208147 | B74: 8.109691 | C74: 91.333157 | D74: 37.242293 | E74: 68.767782 | F74: 128.767782 | G74: 88.416571 | H74: 118.416571 | I74: 56.303763 | J74: 45.924221 | K74: 30.106111 | L74: 47.546537
A75: 502.636091 | B75: 7.963487 | C75: 90.984253 | D75: 37.388077 | E75: 68.604063 | F75: 128.604063 | G75: 88.013761 | H75: 118.013761 | I75: 55.914174 | J75: 45.186282 | K75: 30.005742 | L75: 46.737046
A76: 504.064034 | B76: 7.952054 | C76: 93.081119 | D76: 37.919203 | E76: 68.466555 | F76: 128.466555 | G76: 90.314672 | H76: 120.314672 | I76: 57.372428 | J76: 47.209988 | K76: 29.990041 | L76: 49.359436
A77: 505.491978 | B77: 7.854473 | C77: 93.453724 | D77: 38.023884 | E77: 68.371259 | F77: 128.371259 | G77: 90.636478 | H77: 120.636478 | I77: 57.678979 | J77: 47.730014 | K77: 29.893577 | L77: 49.81393
A78: 506.919921 | B78: 7.791842 | C78: 93.540988 | D78: 38.008877 | E78: 68.296337 | F78: 128.296337 | G78: 90.429021 | H78: 120.429021 | I78: 57.659673 | J78: 47.291004 | K78: 29.778493 | L78: 49.370184
A79: 508.347864 | B79: 7.745491 | C79: 93.727401 | D79: 38.007756 | E79: 68.215775 | F79: 128.215775 | G79: 90.690637 | H79: 120.690637 | I79: 57.631282 | J79: 47.651365 | K79: 29.597403 | L79: 49.902536
A80: 509.775808 | B80: 7.537465 | C80: 93.698583 | D80: 38.041164 | E80: 68.139693 | F80: 128.139693 | G80: 90.528427 | H80: 120.528427 | I80: 57.557376 | J80: 47.824252 | K80: 29.413644 | L80: 50.082875
A81: 511.203751 | B81: 7.360625 | C81: 93.856376 | D81: 37.90296 | E81: 68.07059 | F81: 128.07059 | G81: 90.727564 | H81: 120.727564 | I81: 57.593249 | J81: 47.612951 | K81: 29.363948 | L81: 50.087735
A82: 512.631695 | B82: 7.225917 | C82: 93.869896 | D82: 37.856555 | E82: 68.004103 | F82: 128.004103 | G82: 91.275198 | H82: 121.275198 | I82: 57.838255 | J82: 47.943834 | K82: 29.209274 | L82: 50.564852
A83: 514.059638 | B83: 7.069182 | C83: 93.494675 | D83: 37.830285 | E83: 67.955531 | F83: 127.955531 | G83: 90.516608 | H83: 120.516608 | I83: 57.549097 | J83: 47.526348 | K83: 29.050215 | L83: 49.923972
A84: 515.487582 | B84: 6.945325 | C84: 92.232199 | D84: 37.266378 | E84: 67.948097 | F84: 127.948097 | G84: 88.483486 | H84: 118.483486 | I84: 55.91784 | J84: 45.746216 | K84: 29.077707 | L84: 47.547666
A85: 516.915525 | B85: 6.7626 | C85: 91.139871 | D85: 36.829856 | E85: 68.001453 | F85: 128.001453 | G85: 87.095086 | H85: 117.095086 | I85: 54.701852 | J85: 44.509759 | K85: 29.015194 | L85: 45.663481
A86: 518.343469 | B86: 6.552538 | C86: 91.260803 | D86: 36.75886 | E86: 68.130643 | F86: 128.130643 | G86: 87.206481 | H86: 117.206481 | I86: 54.778769 | J86: 44.384987 | K86: 28.926759 | L86: 45.61057
A87: 519.771412 | B87: 6.384097 | C87: 91.772135 | D87: 36.684874 | E87: 68.331273 | F87: 128.331273 | G87: 88.456218 | H87: 118.456218 | I87: 55.274233 | J87: 45.237594 | K87: 28.883162 | L87: 47.01515
A88: 521.199355 | B88: 6.217002 | C88: 93.488424 | D88: 37.110132 | E88: 68.576354 | F88: 128.576354 | G88: 90.724741 | H88: 120.724741 | I88: 56.949548 | J88: 47.254966 | K88: 28.775245 | L88: 49.70719
A89: 522.627299 | B89: 6.039503 | C89: 95.003949 | D89: 37.296621 | E89: 68.844176 | F89: 128.844176 | G89: 92.021256 | H89: 122.021256 | I89: 58.150739 | J89: 48.433403 | K89: 28.847058 | L89: 51.363415
A90: 524.055242 | B90: 5.785594 | C90: 94.127223 | D90: 36.726351 | E90: 69.129486 | F90: 129.129486 | G90: 90.846376 | H90: 120.846376 | I90: 57.30233 | J90: 47.572547 | K90: 28.942209 | L90: 50.028091
A91: 525.483186 | B91: 5.536109 | C91: 92.97574 | D91: 36.226344 | E91: 69.425946 | F91: 129.425946 | G91: 89.081149 | H91: 119.081149 | I91: 56.344701 | J91: 46.069862 | K91: 28.858095 | L91: 47.823329
A92: 526.911129 | B92: 5.360352 | C92: 93.292338 | D92: 36.013201 | E92: 69.715917 | F92: 129.715917 | G92: 89.742406 | H92: 119.742406 | I92: 56.602569 | J92: 46.220284 | K92: 28.883499 | L92: 48.362873
A93: 528.339073 | B93: 5.104597 | C93: 94.131378 | D93: 35.976827 | E93: 69.983317 | F93: 129.983317 | G93: 91.570255 | H93: 121.570255 | I93: 57.63093 | J93: 47.792123 | K93: 28.95188 | L93: 50.584353
A94: 529.767016 | B94: 4.841793 | C94: 94.826833 | D94: 35.839341 | E94: 70.217559 | F94: 130.217559 | G94: 92.171539 | H94: 122.171539 | I94: 58.470422 | J94: 48.410409 | K94: 28.984334 | L94: 51.481988
A95: 531.194959 | B95: 4.632692 | C95: 94.616228 | D95: 35.344349 | E95: 70.412704 | F95: 130.412704 | G95: 91.981007 | H95: 121.981007 | I95: 58.265528 | J95: 48.059357 | K95: 29.071378 | L95: 51.215094
A96: 532.622903 | B96: 4.394187 | C96: 94.349233 | D96: 35.003861 | E96: 70.568525 | F96: 130.568525 | G96: 92.030316 | H96: 122.030316 | I96: 58.075754 | J96: 48.121361 | K96: 29.0575 | L96: 51.198946
A97: 534.050846 | B97: 4.176901 | C97: 94.413769 | D97: 34.599939 | E97: 70.694345 | F97: 130.694345 | G97: 91.747809 | H97: 121.747809 | I97: 58.060369 | J97: 47.888337 | K97: 28.988493 | L97: 50.873049
A98: 535.47879 | B98: 3.957755 | C98: 93.980434 | D98: 34.00391 | E98: 70.800457 | F98: 130.800457 | G98: 91.327081 | H98: 121.327081 | I98: 57.663837 | J98: 47.430857 | K98: 28.954105 | L98: 50.284194
A99: 536.906733 | B99: 3.71398 | C99: 94.065572 | D99: 33.740967 | E99: 70.876801 | F99: 130.876801 | G99: 91.561572 | H99: 121.561572 | I99: 57.801321 | J99: 47.695177 | K99: 28.90624 | L99: 50.458629
A100: 538.334677 | B100: 3.534559 | C100: 94.365878 | D100: 33.371713 | E100: 70.916256 | F100: 130.916256 | G100: 91.751413 | H100: 121.751413 | I100: 57.886821 | J100: 47.82772 | K100: 28.869286 | L100: 50.654372
A101: 539.76262 | B101: 3.330009 | C101: 94.144362 | D101: 32.884255 | E101: 70.93236 | F101: 130.93236 | G101: 91.747592 | H101: 121.747592 | I101: 57.678339 | J101: 47.70742 | K101: 28.801399 | L101: 50.569617
A102: 541.190564 | B102: 3.069099 | C102: 94.35256 | D102: 32.552329 | E102: 70.923427 | F102: 130.923427 | G102: 91.974274 | H102: 121.974274 | I102: 57.945618 | J102: 47.775386 | K102: 28.780995 | L102: 50.709723
A103: 542.618507 | B103: 2.880783 | C103: 94.430805 | D103: 32.025471 | E103: 70.881583 | F103: 130.881583 | G103: 92.033414 | H103: 122.033414 | I103: 57.830334 | J103: 47.715592 | K103: 28.818429 | L103: 50.693432
A104: 544.04645 | B104: 2.745154 | C104: 94.030515 | D104: 31.495364 | E104: 70.826883 | F104: 130.826883 | G104: 91.517627 | H104: 121.517627 | I104: 57.331063 | J104: 47.287138 | K104: 28.757818 | L104: 50.063387
A105: 545.474394 | B105: 2.562746 | C105: 93.619741 | D105: 30.899934 | E105: 70.779315 | F105: 130.779315 | G105: 90.57599 | H105: 120.57599 | I105: 56.92865 | J105: 46.362625 | K105: 28.727354 | L105: 48.950215
A106: 546.902337 | B106: 2.325176 | C106: 93.169968 | D106: 30.210762 | E106: 70.745716 | F106: 130.745716 | G106: 90.222722 | H106: 120.222722 | I106: 56.542816 | J106: 45.96385 | K106: 28.759651 | L106: 48.551913
A107: 548.330281 | B107: 2.113012 | C107: 93.217247 | D107: 29.810005 | E107: 70.745451 | F107: 130.745451 | G107: 90.386342 | H107: 120.386342 | I107: 56.616721 | J107: 46.26874 | K107: 28.773635 | L107: 48.872468
A108: 549.758224 | B108: 1.954115 | C108: 93.248698 | D108: 29.305994 | E108: 70.793799 | F108: 130.793799 | G108: 90.221193 | H108: 120.221193 | I108: 56.679746 | J108: 46.158265 | K108: 28.875309 | L108: 48.724177
A109: 551.186168 | B109: 1.82208 | C109: 93.374925 | D109: 28.838228 | E109: 70.877435 | F109: 130.877435 | G109: 90.905 | H109: 120.905 | I109: 57.028011 | J109: 46.618135 | K109: 28.928917 | L109: 49.314294
A110: 552.614111 | B110: 1.724736 | C110: 94.243262 | D110: 28.56737 | E110: 70.973518 | F110: 130.973518 | G110: 92.09748 | H110: 122.09748 | I110: 57.962307 | J110: 47.481471 | K110: 28.926289 | L110: 50.520234
A111: 554.042055 | B111: 1.60749 | C111: 94.299653 | D111: 27.984421 | E111: 71.065768 | F111: 131.065768 | G111: 92.049843 | H111: 122.049843 | I111: 57.918553 | J111: 47.250123 | K111: 29.055837 | L111: 50.362099
A112: 555.469998 | B112: 1.449338 | C112: 93.931377 | D112: 27.46748 | E112: 71.142132 | F112: 131.142132 | G112: 91.837932 | H112: 121.837932 | I112: 57.543295 | J112: 47.1226 | K112: 29.203538 | L112: 50.122392
A113: 556.897941 | B113: 1.351954 | C113: 94.28994 | D113: 27.085756 | E113: 71.198943 | F113: 131.198943 | G113: 92.078778 | H113: 122.078778 | I113: 57.909985 | J113: 47.465545 | K113: 29.287029 | L113: 50.584875
A114: 558.325885 | B114: 1.250021 | C114: 94.141573 | D114: 26.558337 | E114: 71.240145 | F114: 131.240145 | G114: 92.004869 | H114: 122.004869 | I114: 57.909307 | J114: 47.358034 | K114: 29.264557 | L114: 50.473432
A115: 559.753828 | B115: 1.092797 | C115: 94.09327 | D115: 26.193719 | E115: 71.265433 | F115: 131.265433 | G115: 92.240864 | H115: 122.240864 | I115: 57.95289 | J115: 47.496095 | K115: 29.180547 | L115: 50.562535
A116: 561.181772 | B116: 1.006789 | C116: 94.342805 | D116: 25.673328 | E116: 71.265807 | F116: 131.265807 | G116: 92.347118 | H116: 122.347118 | I116: 58.142418 | J116: 47.575113 | K116: 29.24355 | L116: 50.768916
A117: 562.609715 | B117: 0.96185 | C117: 93.908107 | D117: 25.082289 | E117: 71.236866 | F117: 131.236866 | G117: 91.950641 | H117: 121.950641 | I117: 57.84726 | J117: 47.245436 | K117: 29.30269 | L117: 50.341458
A118: 564.037659 | B118: 0.91622 | C118: 93.921608 | D118: 24.801303 | E118: 71.181949 | F118: 131.181949 | G118: 92.078904 | H118: 122.078904 | I118: 57.829133 | J118: 47.286941 | K118: 29.256163 | L118: 50.3076
A119: 565.465602 | B119: 0.903838 | C119: 93.949453 | D119: 24.355573 | E119: 71.104579 | F119: 131.104579 | G119: 92.031471 | H119: 122.031471 | I119: 57.658476 | J119: 47.14142 | K119: 29.265744 | L119: 50.13534
A120: 566.893545 | B120: 0.842207 | C120: 93.342546 | D120: 23.94062 | E120: 71.009573 | F120: 131.009573 | G120: 91.382239 | H120: 121.382239 | I120: 57.255976 | J120: 46.62491 | K120: 29.299365 | L120: 49.272641
A121: 568.321489 | B121: 0.781066 | C121: 93.252361 | D121: 23.72305 | E121: 70.908241 | F121: 130.908241 | G121: 91.100179 | H121: 121.100179 | I121: 57.429198 | J121: 46.383061 | K121: 29.392368 | L121: 48.934405
A122: 569.749432 | B122: 0.812325 | C122: 93.057428 | D122: 23.365898 | E122: 70.811566 | F122: 130.811566 | G122: 90.934164 | H122: 120.934164 | I122: 57.25577 | J122: 46.161117 | K122: 29.486735 | L122: 48.889523
A123: 571.177376 | B123: 0.817648 | C123: 93.07759 | D123: 23.261215 | E123: 70.719042 | F123: 130.719042 | G123: 91.167886 | H123: 121.167886 | I123: 57.201871 | J123: 46.360813 | K123: 29.452334 | L123: 49.196533
A124: 572.605319 | B124: 0.789134 | C124: 93.898132 | D124: 23.243774 | E124: 70.627411 | F124: 130.627411 | G124: 92.053046 | H124: 122.053046 | I124: 57.893635 | J124: 47.129535 | K124: 29.471725 | L124: 50.24124
A125: 574.033263 | B125: 0.794344 | C125: 93.410904 | D125: 22.901368 | E125: 70.543437 | F125: 130.543437 | G125: 91.611179 | H125: 121.611179 | I125: 57.443925 | J125: 46.788868 | K125: 29.53163 | L125: 49.727707
A126: 575.461206 | B126: 0.81113 | C126: 92.123871 | D126: 22.640247 | E126: 70.475446 | F126: 130.475446 | G126: 90.049765 | H126: 120.049765 | I126: 56.272505 | J126: 45.42209 | K126: 29.534015 | L126: 47.796517
A127: 576.88915 | B127: 0.817523 | C127: 92.532819 | D127: 22.65193 | E127: 70.42827 | F127: 130.42827 | G127: 90.494625 | H127: 120.494625 | I127: 56.723546 | J127: 45.688919 | K127: 29.564514 | L127: 48.333906
A128: 578.317093 | B128: 0.801035 | C128: 93.265591 | D128: 22.722903 | E128: 70.411976 | F128: 130.411976 | G128: 91.60098 | H128: 121.60098 | I128: 57.5279 | J128: 46.804276 | K128: 29.58469 | L128: 49.804342
A129: 579.745036 | B129: 0.791784 | C129: 92.746782 | D129: 22.616306 | E129: 70.430763 | F129: 130.430763 | G129: 90.68635 | H129: 120.68635 | I129: 56.959258 | J129: 46.191351 | K129: 29.632773 | L129: 48.811996
A130: 581.17298 | B130: 0.822635 | C130: 92.410209 | D130: 22.429525 | E130: 70.474996 | F130: 130.474996 | G130: 90.184364 | H130: 120.184364 | I130: 56.551534 | J130: 45.653012 | K130: 29.673576 | L130: 48.227625
A131: 582.600923 | B131: 0.835098 | C131: 93.019681 | D131: 22.517378 | E131: 70.538986 | F131: 130.538986 | G131: 91.266393 | H131: 121.266393 | I131: 57.257548 | J131: 46.57705 | K131: 29.610939 | L131: 49.513518
A132: 584.028867 | B132: 0.833151 | C132: 93.129354 | D132: 22.513829 | E132: 70.623537 | F132: =E132+60 -> 130.623537 | G132: 91.235112 | H132: =G132+30 -> 121.235112 | I132: 57.46351 | J132: 46.674807 | K132: 29.607136 | L132: 49.538232
A133: 585.45681 | B133: 0.857598 | C133: 92.844284 | D133: 22.434249 | E133: 70.720447 | F133: 130.720447 | G133: 91.006943 | H133: 121.006943 | I133: 57.256533 | J133: 46.437146 | K133: 29.584432 | L133: 49.215283
A134: 586.884754 | B134: 0.885275 | C134: 93.398899 | D134: 22.6882 | E134: 70.820012 | F134: 130.820012 | G134: 92.017195 | H134: 122.017195 | I134: 57.782864 | J134: 47.203183 | K134: 29.48286 | L134: 50.289192
A135: 588.312697 | B135: 0.913144 | C135: 93.746316 | D135: 22.773831 | E135: 70.920631 | F135: 130.920631 | G135: 92.334998 | H135: 122.334998 | I135: 58.064679 | J135: 47.530579 | K135: 29.49268 | L135: 50.757786
A136: 589.74064 | B136: 0.927863 | C136: 93.046728 | D136: 22.629511 | E136: 71.021063 | F136: 131.021063 | G136: 91.464397 | H136: 121.464397 | I136: 57.4456 | J136: 46.897161 | K136: 29.504426 | L136: 49.751855
A137: 591.168584 | B137: 0.928875 | C137: 92.311124 | D137: 22.641925 | E137: 71.119885 | F137: 131.119885 | G137: 90.42866 | H137: 120.42866 | I137: 56.698644 | J137: 45.955413 | K137: 29.504125 | L137: 48.351024
A138: 592.596527 | B138: 0.93051 | C138: 92.302763 | D138: 22.733414 | E138: 71.219911 | F138: 131.219911 | G138: 90.442409 | H138: 120.442409 | I138: 56.667991 | J138: 45.880006 | K138: 29.572255 | L138: 48.353944
A139: 594.024471 | B139: 0.926456 | C139: 92.999118 | D139: 22.969914 | E139: 71.324131 | F139: 131.324131 | G139: 91.62164 | H139: 121.62164 | I139: 57.48102 | J139: 46.987607 | K139: 29.576012 | L139: 49.888029
A140: 595.452414 | B140: 0.972088 | C140: 93.525879 | D140: 23.14213 | E140: 71.428203 | F140: 131.428203 | G140: 92.105294 | H140: 122.105294 | I140: 58.017886 | J140: 47.527588 | K140: 29.626762 | L140: 50.631424
A141: 596.880358 | B141: 1.055813 | C141: 93.496783 | D141: 23.146618 | E141: 71.52121 | F141: 131.52121 | G141: 91.994596 | H141: 121.994596 | I141: 58.049324 | J141: 47.567116 | K141: 29.696775 | L141: 50.656759
A142: 598.308301 | B142: 1.088333 | C142: 93.275798 | D142: 23.252087 | E142: 71.597273 | F142: 131.597273 | G142: 91.80431 | H142: 121.80431 | I142: 57.958572 | J142: 47.468973 | K142: 29.649422 | L142: 50.418803
A143: 599.736245 | B143: 1.092853 | C143: 92.732039 | D143: 23.263689 | E143: 71.658659 | F143: 131.658659 | G143: 90.900052 | H143: 120.900052 | I143: 57.411648 | J143: 46.60235 | K143: 29.644092 | L143: 49.340807
A144: 601.164188 | B144: 1.095297 | C144: 92.81645 | D144: 23.35127 | E144: 71.705594 | F144: 131.705594 | G144: 91.124911 | H144: 121.124911 | I144: 57.467687 | J144: 46.753272 | K144: 29.605232 | L144: 49.605438
A145: 602.592131 | B145: 1.09168 | C145: 93.611928 | D145: 23.615317 | E145: 71.736153 | F145: 131.736153 | G145: 92.320544 | H145: 122.320544 | I145: 58.172776 | J145: 47.727817 | K145: 29.495342 | L145: 50.856355
A146: 604.020075 | B146: 1.113627 | C146: 93.464633 | D146: 23.615087 | E146: 71.749274 | F146: 131.749274 | G146: 92.197907 | H146: 122.197907 | I146: 57.946037 | J146: 47.475314 | K146: 29.446788 | L146: 50.5433
A147: 605.448018 | B147: 1.138455 | C147: 93.307025 | D147: 23.672661 | E147: 71.739263 | F147: 131.739263 | G147: 92.203079 | H147: 122.203079 | I147: 57.814601 | J147: 47.40978 | K147: 29.302882 | L147: 50.39931
A148: 606.875962 | B148: 1.135384 | C148: 93.740352 | D148: 23.834183 | E148: 71.705085 | F148: 131.705085 | G148: 92.663919 | H148: 122.663919 | I148: 58.145842 | J148: 47.726467 | K148: 29.101654 | L148: 50.824028
A149: 608.303905 | B149: 1.123448 | C149: 93.564928 | D149: 23.799072 | E149: 71.657157 | F149: 131.657157 | G149: 92.388168 | H149: 122.388168 | I149: 57.839231 | J149: 47.356139 | K149: 28.973925 | L149: 50.45919
A150: 609.731849 | B150: 1.106035 | C150: 93.606197 | D150: 23.97599 | E150: 71.597809 | F150: 131.597809 | G150: 92.540588 | H150: 122.540588 | I150: 57.792558 | J150: 47.34847 | K150: 28.805351 | L150: 50.451564
A151: 611.159792 | B151: 1.046197 | C151: 93.808825 | D151: 24.205193 | E151: 71.518875 | F151: 131.518875 | G151: 92.67605 | H151: 122.67605 | I151: 57.832194 | J151: 47.330934 | K151: 28.61632 | L151: 50.393228
A152: 612.587736 | B152: 0.925572 | C152: 93.501923 | D152: 24.33599 | E152: 71.424488 | F152: 131.424488 | G152: 92.393193 | H152: 122.393193 | I152: 57.440542 | J152: 47.039605 | K152: 28.443433 | L152: 49.954559
A153: 614.015679 | B153: 0.798899 | C153: 93.449929 | D153: 24.632176 | E153: 71.326985 | F153: 131.326985 | G153: 92.444547 | H153: 122.444547 | I153: 57.30518 | J153: 46.937171 | K153: 28.263169 | L153: 49.780809
A154: 615.443622 | B154: 0.702151 | C154: 93.029331 | D154: 24.751073 | E154: 71.229179 | F154: 131.229179 | G154: 91.662693 | H154: 121.662693 | I154: 56.785109 | J154: 46.231927 | K154: 28.093201 | L154: 48.860672
A155: 616.871566 | B155: 0.656398 | C155: 92.693483 | D155: 24.899629 | E155: 71.130999 | F155: 131.130999 | G155: 91.022689 | H155: 121.022689 | I155: 56.49871 | J155: 46.048889 | K155: 27.908405 | L155: 48.474496
A156: 618.299509 | B156: 0.699785 | C156: 93.297464 | D156: 25.285445 | E156: 71.039461 | F156: 131.039461 | G156: 91.778651 | H156: 121.778651 | I156: 57.041978 | J156: 46.638582 | K156: 27.749479 | L156: 49.19212
A157: 619.727453 | B157: 0.786176 | C157: 93.246545 | D157: 25.42209 | E157: 70.959669 | F157: 130.959669 | G157: 92.004936 | H157: 122.004936 | I157: 56.842617 | J157: 46.305064 | K157: 27.622252 | L157: 48.848983
A158: 621.155396 | B158: 0.888709 | C158: 93.184811 | D158: 25.624266 | E158: 70.891937 | F158: 130.891937 | G158: 92.151038 | H158: 122.151038 | I158: 56.746993 | J158: 46.313352 | K158: 27.538143 | L158: 48.791953
A159: 622.58334 | B159: 0.998268 | C159: 93.65786 | D159: 25.919777 | E159: 70.843534 | F159: 130.843534 | G159: 92.61766 | H159: 122.61766 | I159: 57.217584 | J159: 46.822967 | K159: 27.575335 | L159: 49.379869
A160: 624.011283 | B160: 1.076669 | C160: 93.110138 | D160: 25.953832 | E160: 70.825585 | F160: 130.825585 | G160: 92.030778 | H160: 122.030778 | I160: 56.835797 | J160: 46.367022 | K160: 27.668603 | L160: 48.672553
A161: 625.439226 | B161: 1.178891 | C161: 92.712932 | D161: 26.160502 | E161: 70.838558 | F161: 130.838558 | G161: 91.617849 | H161: 121.617849 | I161: 56.681027 | J161: 46.202631 | K161: 27.81373 | L161: 48.234122
A162: 626.86717 | B162: 1.345855 | C162: 93.269884 | D162: 26.492603 | E162: 70.874668 | F162: 130.874668 | G162: 92.135378 | H162: 122.135378 | I162: 57.334779 | J162: 46.873158 | K162: 28.038287 | L162: 49.04303
A163: 628.295113 | B163: 1.508351 | C163: 93.523553 | D163: 26.735771 | E163: 70.929977 | F163: 130.929977 | G163: 92.478309 | H163: 122.478309 | I163: 57.783068 | J163: 47.488367 | K163: 28.255039 | L163: 49.79274
A164: 629.723057 | B164: 1.64648 | C164: 93.596492 | D164: 27.061484 | E164: 71.002385 | F164: 131.002385 | G164: 92.567318 | H164: 122.567318 | I164: 58.129543 | J164: 47.930069 | K164: 28.493423 | L164: 50.210638
A165: 631.151 | B165: 1.759019 | C165: 93.3745 | D165: 27.245599 | E165: 71.089158 | F165: 131.089158 | G165: 92.203675 | H165: 122.203675 | I165: 58.144898 | J165: 47.929311 | K165: 28.721645 | L165: 50.038103
A166: 632.578944 | B166: 1.852387 | C166: 92.912547 | D166: 27.414655 | E166: 71.192432 | F166: 131.192432 | G166: 91.582493 | H166: 121.582493 | I166: 57.963345 | J166: 47.790388 | K166: 28.899073 | L166: 49.618113
A167: 634.006887 | B167: 1.95979 | C167: 92.763275 | D167: 27.702212 | E167: 71.313311 | F167: 131.313311 | G167: 91.173103 | H167: 121.173103 | I167: 58.027958 | J167: 47.709522 | K167: 29.13847 | L167: 49.378027
A168: 635.434831 | B168: 2.042971 | C168: 92.658681 | D168: 27.934021 | E168: 71.442645 | F168: 131.442645 | G168: 90.990313 | H168: 120.990313 | I168: 58.114891 | J168: 47.724238 | K168: 29.336426 | L168: 49.368321
A169: 636.862774 | B169: 2.120167 | C169: 92.886769 | D169: 28.35178 | E169: 71.576116 | F169: 131.576116 | G169: 91.376688 | H169: 121.376688 | I169: 58.555401 | J169: 48.378098 | K169: 29.444313 | L169: 50.122217
A170: 638.290717 | B170: 2.226005 | C170: 93.026971 | D170: 28.741652 | E170: 71.716771 | F170: 131.716771 | G170: 91.435695 | H170: 121.435695 | I170: 58.820685 | J170: 48.731766 | K170: 29.598854 | L170: 50.482876
A171: 639.718661 | B171: 2.291109 | C171: 92.704837 | D171: 28.964152 | E171: 71.860409 | F171: 131.860409 | G171: 90.904066 | H171: 120.904066 | I171: 58.636469 | J171: 48.594015 | K171: 29.701457 | L171: 50.134236
A172: 641.146604 | B172: 2.372254 | C172: 92.945605 | D172: 29.381278 | E172: 71.999835 | F172: 131.999835 | G172: 91.052683 | H172: 121.052683 | I172: 59.025683 | J172: 49.062654 | K172: 29.773857 | L172: 50.59952
A173: 642.574548 | B173: 2.52591 | C173: 93.114698 | D173: 29.74038 | E173: 72.13317 | F173: 132.13317 | G173: 91.12383 | H173: 121.12383 | I173: 59.295794 | J173: 49.360581 | K173: 29.887266 | L173: 50.96103
A174: 644.002491 | B174: 2.655922 | C174: 92.87203 | D174: 30.079008 | E174: 72.25767 | F174: 132.25767 | G174: 90.737726 | H174: 120.737726 | I174: 59.120656 | J174: 49.294969 | K174: 29.907952 | L174: 50.746411
A175: 645.430435 | B175: 2.7697 | C175: 93.118696 | D175: 30.619111 | E175: 72.370497 | F175: 132.370497 | G175: 90.810939 | H175: 120.810939 | I175: 59.384891 | J175: 49.620035 | K175: 29.916966 | L175: 51.054263
A176: 646.858378 | B176: 2.907891 | C176: 93.05914 | D176: 31.019223 | E176: 72.47198 | F176: 132.47198 | G176: 90.531661 | H176: 120.531661 | I176: 59.446057 | J176: 49.753384 | K176: 29.939426 | L176: 51.149877
A177: 648.286322 | B177: 3.047704 | C177: 92.820521 | D177: 31.443805 | E177: 72.561796 | F177: 132.561796 | G177: 90.02042 | H177: 120.02042 | I177: 59.315942 | J177: 49.773844 | K177: 29.90061 | L177: 50.999289
A178: 649.714265 | B178: 3.204156 | C178: 93.043052 | D178: 31.932225 | E178: 72.6395 | F178: 132.6395 | G178: 90.100038 | H178: 120.100038 | I178: 59.457564 | J178: 49.894588 | K178: 29.910932 | L178: 51.132775
A179: 651.142208 | B179: 3.354407 | C179: 92.884076 | D179: 32.269006 | E179: 72.704554 | F179: 132.704554 | G179: 90.08619 | H179: 120.08619 | I179: 59.373846 | J179: 49.771311 | K179: 29.89301 | L179: 51.000723
A180: 652.570152 | B180: 3.488772 | C180: 92.84699 | D180: 32.759021 | E180: 72.757786 | F180: 132.757786 | G180: 90.18295 | H180: 120.18295 | I180: 59.539424 | J180: 49.918333 | K180: 29.864318 | L180: 51.094567
A181: 653.998095 | B181: 3.636596 | C181: 93.178241 | D181: 33.259382 | E181: 72.802203 | F181: 132.802203 | G181: 90.496656 | H181: 120.496656 | I181: 59.922751 | J181: 50.249757 | K181: 29.960495 | L181: 51.490221
A182: 655.426039 | B182: 3.784928 | C182: 93.148954 | D182: 33.651047 | E182: 72.837598 | F182: 132.837598 | G182: 90.534421 | H182: 120.534421 | I182: 59.998174 | J182: 50.45159 | K182: 30.055583 | L182: 51.705988
A183: 656.853982 | B183: 3.949987 | C183: 93.126126 | D183: 34.111605 | E183: 72.868391 | F183: 132.868391 | G183: 90.558071 | H183: 120.558071 | I183: 60.115608 | J183: 50.637919 | K183: 30.195422 | L183: 51.876771
A184: 658.281926 | B184: 4.136597 | C184: 92.994693 | D184: 34.454584 | E184: 72.905194 | F184: 132.905194 | G184: 90.414074 | H184: 120.414074 | I184: 60.078542 | J184: 50.516977 | K184: 30.431483 | L184: 51.660814
A185: 659.709869 | B185: 4.328436 | C185: 92.908233 | D185: 34.880962 | E185: 72.948275 | F185: 132.948275 | G185: 90.596658 | H185: 120.596658 | I185: 60.223325 | J185: 50.66624 | K185: 30.641135 | L185: 51.72103
A186: 661.137812 | B186: 4.522723 | C186: 93.28505 | D186: 35.403877 | E186: 72.992711 | F186: 132.992711 | G186: 91.324557 | H186: 121.324557 | I186: 60.856181 | J186: 51.326777 | K186: 30.85242 | L186: 52.505976
A187: 662.565756 | B187: 4.705924 | C187: 93.267426 | D187: 35.771735 | E187: 73.040764 | F187: 133.040764 | G187: 91.46041 | H187: 121.46041 | I187: 61.064394 | J187: 51.585941 | K187: 31.040226 | L187: 52.799625
A188: 663.993699 | B188: 4.909747 | C188: 93.289004 | D188: 36.235968 | E188: 73.09415 | F188: 133.09415 | G188: 91.885603 | H188: 121.885603 | I188: 61.28487 | J188: 51.772558 | K188: 31.178482 | L188: 53.065699
A189: 665.421643 | B189: 5.12602 | C189: 93.602424 | D189: 36.39094 | E189: 73.154045 | F189: 133.154045 | G189: 92.013424 | H189: 122.013424 | I189: 61.73567 | J189: 52.231133 | K189: 31.380834 | L189: 53.555078
A190: 666.849586 | B190: 5.327364 | C190: 92.181368 | D190: 35.736995 | E190: 73.223523 | F190: 133.223523 | G190: 87.03314 | H190: 117.03314 | I190: 60.862108 | J190: 52.085118 | K190: 31.736859 | L190: 52.130873
A191: 668.27753 | B191: 5.574608 | C191: 88.790106 | D191: 35.402158 | E191: 73.303372 | F191: 133.303372 | G191: 78.307047 | H191: 108.307047 | I191: 58.512482 | J191: 50.671064 | K191: 32.219657 | L191: 48.447369
A192: 669.705473 | B192: 5.761986 | C192: 90.291739 | D192: 36.739988 | E192: 73.388907 | F192: 133.388907 | G192: 83.847198 | H192: 113.847198 | I192: 59.699941 | J192: 50.926488 | K192: 32.113225 | L192: 50.085935
A193: 671.133417 | B193: 5.897291 | C193: 92.464423 | D193: 37.65025 | E193: 73.477357 | F193: 133.477357 | G193: 89.672565 | H193: 119.672565 | I193: 61.499828 | J193: 52.156207 | K193: 32.022644 | L193: 52.632473
A194: 672.56136 | B194: 6.079428 | C194: 93.264353 | D194: 38.218657 | E194: 73.568896 | F194: 133.568896 | G194: 91.058745 | H194: 121.058745 | I194: 62.359092 | J194: 52.992309 | K194: 32.179781 | L194: 53.744143
A195: 673.989303 | B195: 6.261375 | C195: 93.105677 | D195: 38.480311 | E195: 73.662612 | F195: 133.662612 | G195: 90.759616 | H195: 120.759616 | I195: 62.391497 | J195: 53.113684 | K195: 32.343319 | L195: 53.802824
A196: 675.417247 | B196: 6.413927 | C196: 93.081044 | D196: 38.738659 | E196: 73.753146 | F196: =E196+60 -> 133.753146 | G196: 90.697028 | H196: =G196+30 -> 120.697028 | I196: 62.526171 | J196: 53.275781 | K196: 32.442961 | L196: 53.886234
A197: 676.84519 | B197: 6.602882 | C197: 93.237809 | D197: 39.101085 | E197: 73.837427 | F197: 133.837427 | G197: 90.465444 | H197: 120.465444 | I197: 62.851974 | J197: 53.560967 | K197: 32.681354 | L197: 54.084909
A198: 678.273134 | B198: 6.788987 | C198: 93.190123 | D198: 39.34215 | E198: 73.914506 | F198: 133.914506 | G198: 90.450639 | H198: 120.450639 | I198: 63.026734 | J198: 53.736155 | K198: 32.893556 | L198: 54.233426
A199: 679.701077 | B199: 6.953054 | C199: 93.142956 | D199: 39.620717 | E199: 73.979799 | F199: 133.979799 | G199: 90.556289 | H199: 120.556289 | I199: 63.294541 | J199: 54.037071 | K199: 33.067351 | L199: 54.504403
A200: 681.129021 | B200: 7.108404 | C200: 93.000817 | D200: 39.872108 | E200: 74.032517 | F200: 134.032517 | G200: 90.39707 | H200: 120.39707 | I200: 63.427222 | J200: 54.180763 | K200: 33.309033 | L200: 54.618462
... 2324 more rows

Sheet final all
A1: WAVELENGTH | B1: T% | C1: T% | D1: T% | E1: T% | F1: T% | G1: T% | H1: T% | I1: T% | J1: T% | K1: T% | L1: T% | M1: T% | N1: T% | O1: T% | P1: T% | Q1: T% | R1: T% | S1: T% | T1: T% | U1: T% | V1: T% | W1: T%
A2: 1/CM | B2: FE3O4 NP | C2: FE-GO | D2: FE-GO | E2: LEVODOPA | F2: LEVODOPA | G2: GO | H2: SA-LS-GO | I2: SA-LS-GO | J2: SA-LS | K2: SA-LS | L2: SA-LS-LD | M2: SA-LS-LD | N2: SA-LS-FE | O2: SA-LS-FE | P2: SA-LS-FE-LD | Q2: SA-LS-FE-LD | R2: SA-LS-GO-LD | S2: SA-LS-GO-LD | T2: SA-LS-FE-GO | U2: SA-LS-FE-GO | V2: SA-LS-FE-GO-LD | W2: SA-LS-FE-GO-LD
A3: 399.824163 | B3: 3.402057 | C3: =D3-20 -> 7.118572 | D3: 27.118572 | E3: =F3+10 -> 89.811707 | F3: 79.811707 | G3: 81.688061 | H3: =I3+160 -> 191.328784 | I3: 31.328784 | J3: 63.023733 | K3: =J3+200 -> 263.023733 | L3: 52.254376 | M3: =L3+100 -> 152.254376 | N3: =O3+75 -> 125.176774 | O3: 50.176774 | P3: =Q3+60 -> 99.554835 | Q3: 39.554835 | R3: =S3+270 -> 309.478299 | S3: 39.478299 | T3: =U3+200 -> 256.926942 | U3: 56.926942 | V3: =W3+350 -> 388.058841 | W3: 38.058841
A4: 401.252106 | B4: 3.298871 | C4: =D4-10 -> 18.650192 | D4: 28.650192 | E4: =F4+10 -> 97.756139 | F4: 87.756139 | G4: 86.714362 | H4: =I4+160 -> 192.275996 | I4: 32.275996 | J4: 63.76752 | K4: =J4+200 -> 263.76752 | L4: 58.508639 | M4: =L4+100 -> 158.508639 | N4: 125.502057 | O4: 50.502057 | P4: =Q4+60 -> 106.865773 | Q4: 46.865773 | R4: =S4+270 -> 308.83301 | S4: 38.83301 | T4: =U4+180 -> 238.09114 | U4: 58.09114 | V4: =W4+350 -> 398.045155 | W4: 48.045155
A5: 402.68005 | B5: 3.459323 | C5: 19.903648 | D5: 29.903648 | E5: 102.656494 | F5: 92.656494 | G5: 91.774684 | H5: 193.047194 | I5: 33.047194 | J5: 64.438973 | K5: 264.438973 | L5: 62.958857 | M5: 162.958857 | N5: 125.059417 | O5: 50.059417 | P5: 110.744847 | Q5: 50.744847 | R5: 308.3629 | S5: 38.3629 | T5: 239.726562 | U5: 59.726562 | V5: 404.455034 | W5: 54.455034
A6: 404.107993 | B6: 3.5494 | C6: 19.688431 | D6: 29.688431 | E6: 102.388527 | F6: 92.388527 | G6: 91.667372 | H6: 192.474715 | I6: 32.474715 | J6: 65.025689 | K6: 265.025689 | L6: 62.925721 | M6: 162.925721 | N6: 124.877046 | O6: 49.877046 | P6: 111.386152 | Q6: 51.386152 | R6: 308.103548 | S6: 38.103548 | T6: 238.903673 | U6: 58.903673 | V6: 404.581046 | W6: 54.581046
A7: 405.535937 | B7: 3.472209 | C7: 20.190348 | D7: 30.190348 | E7: 102.458733 | F7: 92.458733 | G7: 92.122539 | H7: 192.893902 | I7: 32.893902 | J7: 65.525454 | K7: 265.525454 | L7: 63.558267 | M7: 163.558267 | N7: 124.770878 | O7: 49.770878 | P7: 112.366222 | Q7: 52.366222 | R7: 308.100382 | S7: 38.100382 | T7: 238.84471 | U7: 58.84471 | V7: 404.920897 | W7: 54.920897
A8: 406.96388 | B8: 3.696794 | C8: 20.433625 | D8: 30.433625 | E8: 103.78237 | F8: 93.78237 | G8: 94.025528 | H8: 192.793045 | I8: 32.793045 | J8: 65.912678 | K8: 265.912678 | L8: 64.411122 | M8: 164.411122 | N8: 124.384525 | O8: 49.384525 | P8: 112.631993 | Q8: 52.631993 | R8: 308.316128 | S8: 38.316128 | T8: 239.623093 | U8: 59.623093 | V8: 406.034363 | W8: 56.034363
A9: 408.391824 | B9: 3.779548 | C9: 19.914948 | D9: 29.914948 | E9: 103.442835 | F9: 93.442835 | G9: 92.107075 | H9: 192.308602 | I9: 32.308602 | J9: 66.166479 | K9: 266.166479 | L9: 62.65917 | M9: 162.65917 | N9: 124.757544 | O9: 49.757544 | P9: 111.498807 | Q9: 51.498807 | R9: 308.155755 | S9: 38.155755 | T9: 238.778049 | U9: 58.778049 | V9: 404.970846 | W9: 54.970846
A10: 409.819767 | B10: 3.71445 | C10: 20.311606 | D10: 30.311606 | E10: 103.784032 | F10: 93.784032 | G10: 92.504718 | H10: 192.636167 | I10: 32.636167 | J10: 66.283953 | K10: 266.283953 | L10: 62.4524 | M10: 162.4524 | N10: 124.965729 | O10: 49.965729 | P10: 111.740744 | Q10: 51.740744 | R10: 307.979439 | S10: 37.979439 | T10: 239.019943 | U10: 59.019943 | V10: 405.344676 | W10: 55.344676
A11: 411.247711 | B11: 3.887496 | C11: 20.190182 | D11: 30.190182 | E11: 103.669124 | F11: 93.669124 | G11: 93.258557 | H11: 192.067579 | I11: 32.067579 | J11: 66.27316 | K11: 266.27316 | L11: 62.801333 | M11: 162.801333 | N11: 124.476455 | O11: 49.476455 | P11: 111.6695 | Q11: 51.6695 | R11: 307.987731 | S11: 37.987731 | T11: 239.269207 | U11: 59.269207 | V11: 405.584576 | W11: 55.584576
A12: 412.675654 | B12: 3.901207 | C12: 20.015209 | D12: 30.015209 | E12: 102.811851 | F12: 92.811851 | G12: 91.86001 | H12: 191.861354 | I12: 31.861354 | J12: 66.143707 | K12: 266.143707 | L12: 62.863568 | M12: 162.863568 | N12: 124.317096 | O12: 49.317096 | P12: 111.151942 | Q12: 51.151942 | R12: 307.79953 | S12: 37.79953 | T12: 238.833515 | U12: 58.833515 | V12: 404.729656 | W12: 54.729656
A13: 414.103597 | B13: 3.844948 | C13: 20.517135 | D13: 30.517135 | E13: 103.205081 | F13: 93.205081 | G13: 93.115956 | H13: 192.112282 | I13: 32.112282 | J13: 65.898795 | K13: 265.898795 | L13: 63.961034 | M13: 163.961034 | N13: 123.984221 | O13: 48.984221 | P13: 111.726003 | Q13: 51.726003 | R13: 307.693352 | S13: 37.693352 | T13: 239.30969 | U13: 59.30969 | V13: 405.268923 | W13: 55.268923
A14: 415.531541 | B14: 3.901362 | C14: 19.942358 | D14: 29.942358 | E14: 101.732255 | F14: 91.732255 | G14: 92.019283 | H14: 191.519381 | I14: 31.519381 | J14: 65.560863 | K14: 265.560863 | L14: 62.166912 | M14: 162.166912 | N14: 123.834236 | O14: 48.834236 | P14: 110.568811 | Q14: 50.568811 | R14: 307.607345 | S14: 37.607345 | T14: 238.799816 | U14: 58.799816 | V14: 403.427747 | W14: 53.427747
A15: 416.959484 | B15: 3.862229 | C15: 18.566752 | D15: 28.566752 | E15: 95.736726 | F15: 85.736726 | G15: 86.259858 | H15: 191.192162 | I15: 31.192162 | J15: 65.174187 | K15: 265.174187 | L15: 56.58808 | M15: 156.58808 | N15: 124.684897 | O15: 49.684897 | P15: 104.992595 | Q15: 44.992595 | R15: 307.409759 | S15: 37.409759 | T15: 237.248135 | U15: 57.248135 | V15: 395.806532 | W15: 45.806532
A16: 418.387428 | B16: 3.910348 | C16: 16.59908 | D16: 26.59908 | E16: 83.985494 | F16: 73.985494 | G16: 78.859911 | H16: 190.133108 | I16: 30.133108 | J16: 64.779999 | K16: 264.779999 | L16: 48.286318 | M16: 148.286318 | N16: 125.904458 | O16: 50.904458 | P16: 94.446025 | Q16: 34.446025 | R16: 307.260949 | S16: 37.260949 | T16: 234.057379 | U16: 54.057379 | V16: 382.372599 | W16: 32.372599
A17: 419.815371 | B17: 3.935599 | C17: 17.833688 | D17: 27.833688 | E17: 89.92816 | F17: 79.92816 | G17: 83.035186 | H17: 189.713659 | I17: 29.713659 | J17: 64.506716 | K17: 264.506716 | L17: 52.310642 | M17: 152.310642 | N17: 125.246154 | O17: 50.246154 | P17: 99.695842 | Q17: 39.695842 | R17: 306.742759 | S17: 36.742759 | T17: 233.993196 | U17: 53.993196 | V17: 388.592454 | W17: 38.592454
A18: 421.243315 | B18: 3.903377 | C18: 19.603834 | D18: 29.603834 | E18: 97.569479 | F18: 87.569479 | G18: 88.817812 | H18: 190.652029 | I18: 30.652029 | J18: 64.419858 | K18: 264.419858 | L18: 58.185487 | M18: 158.185487 | N18: 124.674465 | O18: 49.674465 | P18: 106.689395 | Q18: 46.689395 | R18: 306.493902 | S18: 36.493902 | T18: 237.077327 | U18: 57.077327 | V18: 397.543732 | W18: 47.543732
A19: 422.671258 | B19: 3.968455 | C19: 19.398304 | D19: 29.398304 | E19: 97.864735 | F19: 87.864735 | G19: 88.786786 | H19: 190.359957 | I19: 30.359957 | J19: 64.494162 | K19: 264.494162 | L19: 58.364366 | M19: 158.364366 | N19: 124.470187 | O19: 49.470187 | P19: 106.415819 | Q19: 46.415819 | R19: 306.580318 | S19: 36.580318 | T19: 237.680998 | U19: 57.680998 | V19: 397.733188 | W19: 47.733188
A20: 424.099202 | B20: 3.94813 | C20: 19.254651 | D20: 29.254651 | E20: 96.930613 | F20: 86.930613 | G20: 87.447505 | H20: 190.307808 | I20: 30.307808 | J20: 64.686313 | K20: 264.686313 | L20: 57.757685 | M20: 157.757685 | N20: 124.221849 | O20: 49.221849 | P20: 105.831819 | Q20: 45.831819 | R20: 306.495291 | S20: 36.495291 | T20: 236.928674 | U20: 56.928674 | V20: 396.809014 | W20: 46.809014
A21: 425.527145 | B21: 3.99803 | C21: 20.019822 | D21: 30.019822 | E21: 98.947636 | F21: 88.947636 | G21: 90.050252 | H21: 191.032245 | I21: 31.032245 | J21: 64.998001 | K21: 264.998001 | L21: 59.496401 | M21: 159.496401 | N21: 124.203822 | O21: 49.203822 | P21: 107.839248 | Q21: 47.839248 | R21: 306.242644 | S21: 36.242644 | T21: 237.790316 | U21: 57.790316 | V21: 399.503294 | W21: 49.503294
A22: 426.955088 | B22: 4.051373 | C22: 20.28938 | D22: 30.28938 | E22: 101.701844 | F22: 91.701844 | G22: 92.37839 | H22: 191.175022 | I22: 31.175022 | J22: 65.427639 | K22: 265.427639 | L22: 61.183091 | M22: 161.183091 | N22: 124.324591 | O22: 49.324591 | P22: 110.008869 | Q22: 50.008869 | R22: 306.163612 | S22: 36.163612 | T22: 238.366922 | U22: 58.366922 | V22: 402.967953 | W22: 52.967953
A23: 428.383032 | B23: 3.941007 | C23: 20.671042 | D23: 30.671042 | E23: 103.332905 | F23: 93.332905 | G23: 93.44912 | H23: 191.373847 | I23: 31.373847 | J23: 65.940032 | K23: 265.940032 | L23: 62.411962 | M23: 162.411962 | N23: 124.191751 | O23: 49.191751 | P23: 111.595434 | Q23: 51.595434 | R23: 306.123456 | S23: 36.123456 | T23: 238.564458 | U23: 58.564458 | V23: 404.990133 | W23: 54.990133
A24: 429.810975 | B24: 3.989846 | C24: 20.899723 | D24: 30.899723 | E24: 102.861859 | F24: 92.861859 | G24: 93.917926 | H24: 191.160873 | I24: 31.160873 | J24: 66.494517 | K24: 266.494517 | L24: 62.40359 | M24: 162.40359 | N24: 124.033149 | O24: 49.033149 | P24: 111.27463 | Q24: 51.27463 | R24: 305.986975 | S24: 35.986975 | T24: 238.776232 | U24: 58.776232 | V24: 404.449521 | W24: 54.449521
A25: 431.238919 | B25: 4.102672 | C25: 20.646076 | D25: 30.646076 | E25: 102.016752 | F25: 92.016752 | G25: 92.940644 | H25: 190.632589 | I25: 30.632589 | J25: 67.058856 | K25: 267.058856 | L25: 61.500546 | M25: 161.500546 | N25: 124.155647 | O25: 49.155647 | P25: 110.366872 | Q25: 50.366872 | R25: 305.758419 | S25: 35.758419 | T25: 238.305597 | U25: 58.305597 | V25: 403.39851 | W25: 53.39851
A26: 432.666862 | B26: 4.080409 | C26: 20.753386 | D26: 30.753386 | E26: 102.373917 | F26: 92.373917 | G26: 93.221763 | H26: 190.898246 | I26: 30.898246 | J26: 67.590662 | K26: 267.590662 | L26: 61.671866 | M26: 161.671866 | N26: 124.237991 | O26: 49.237991 | P26: 110.81608 | Q26: 50.81608 | R26: 305.558815 | S26: 35.558815 | T26: 238.455516 | U26: 58.455516 | V26: 403.853835 | W26: 53.853835
A27: 434.094806 | B27: 4.076418 | C27: 20.386892 | D27: 30.386892 | E27: 100.763097 | F27: 90.763097 | G27: 92.686657 | H27: 190.695818 | I27: 30.695818 | J27: 68.038781 | K27: 268.038781 | L27: 60.467404 | M27: 160.467404 | N27: 124.235826 | O27: 49.235826 | P27: 109.646325 | Q27: 49.646325 | R27: 305.418326 | S27: 35.418326 | T27: 238.365782 | U27: 58.365782 | V27: 402.015043 | W27: 52.015043
A28: 435.522749 | B28: 4.012289 | C28: 19.960698 | D28: 29.960698 | E28: 98.623292 | F28: 88.623292 | G28: 90.590429 | H28: 190.245452 | I28: 30.245452 | J28: 68.365987 | K28: 268.365987 | L28: 58.718485 | M28: 158.718485 | N28: 124.125041 | O28: 49.125041 | P28: 107.650224 | Q28: 47.650224 | R28: 305.295158 | S28: 35.295158 | T28: 237.480318 | U28: 57.480318 | V28: 399.219441 | W28: 49.219441
A29: 436.950692 | B29: 4.043009 | C29: 20.59956 | D29: 30.59956 | E29: 100.512777 | F29: 90.512777 | G29: 92.081163 | H29: 190.653786 | I29: 30.653786 | J29: 68.584589 | K29: 268.584589 | L29: 60.164416 | M29: 160.164416 | N29: 123.781322 | O29: 48.781322 | P29: 108.640053 | Q29: 48.640053 | R29: 305.228974 | S29: 35.228974 | T29: 237.783936 | U29: 57.783936 | V29: 401.088609 | W29: 51.088609
A30: 438.378636 | B30: 4.203843 | C30: 20.961224 | D30: 30.961224 | E30: 102.740612 | F30: 92.740612 | G30: 93.906596 | H30: 190.841372 | I30: 30.841372 | J30: 68.694013 | K30: 268.694013 | L30: 61.718339 | M30: 161.718339 | N30: 123.806035 | O30: 48.806035 | P30: 110.527156 | Q30: 50.527156 | R30: 305.143452 | S30: 35.143452 | T30: 238.163003 | U30: 58.163003 | V30: 404.074292 | W30: 54.074292
A31: 439.806579 | B31: 4.213089 | C31: 21.024859 | D31: 31.024859 | E31: 102.724538 | F31: 92.724538 | G31: 93.551821 | H31: 190.880784 | I31: 30.880784 | J31: 68.693871 | K31: 268.693871 | L31: 61.856652 | M31: 161.856652 | N31: 124.044082 | O31: 49.044082 | P31: 110.896111 | Q31: 50.896111 | R31: 305.1353 | S31: 35.1353 | T31: 238.0208 | U31: 58.0208 | V31: 404.099848 | W31: 54.099848
A32: 441.234523 | B32: 4.269092 | C32: 20.958895 | D32: 30.958895 | E32: 100.979953 | F32: 90.979953 | G32: 92.849585 | H32: 190.751118 | I32: 30.751118 | J32: 68.607779 | K32: 268.607779 | L32: 61.054136 | M32: 161.054136 | N32: 124.034619 | O32: 49.034619 | P32: 109.212213 | Q32: 49.212213 | R32: 305.284915 | S32: 35.284915 | T32: 237.832525 | U32: 57.832525 | V32: 401.43946 | W32: 51.43946
A33: 442.662466 | B33: 4.386625 | C33: 20.502053 | D33: 30.502053 | E33: 98.590164 | F33: 88.590164 | G33: 90.979343 | H33: 190.282026 | I33: 30.282026 | J33: 68.465561 | K33: 268.465561 | L33: 59.220194 | M33: 159.220194 | N33: 124.076135 | O33: 49.076135 | P33: 107.078437 | Q33: 47.078437 | R33: 305.263346 | S33: 35.263346 | T33: 237.159164 | U33: 57.159164 | V33: 398.691775 | W33: 48.691775
A34: 444.09041 | B34: 4.402851 | C34: 20.868012 | D34: 30.868012 | E34: 99.020313 | F34: 89.020313 | G34: 90.943692 | H34: 190.595188 | I34: 30.595188 | J34: 68.281871 | K34: 268.281871 | L34: 59.441189 | M34: 159.441189 | N34: 124.194383 | O34: 49.194383 | P34: 107.704235 | Q34: 47.704235 | R34: 305.190145 | S34: 35.190145 | T34: 237.615828 | U34: 57.615828 | V34: 399.755895 | W34: 49.755895
A35: 445.518353 | B35: 4.530351 | C35: 21.058603 | D35: 31.058603 | E35: 99.300472 | F35: 89.300472 | G35: 91.460558 | H35: 190.652991 | I35: 30.652991 | J35: 68.07666 | K35: 268.07666 | L35: 59.514243 | M35: 159.514243 | N35: 124.323333 | O35: 49.323333 | P35: 107.856232 | Q35: 47.856232 | R35: 305.285495 | S35: 35.285495 | T35: 238.232143 | U35: 58.232143 | V35: 400.178752 | W35: 50.178752
A36: 446.946297 | B36: 4.553946 | C36: 20.793408 | D36: 30.793408 | E36: 98.581884 | F36: 88.581884 | G36: 90.28215 | H36: 190.230839 | I36: 30.230839 | J36: 67.872157 | K36: 267.872157 | L36: 58.593439 | M36: 158.593439 | N36: 124.565197 | O36: 49.565197 | P36: 107.336651 | Q36: 47.336651 | R36: 305.23 | S36: 35.23 | T36: 237.724278 | U36: 57.724278 | V36: 399.115052 | W36: 49.115052
A37: 448.37424 | B37: 4.555201 | C37: 21.589642 | D37: 31.589642 | E37: 101.5902 | F37: 91.5902 | G37: 92.4696 | H37: 190.475919 | I37: 30.475919 | J37: 67.674012 | K37: 267.674012 | L37: 60.976025 | M37: 160.976025 | N37: 124.488075 | O37: 49.488075 | P37: 109.889406 | Q37: 49.889406 | R37: 305.215371 | S37: 35.215371 | T37: 238.246491 | U37: 58.246491 | V37: 402.327114 | W37: 52.327114
A38: 449.802183 | B38: 4.787302 | C38: 22.051301 | D38: 32.051301 | E38: 103.505059 | F38: 93.505059 | G38: 94.346699 | H38: 190.604614 | I38: 30.604614 | J38: 67.507595 | K38: 267.507595 | L38: 62.650412 | M38: 162.650412 | N38: 124.204984 | O38: 49.204984 | P38: 111.40237 | Q38: 51.40237 | R38: 305.278597 | S38: 35.278597 | T38: 238.717787 | U38: 58.717787 | V38: 404.717602 | W38: 54.717602
A39: 451.230127 | B39: 4.843343 | C39: 21.644716 | D39: 31.644716 | E39: 100.49966 | F39: 90.49966 | G39: 91.826635 | H39: 190.464604 | I39: 30.464604 | J39: 67.413242 | K39: 267.413242 | L39: 60.299955 | M39: 160.299955 | N39: 123.991384 | O39: 48.991384 | P39: 108.949297 | Q39: 48.949297 | R39: 305.080437 | S39: 35.080437 | T39: 238.02308 | U39: 58.02308 | V39: 401.29673 | W39: 51.29673
A40: 452.65807 | B40: 4.863829 | C40: 21.806225 | D40: 31.806225 | E40: 98.802146 | F40: 88.802146 | G40: 90.974088 | H40: 190.316865 | I40: 30.316865 | J40: 67.389904 | K40: 267.389904 | L40: 58.829809 | M40: 158.829809 | N40: 123.758245 | O40: 48.758245 | P40: 107.510111 | Q40: 47.510111 | R40: 304.847717 | S40: 34.847717 | T40: 237.908791 | U40: 57.908791 | V40: 399.166368 | W40: 49.166368
A41: 454.086014 | B41: 5.107643 | C41: 22.259139 | D41: 32.259139 | E41: 101.007033 | F41: 91.007033 | G41: 92.668011 | H41: 189.914707 | I41: 29.914707 | J41: 67.377845 | K41: 267.377845 | L41: 60.324232 | M41: 160.324232 | N41: 123.761373 | O41: 48.761373 | P41: 109.620782 | Q41: 49.620782 | R41: 304.698521 | S41: 34.698521 | T41: 238.153898 | U41: 58.153898 | V41: 401.849241 | W41: 51.849241
A42: 455.513957 | B42: 5.225476 | C42: 22.213331 | D42: 32.213331 | E42: 100.830204 | F42: 90.830204 | G42: 92.451166 | H42: 189.755181 | I42: 29.755181 | J42: 67.389812 | K42: 267.389812 | L42: 60.645653 | M42: 160.645653 | N42: 123.866148 | O42: 48.866148 | P42: 109.787512 | Q42: 49.787512 | R42: 304.462393 | S42: 34.462393 | T42: 237.939519 | U42: 57.939519 | V42: 401.421803 | W42: 51.421803
A43: 456.941901 | B43: 5.370467 | C43: 21.646695 | D43: 31.646695 | E43: 97.763332 | F43: 87.763332 | G43: 90.600047 | H43: 189.50823 | I43: 29.50823 | J43: 67.445844 | K43: 267.445844 | L43: 58.313297 | M43: 158.313297 | N43: 123.903512 | O43: 48.903512 | P43: 106.358654 | Q43: 46.358654 | R43: 304.279802 | S43: 34.279802 | T43: 237.239784 | U43: 57.239784 | V43: 396.6952 | W43: 46.6952
A44: 458.369844 | B44: 5.534286 | C44: 21.824878 | D44: 31.824878 | E44: 98.114519 | F44: 88.114519 | G44: 90.137113 | H44: 189.284036 | I44: 29.284036 | J44: 67.535421 | K44: 267.535421 | L44: 57.647552 | M44: 157.647552 | N44: 123.738013 | O44: 48.738013 | P44: 106.026664 | Q44: 46.026664 | R44: 304.04988 | S44: 34.04988 | T44: 236.891904 | U44: 56.891904 | V44: 396.923705 | W44: 46.923705
A45: 459.797788 | B45: 5.57774 | C45: 22.909005 | D45: 32.909005 | E45: 101.180667 | F45: 91.180667 | G45: 92.378233 | H45: 189.486851 | I45: 29.486851 | J45: 67.650073 | K45: 267.650073 | L45: 60.11608 | M45: 160.11608 | N45: 123.237384 | O45: 48.237384 | P45: 108.974325 | Q45: 48.974325 | R45: 303.80161 | S45: 33.80161 | T45: 237.826474 | U45: 57.826474 | V45: 401.212163 | W45: 51.212163
A46: 461.225731 | B46: 5.793989 | C46: 23.120216 | D46: 33.120216 | E46: 101.488109 | F46: 91.488109 | G46: 92.890744 | H46: 189.324582 | I46: 29.324582 | J46: 67.784815 | K46: 267.784815 | L46: 60.384515 | M46: 160.384515 | N46: 122.960738 | O46: 47.960738 | P46: 109.168646 | Q46: 49.168646 | R46: 303.746394 | S46: 33.746394 | T46: 238.003017 | U46: 58.003017 | V46: 401.75526 | W46: 51.75526
A47: 462.653674 | B47: 6.01696 | C47: 23.416443 | D47: 33.416443 | E47: 101.563086 | F47: 91.563086 | G47: 92.712904 | H47: 189.306124 | I47: 29.306124 | J47: 67.923391 | K47: 267.923391 | L47: 60.247591 | M47: 160.247591 | N47: 123.013927 | O47: 48.013927 | P47: 109.551259 | Q47: 49.551259 | R47: 303.7016 | S47: 33.7016 | T47: 237.837295 | U47: 57.837295 | V47: 402.072356 | W47: 52.072356
A48: 464.081618 | B48: 6.217574 | C48: 24.375436 | D48: 34.375436 | E48: 103.649469 | F48: 93.649469 | G48: 94.978491 | H48: 189.363553 | I48: 29.363553 | J48: 68.046094 | K48: 268.046094 | L48: 62.246862 | M48: 162.246862 | N48: 122.917056 | O48: 47.917056 | P48: 111.778127 | Q48: 51.778127 | R48: 303.639846 | S48: 33.639846 | T48: 238.527021 | U48: 58.527021 | V48: 404.819227 | W48: 54.819227
A49: 465.509561 | B49: 6.437021 | C49: 24.276844 | D49: 34.276844 | E49: 103.341422 | F49: 93.341422 | G49: 94.752834 | H49: 188.886332 | I49: 28.886332 | J49: 68.145458 | K49: 268.145458 | L49: 61.901839 | M49: 161.901839 | N49: 122.76445 | O49: 47.76445 | P49: 111.283219 | Q49: 51.283219 | R49: 303.581617 | S49: 33.581617 | T49: 238.231034 | U49: 58.231034 | V49: 404.383397 | W49: 54.383397
A50: 466.937505 | B50: 6.496584 | C50: 23.809881 | D50: 33.809881 | E50: 99.933393 | F50: 89.933393 | G50: 91.777986 | H50: 188.618199 | I50: 28.618199 | J50: 68.224101 | K50: 268.224101 | L50: 58.989121 | M50: 158.989121 | N50: 122.576694 | O50: 47.576694 | P50: 108.244955 | Q50: 48.244955 | R50: 303.421773 | S50: 33.421773 | T50: 237.237809 | U50: 57.237809 | V50: 400.274226 | W50: 50.274226
A51: 468.365448 | B51: 6.676858 | C51: 24.227262 | D51: 34.227262 | E51: 98.816209 | F51: 88.816209 | G51: 91.542836 | H51: 188.471874 | I51: 28.471874 | J51: 68.283919 | K51: 268.283919 | L51: 58.251084 | M51: 158.251084 | N51: 122.423068 | O51: 47.423068 | P51: 107.357064 | Q51: 47.357064 | R51: 303.268372 | S51: 33.268372 | T51: 236.949239 | U51: 56.949239 | V51: 398.931407 | W51: 48.931407
A52: 469.793392 | B52: 6.897805 | C52: 24.624814 | D52: 34.624814 | E52: 100.084591 | F52: 90.084591 | G52: 92.473526 | H52: 188.280229 | I52: 28.280229 | J52: 68.346702 | K52: 268.346702 | L52: 59.392504 | M52: 159.392504 | N52: 122.509447 | O52: 47.509447 | P52: 108.431837 | Q52: 48.431837 | R52: 303.15299 | S52: 33.15299 | T52: 236.682436 | U52: 56.682436 | V52: 400.277278 | W52: 50.277278
A53: 471.221335 | B53: 6.926453 | C53: 24.587792 | D53: 34.587792 | E53: 99.259627 | F53: 89.259627 | G53: 91.899677 | H53: 188.232426 | I53: 28.232426 | J53: 68.438517 | K53: 268.438517 | L53: 58.852323 | M53: 158.852323 | N53: 122.49411 | O53: 47.49411 | P53: 107.370198 | Q53: 47.370198 | R53: 303.004159 | S53: 33.004159 | T53: 236.368371 | U53: 56.368371 | V53: 398.816623 | W53: 48.816623
A54: 472.649278 | B54: 7.099684 | C54: 24.552503 | D54: 34.552503 | E54: 98.131913 | F54: 88.131913 | G54: 91.149329 | H54: 187.772884 | I54: 27.772884 | J54: 68.562804 | K54: 268.562804 | L54: 57.202912 | M54: 157.202912 | N54: 122.446105 | O54: 47.446105 | P54: 105.610169 | Q54: 45.610169 | R54: 302.796758 | S54: 32.796758 | T54: 236.245339 | U54: 56.245339 | V54: 396.944158 | W54: 46.944158
A55: 474.077222 | B55: 7.297611 | C55: 25.280623 | D55: 35.280623 | E55: 100.709083 | F55: 90.709083 | G55: 92.522716 | H55: 187.764006 | I55: 27.764006 | J55: 68.722519 | K55: 268.722519 | L55: 58.809228 | M55: 158.809228 | N55: 122.411106 | O55: 47.411106 | P55: 108.009371 | Q55: 48.009371 | R55: 302.524946 | S55: 32.524946 | T55: 236.615702 | U55: 56.615702 | V55: 400.301276 | W55: 50.301276
A56: 475.505165 | B56: 7.385651 | C56: 26.007069 | D56: 36.007069 | E56: 102.349934 | F56: 92.349934 | G56: 94.405322 | H56: 188.015003 | I56: 28.015003 | J56: 68.922505 | K56: 268.922505 | L56: 60.783332 | M56: 160.783332 | N56: 122.142742 | O56: 47.142742 | P56: 110.028802 | Q56: 50.028802 | R56: 302.383858 | S56: 32.383858 | T56: 237.079998 | U56: 57.079998 | V56: 402.72371 | W56: 52.72371
A57: 476.933109 | B57: 7.514138 | C57: 26.00101 | D57: 36.00101 | E57: 101.981938 | F57: 91.981938 | G57: 94.331222 | H57: 187.574342 | I57: 27.574342 | J57: 69.12914 | K57: 269.12914 | L57: 60.434741 | M57: 160.434741 | N57: 122.13508 | O57: 47.13508 | P57: 109.738586 | Q57: 49.738586 | R57: 302.349472 | S57: 32.349472 | T57: 236.925961 | U57: 56.925961 | V57: 402.240666 | W57: 52.240666
A58: 478.361052 | B58: 7.547347 | C58: 26.24938 | D58: 36.24938 | E58: 102.656089 | F58: 92.656089 | G58: 94.288359 | H58: 187.318651 | I58: 27.318651 | J58: 69.307403 | K58: 269.307403 | L58: 60.558245 | M58: 160.558245 | N58: 122.269665 | O58: 47.269665 | P58: 110.294336 | Q58: 50.294336 | R58: 302.287667 | S58: 32.287667 | T58: 237.048409 | U58: 57.048409 | V58: 402.943822 | W58: 52.943822
A59: 479.788996 | B59: 7.609352 | C59: 26.657727 | D59: 36.657727 | E59: 103.004 | F59: 93.004 | G59: 95.020788 | H59: 187.315742 | I59: 27.315742 | J59: 69.450821 | K59: 269.450821 | L59: 60.846285 | M59: 160.846285 | N59: 122.031331 | O59: 47.031331 | P59: 110.554996 | Q59: 50.554996 | R59: 302.228992 | S59: 32.228992 | T59: 237.192408 | U59: 57.192408 | V59: 403.401126 | W59: 53.401126
A60: 481.216939 | B60: 7.717308 | C60: 26.51223 | D60: 36.51223 | E60: 101.769065 | F60: 91.769065 | G60: 94.117692 | H60: 187.12633 | I60: 27.12633 | J60: 69.550647 | K60: 269.550647 | L60: 59.649232 | M60: 159.649232 | N60: 121.915071 | O60: 46.915071 | P60: 109.369034 | Q60: 49.369034 | R60: 302.011774 | S60: 32.011774 | T60: 236.625572 | U60: 56.625572 | V60: 401.917492 | W60: 51.917492
A61: 482.644883 | B61: 7.754219 | C61: 26.656708 | D61: 36.656708 | E61: 101.538201 | F61: 91.538201 | G61: 93.819925 | H61: 187.206827 | I61: 27.206827 | J61: 69.591324 | K61: 269.591324 | L61: 59.486231 | M61: 159.486231 | N61: 122.028236 | O61: 47.028236 | P61: 109.069884 | Q61: 49.069884 | R61: 301.718222 | S61: 31.718222 | T61: 236.687763 | U61: 56.687763 | V61: 401.348159 | W61: 51.348159
A62: 484.072826 | B62: 7.893762 | C62: 26.765686 | D62: 36.765686 | E62: 101.407547 | F62: 91.407547 | G62: 94.022724 | H62: 187.118255 | I62: 27.118255 | J62: 69.592327 | K62: 269.592327 | L62: 59.344424 | M62: 159.344424 | N62: 122.034949 | O62: 47.034949 | P62: 108.570526 | Q62: 48.570526 | R62: 301.627602 | S62: 31.627602 | T62: 236.663092 | U62: 56.663092 | V62: 400.632386 | W62: 50.632386
A63: 485.500769 | B63: 8.031326 | C63: 26.682886 | D63: 36.682886 | E63: 100.941918 | F63: 90.941918 | G63: 93.136868 | H63: 187.00038 | I63: 27.00038 | J63: 69.591259 | K63: 269.591259 | L63: 58.616056 | M63: 158.616056 | N63: 121.946601 | O63: 46.946601 | P63: 108.010376 | Q63: 48.010376 | R63: 301.498461 | S63: 31.498461 | T63: 236.112272 | U63: 56.112272 | V63: 399.944921 | W63: 49.944921
A64: 486.928713 | B64: 8.121221 | C64: 27.215112 | D64: 37.215112 | E64: 102.161475 | F64: 92.161475 | G64: 94.06713 | H64: 187.161391 | I64: 27.161391 | J64: 69.593009 | K64: 269.593009 | L64: 59.725674 | M64: 159.725674 | N64: 121.783303 | O64: 46.783303 | P64: 109.29044 | Q64: 49.29044 | R64: 301.315161 | S64: 31.315161 | T64: 236.59792 | U64: 56.59792 | V64: 401.696858 | W64: 51.696858
A65: 488.356656 | B65: 8.225129 | C65: 27.535662 | D65: 37.535662 | E65: 102.892914 | F65: 92.892914 | G65: 94.941021 | H65: 187.08744 | I65: 27.08744 | J65: 69.590284 | K65: 269.590284 | L65: 60.399101 | M65: 160.399101 | N65: 121.795948 | O65: 46.795948 | P65: 110.108045 | Q65: 50.108045 | R65: 301.214158 | S65: 31.214158 | T65: 236.9577 | U65: 56.9577 | V65: 402.815572 | W65: 52.815572
A66: 489.7846 | B66: 8.191527 | C66: 27.401343 | D66: 37.401343 | E66: 101.638453 | F66: 91.638453 | G66: 93.733267 | H66: 187.067936 | I66: 27.067936 | J66: 69.593666 | K66: 269.593666 | L66: 59.225373 | M66: 159.225373 | N66: 121.921201 | O66: 46.921201 | P66: 109.063494 | Q66: 49.063494 | R66: 301.027538 | S66: 31.027538 | T66: 236.654429 | U66: 56.654429 | V66: 401.368194 | W66: 51.368194
A67: 491.212543 | B67: 8.217055 | C67: 27.187145 | D67: 37.187145 | E67: 99.724719 | F67: 89.724719 | G67: 92.48856 | H67: 186.929624 | I67: 26.929624 | J67: 69.597834 | K67: 269.597834 | L67: 57.61764 | M67: 157.61764 | N67: =O67+75 -> 121.847387 | O67: 46.847387 | P67: 107.236024 | Q67: 47.236024 | R67: 300.896453 | S67: 30.896453 | T67: 236.35255 | U67: 56.35255 | V67: 399.047364 | W67: 49.047364
A68: 492.640487 | B68: 8.313671 | C68: =D68-10 -> 27.068652 | D68: 37.068652 | E68: =F68+10 -> 99.224458 | F68: 89.224458 | G68: 92.062714 | H68: =I68+160 -> 186.671982 | I68: 26.671982 | J68: 69.57418 | K68: =J68+200 -> 269.57418 | L68: 57.10096 | M68: =L68+100 -> 157.10096 | N68: 121.784276 | O68: 46.784276 | P68: =Q68+60 -> 106.771013 | Q68: 46.771013 | R68: =S68+270 -> 300.831589 | S68: 30.831589 | T68: =U68+180 -> 235.958703 | U68: 55.958703 | V68: =W68+350 -> 398.46021 | W68: 48.46021
A69: 494.06843 | B69: 8.27048 | C69: 27.71955 | D69: 37.71955 | E69: 101.283547 | F69: 91.283547 | G69: 93.584061 | H69: 187.054525 | I69: 27.054525 | J69: 69.516378 | K69: 269.516378 | L69: 58.920855 | M69: 158.920855 | N69: 121.759158 | O69: 46.759158 | P69: 108.739484 | Q69: 48.739484 | R69: 300.663667 | S69: 30.663667 | T69: 236.334804 | U69: 56.334804 | V69: 401.057585 | W69: 51.057585
A70: 495.496373 | B70: 8.279776 | C70: 28.238356 | D70: 38.238356 | E70: 102.678696 | F70: 92.678696 | G70: 95.113003 | H70: 187.222812 | I70: 27.222812 | J70: 69.432937 | K70: 269.432937 | L70: 60.023467 | M70: 160.023467 | N70: 121.691108 | O70: 46.691108 | P70: 109.799024 | Q70: 49.799024 | R70: 300.628362 | S70: 30.628362 | T70: 236.716514 | U70: 56.716514 | V70: 402.825098 | W70: 52.825098
A71: 496.924317 | B71: 8.26361 | C71: 28.117486 | D71: 38.117486 | E71: 102.468053 | F71: 92.468053 | G71: 94.610426 | H71: 186.984956 | I71: 26.984956 | J71: 69.312174 | K71: 269.312174 | L71: 59.430675 | M71: 159.430675 | N71: 121.773942 | O71: 46.773942 | P71: 109.372165 | Q71: 49.372165 | R71: 300.624798 | S71: 30.624798 | T71: 236.445391 | U71: 56.445391 | V71: 402.381274 | W71: 52.381274
A72: 498.35226 | B72: 8.189113 | C72: 28.280183 | D72: 38.280183 | E72: 103.013779 | F72: 93.013779 | G72: 94.945849 | H72: 187.037117 | I72: 27.037117 | J72: 69.143138 | K72: 269.143138 | L72: 59.92411 | M72: 159.92411 | N72: 121.85922 | O72: 46.85922 | P72: 109.922052 | Q72: 49.922052 | R72: 300.447515 | S72: 30.447515 | T72: 236.827189 | U72: 56.827189 | V72: 402.855817 | W72: 52.855817
A73: 499.780204 | B73: 8.212917 | C73: 28.028529 | D73: 38.028529 | E73: 101.998388 | F73: 91.998388 | G73: 94.491977 | H73: 186.823263 | I73: 26.823263 | J73: 68.949636 | K73: 268.949636 | L73: 59.205101 | M73: 159.205101 | N73: 121.834576 | O73: 46.834576 | P73: 109.138439 | Q73: 49.138439 | R73: 300.27214 | S73: 30.27214 | T73: 236.661706 | U73: 56.661706 | V73: 401.748658 | W73: 51.748658
A74: 501.208147 | B74: 8.109691 | C74: 27.242293 | D74: 37.242293 | E74: 98.416571 | F74: 88.416571 | G74: 91.333157 | H74: 186.518903 | I74: 26.518903 | J74: 68.767782 | K74: 268.767782 | L74: 56.303763 | M74: 156.303763 | N74: 121.804023 | O74: 46.804023 | P74: 105.924221 | Q74: 45.924221 | R74: 300.106111 | S74: 30.106111 | T74: 235.443327 | U74: 55.443327 | V74: 397.546537 | W74: 47.546537
A75: 502.636091 | B75: 7.963487 | C75: 27.388077 | D75: 37.388077 | E75: 98.013761 | F75: 88.013761 | G75: 90.984253 | H75: 186.614001 | I75: 26.614001 | J75: 68.604063 | K75: 268.604063 | L75: 55.914174 | M75: 155.914174 | N75: 121.800659 | O75: 46.800659 | P75: 105.186282 | Q75: 45.186282 | R75: 300.005742 | S75: 30.005742 | T75: 235.477155 | U75: 55.477155 | V75: 396.737046 | W75: 46.737046
A76: 504.064034 | B76: 7.952054 | C76: 27.919203 | D76: 37.919203 | E76: 100.314672 | F76: 90.314672 | G76: 93.081119 | H76: 186.657298 | I76: 26.657298 | J76: 68.466555 | K76: 268.466555 | L76: 57.372428 | M76: 157.372428 | N76: 121.821609 | O76: 46.821609 | P76: 107.209988 | Q76: 47.209988 | R76: 299.990041 | S76: 29.990041 | T76: 236.028053 | U76: 56.028053 | V76: 399.359436 | W76: 49.359436
A77: 505.491978 | B77: 7.854473 | C77: 28.023884 | D77: 38.023884 | E77: 100.636478 | F77: 90.636478 | G77: 93.453724 | H77: 186.755233 | I77: 26.755233 | J77: 68.371259 | K77: 268.371259 | L77: 57.678979 | M77: 157.678979 | N77: 121.751315 | O77: 46.751315 | P77: 107.730014 | Q77: 47.730014 | R77: 299.893577 | S77: 29.893577 | T77: 235.915518 | U77: 55.915518 | V77: 399.81393 | W77: 49.81393
A78: 506.919921 | B78: 7.791842 | C78: 28.008877 | D78: 38.008877 | E78: 100.429021 | F78: 90.429021 | G78: 93.540988 | H78: 186.703417 | I78: 26.703417 | J78: 68.296337 | K78: 268.296337 | L78: 57.659673 | M78: 157.659673 | N78: 121.761465 | O78: 46.761465 | P78: 107.291004 | Q78: 47.291004 | R78: 299.778493 | S78: 29.778493 | T78: 235.876784 | U78: 55.876784 | V78: 399.370184 | W78: 49.370184
A79: 508.347864 | B79: 7.745491 | C79: 28.007756 | D79: 38.007756 | E79: 100.690637 | F79: 90.690637 | G79: 93.727401 | H79: 186.514782 | I79: 26.514782 | J79: 68.215775 | K79: 268.215775 | L79: 57.631282 | M79: 157.631282 | N79: 121.912464 | O79: 46.912464 | P79: 107.651365 | Q79: 47.651365 | R79: 299.597403 | S79: 29.597403 | T79: 235.904794 | U79: 55.904794 | V79: 399.902536 | W79: 49.902536
A80: 509.775808 | B80: 7.537465 | C80: 28.041164 | D80: 38.041164 | E80: 100.528427 | F80: 90.528427 | G80: 93.698583 | H80: 186.627768 | I80: 26.627768 | J80: 68.139693 | K80: 268.139693 | L80: 57.557376 | M80: 157.557376 | N80: 121.812526 | O80: 46.812526 | P80: 107.824252 | Q80: 47.824252 | R80: 299.413644 | S80: 29.413644 | T80: 236.059626 | U80: 56.059626 | V80: 400.082875 | W80: 50.082875
A81: 511.203751 | B81: 7.360625 | C81: 27.90296 | D81: 37.90296 | E81: 100.727564 | F81: 90.727564 | G81: 93.856376 | H81: 186.54247 | I81: 26.54247 | J81: 68.07059 | K81: 268.07059 | L81: 57.593249 | M81: 157.593249 | N81: 121.690835 | O81: 46.690835 | P81: 107.612951 | Q81: 47.612951 | R81: 299.363948 | S81: 29.363948 | T81: 236.111017 | U81: 56.111017 | V81: 400.087735 | W81: 50.087735
A82: 512.631695 | B82: 7.225917 | C82: 27.856555 | D82: 37.856555 | E82: 101.275198 | F82: 91.275198 | G82: 93.869896 | H82: 186.43916 | I82: 26.43916 | J82: 68.004103 | K82: 268.004103 | L82: 57.838255 | M82: 157.838255 | N82: 121.769402 | O82: 46.769402 | P82: 107.943834 | Q82: 47.943834 | R82: 299.209274 | S82: 29.209274 | T82: 235.993033 | U82: 55.993033 | V82: 400.564852 | W82: 50.564852
A83: 514.059638 | B83: 7.069182 | C83: 27.830285 | D83: 37.830285 | E83: 100.516608 | F83: 90.516608 | G83: 93.494675 | H83: 186.56854 | I83: 26.56854 | J83: 67.955531 | K83: 267.955531 | L83: 57.549097 | M83: 157.549097 | N83: 121.758581 | O83: 46.758581 | P83: 107.526348 | Q83: 47.526348 | R83: 299.050215 | S83: 29.050215 | T83: 236.117987 | U83: 56.117987 | V83: 399.923972 | W83: 49.923972
A84: 515.487582 | B84: 6.945325 | C84: 27.266378 | D84: 37.266378 | E84: 98.483486 | F84: 88.483486 | G84: 92.232199 | H84: 186.434994 | I84: 26.434994 | J84: 67.948097 | K84: 267.948097 | L84: 55.91784 | M84: 155.91784 | N84: 121.817618 | O84: 46.817618 | P84: 105.746216 | Q84: 45.746216 | R84: 299.077707 | S84: 29.077707 | T84: 235.842663 | U84: 55.842663 | V84: 397.547666 | W84: 47.547666
A85: 516.915525 | B85: 6.7626 | C85: 26.829856 | D85: 36.829856 | E85: 97.095086 | F85: 87.095086 | G85: 91.139871 | H85: 186.386023 | I85: 26.386023 | J85: 68.001453 | K85: 268.001453 | L85: 54.701852 | M85: 154.701852 | N85: 121.920608 | O85: 46.920608 | P85: 104.509759 | Q85: 44.509759 | R85: 299.015194 | S85: 29.015194 | T85: 235.291807 | U85: 55.291807 | V85: 395.663481 | W85: 45.663481
A86: 518.343469 | B86: 6.552538 | C86: 26.75886 | D86: 36.75886 | E86: 97.206481 | F86: 87.206481 | G86: 91.260803 | H86: 186.403551 | I86: 26.403551 | J86: 68.130643 | K86: 268.130643 | L86: 54.778769 | M86: 154.778769 | N86: 121.827309 | O86: 46.827309 | P86: 104.384987 | Q86: 44.384987 | R86: 298.926759 | S86: 28.926759 | T86: 235.19943 | U86: 55.19943 | V86: 395.61057 | W86: 45.61057
A87: 519.771412 | B87: 6.384097 | C87: 26.684874 | D87: 36.684874 | E87: 98.456218 | F87: 88.456218 | G87: 91.772135 | H87: 186.315696 | I87: 26.315696 | J87: 68.331273 | K87: 268.331273 | L87: 55.274233 | M87: 155.274233 | N87: 121.929615 | O87: 46.929615 | P87: 105.237594 | Q87: 45.237594 | R87: 298.883162 | S87: 28.883162 | T87: 235.364157 | U87: 55.364157 | V87: 397.01515 | W87: 47.01515
A88: 521.199355 | B88: 6.217002 | C88: 27.110132 | D88: 37.110132 | E88: 100.724741 | F88: 90.724741 | G88: 93.488424 | H88: 186.690928 | I88: 26.690928 | J88: 68.576354 | K88: 268.576354 | L88: 56.949548 | M88: 156.949548 | N88: 122.090972 | O88: 47.090972 | P88: 107.254966 | Q88: 47.254966 | R88: 298.775245 | S88: 28.775245 | T88: 236.106965 | U88: 56.106965 | V88: 399.70719 | W88: 49.70719
A89: 522.627299 | B89: 6.039503 | C89: 27.296621 | D89: 37.296621 | E89: 102.021256 | F89: 92.021256 | G89: 95.003949 | H89: 186.921043 | I89: 26.921043 | J89: 68.844176 | K89: 268.844176 | L89: 58.150739 | M89: 158.150739 | N89: 122.016716 | O89: 47.016716 | P89: 108.433403 | Q89: 48.433403 | R89: 298.847058 | S89: 28.847058 | T89: 236.687747 | U89: 56.687747 | V89: 401.363415 | W89: 51.363415
A90: 524.055242 | B90: 5.785594 | C90: 26.726351 | D90: 36.726351 | E90: 100.846376 | F90: 90.846376 | G90: 94.127223 | H90: 186.718416 | I90: 26.718416 | J90: 69.129486 | K90: 269.129486 | L90: 57.30233 | M90: 157.30233 | N90: 122.025676 | O90: 47.025676 | P90: 107.572547 | Q90: 47.572547 | R90: 298.942209 | S90: 28.942209 | T90: 236.268213 | U90: 56.268213 | V90: 400.028091 | W90: 50.028091
A91: 525.483186 | B91: 5.536109 | C91: 26.226344 | D91: 36.226344 | E91: 99.081149 | F91: 89.081149 | G91: 92.97574 | H91: 186.69236 | I91: 26.69236 | J91: 69.425946 | K91: 269.425946 | L91: 56.344701 | M91: 156.344701 | N91: 122.132865 | O91: 47.132865 | P91: 106.069862 | Q91: 46.069862 | R91: 298.858095 | S91: 28.858095 | T91: 235.862462 | U91: 55.862462 | V91: 397.823329 | W91: 47.823329
A92: 526.911129 | B92: 5.360352 | C92: 26.013201 | D92: 36.013201 | E92: 99.742406 | F92: 89.742406 | G92: 93.292338 | H92: 186.771648 | I92: 26.771648 | J92: 69.715917 | K92: 269.715917 | L92: 56.602569 | M92: 156.602569 | N92: 122.142267 | O92: 47.142267 | P92: 106.220284 | Q92: 46.220284 | R92: 298.883499 | S92: 28.883499 | T92: 236.014848 | U92: 56.014848 | V92: 398.362873 | W92: 48.362873
A93: 528.339073 | B93: 5.104597 | C93: 25.976827 | D93: 35.976827 | E93: 101.570255 | F93: 91.570255 | G93: 94.131378 | H93: 186.924323 | I93: 26.924323 | J93: 69.983317 | K93: 269.983317 | L93: 57.63093 | M93: 157.63093 | N93: 122.158117 | O93: 47.158117 | P93: 107.792123 | Q93: 47.792123 | R93: 298.95188 | S93: 28.95188 | T93: 236.30896 | U93: 56.30896 | V93: 400.584353 | W93: 50.584353
A94: 529.767016 | B94: 4.841793 | C94: 25.839341 | D94: 35.839341 | E94: 102.171539 | F94: 92.171539 | G94: 94.826833 | H94: 186.980701 | I94: 26.980701 | J94: 70.217559 | K94: 270.217559 | L94: 58.470422 | M94: 158.470422 | N94: 122.156922 | O94: 47.156922 | P94: 108.410409 | Q94: 48.410409 | R94: 298.984334 | S94: 28.984334 | T94: 236.539003 | U94: 56.539003 | V94: 401.481988 | W94: 51.481988
A95: 531.194959 | B95: 4.632692 | C95: 25.344349 | D95: 35.344349 | E95: 101.981007 | F95: 91.981007 | G95: 94.616228 | H95: 186.795334 | I95: 26.795334 | J95: 70.412704 | K95: 270.412704 | L95: 58.265528 | M95: 158.265528 | N95: 122.10348 | O95: 47.10348 | P95: 108.059357 | Q95: 48.059357 | R95: 299.071378 | S95: 29.071378 | T95: 236.45597 | U95: 56.45597 | V95: 401.215094 | W95: 51.215094
A96: 532.622903 | B96: 4.394187 | C96: 25.003861 | D96: 35.003861 | E96: 102.030316 | F96: 92.030316 | G96: 94.349233 | H96: 186.849477 | I96: 26.849477 | J96: 70.568525 | K96: 270.568525 | L96: 58.075754 | M96: 158.075754 | N96: 122.051158 | O96: 47.051158 | P96: 108.121361 | Q96: 48.121361 | R96: 299.0575 | S96: 29.0575 | T96: 236.40498 | U96: 56.40498 | V96: 401.198946 | W96: 51.198946
A97: 534.050846 | B97: 4.176901 | C97: 24.599939 | D97: 34.599939 | E97: 101.747809 | F97: 91.747809 | G97: 94.413769 | H97: 186.818182 | I97: 26.818182 | J97: 70.694345 | K97: 270.694345 | L97: 58.060369 | M97: 158.060369 | N97: 122.000732 | O97: 47.000732 | P97: 107.888337 | Q97: 47.888337 | R97: 298.988493 | S97: 28.988493 | T97: 236.318249 | U97: 56.318249 | V97: 400.873049 | W97: 50.873049
A98: 535.47879 | B98: 3.957755 | C98: 24.00391 | D98: 34.00391 | E98: 101.327081 | F98: 91.327081 | G98: 93.980434 | H98: 186.605203 | I98: 26.605203 | J98: 70.800457 | K98: 270.800457 | L98: 57.663837 | M98: 157.663837 | N98: 121.987078 | O98: 46.987078 | P98: 107.430857 | Q98: 47.430857 | R98: 298.954105 | S98: 28.954105 | T98: 236.09261 | U98: 56.09261 | V98: 400.284194 | W98: 50.284194
A99: 536.906733 | B99: 3.71398 | C99: 23.740967 | D99: 33.740967 | E99: 101.561572 | F99: 91.561572 | G99: 94.065572 | H99: 186.741992 | I99: 26.741992 | J99: 70.876801 | K99: 270.876801 | L99: 57.801321 | M99: 157.801321 | N99: 121.981618 | O99: 46.981618 | P99: 107.695177 | Q99: 47.695177 | R99: 298.90624 | S99: 28.90624 | T99: 236.28065 | U99: 56.28065 | V99: 400.458629 | W99: 50.458629
A100: 538.334677 | B100: 3.534559 | C100: 23.371713 | D100: 33.371713 | E100: 101.751413 | F100: 91.751413 | G100: 94.365878 | H100: 186.783557 | I100: 26.783557 | J100: 70.916256 | K100: 270.916256 | L100: 57.886821 | M100: 157.886821 | N100: 121.894799 | O100: 46.894799 | P100: 107.82772 | Q100: 47.82772 | R100: 298.869286 | S100: 28.869286 | T100: 236.310592 | U100: 56.310592 | V100: 400.654372 | W100: 50.654372
A101: 539.76262 | B101: 3.330009 | C101: 22.884255 | D101: 32.884255 | E101: 101.747592 | F101: 91.747592 | G101: 94.144362 | H101: 186.653518 | I101: 26.653518 | J101: 70.93236 | K101: 270.93236 | L101: 57.678339 | M101: 157.678339 | N101: 121.794994 | O101: 46.794994 | P101: 107.70742 | Q101: 47.70742 | R101: 298.801399 | S101: 28.801399 | T101: 236.045913 | U101: 56.045913 | V101: 400.569617 | W101: 50.569617
A102: 541.190564 | B102: 3.069099 | C102: 22.552329 | D102: 32.552329 | E102: 101.974274 | F102: 91.974274 | G102: 94.35256 | H102: 186.602309 | I102: 26.602309 | J102: 70.923427 | K102: 270.923427 | L102: 57.945618 | M102: 157.945618 | N102: 121.818733 | O102: 46.818733 | P102: 107.775386 | Q102: 47.775386 | R102: 298.780995 | S102: 28.780995 | T102: 236.113713 | U102: 56.113713 | V102: 400.709723 | W102: 50.709723
A103: 542.618507 | B103: 2.880783 | C103: 22.025471 | D103: 32.025471 | E103: 102.033414 | F103: 92.033414 | G103: 94.430805 | H103: 186.454226 | I103: 26.454226 | J103: 70.881583 | K103: 270.881583 | L103: 57.830334 | M103: 157.830334 | N103: 121.867876 | O103: 46.867876 | P103: 107.715592 | Q103: 47.715592 | R103: 298.818429 | S103: 28.818429 | T103: 236.087461 | U103: 56.087461 | V103: 400.693432 | W103: 50.693432
A104: 544.04645 | B104: 2.745154 | C104: 21.495364 | D104: 31.495364 | E104: 101.517627 | F104: 91.517627 | G104: 94.030515 | H104: 186.454458 | I104: 26.454458 | J104: 70.826883 | K104: 270.826883 | L104: 57.331063 | M104: 157.331063 | N104: 121.787373 | O104: 46.787373 | P104: 107.287138 | Q104: 47.287138 | R104: 298.757818 | S104: 28.757818 | T104: 235.938375 | U104: 55.938375 | V104: 400.063387 | W104: 50.063387
A105: 545.474394 | B105: 2.562746 | C105: 20.899934 | D105: 30.899934 | E105: 100.57599 | F105: 90.57599 | G105: 93.619741 | H105: 186.390424 | I105: 26.390424 | J105: 70.779315 | K105: 270.779315 | L105: 56.92865 | M105: 156.92865 | N105: 121.733852 | O105: 46.733852 | P105: 106.362625 | Q105: 46.362625 | R105: 298.727354 | S105: 28.727354 | T105: 235.821606 | U105: 55.821606 | V105: 398.950215 | W105: 48.950215
A106: 546.902337 | B106: 2.325176 | C106: 20.210762 | D106: 30.210762 | E106: 100.222722 | F106: 90.222722 | G106: 93.169968 | H106: 186.174302 | I106: 26.174302 | J106: 70.745716 | K106: 270.745716 | L106: 56.542816 | M106: 156.542816 | N106: 121.746311 | O106: 46.746311 | P106: 105.96385 | Q106: 45.96385 | R106: 298.759651 | S106: 28.759651 | T106: 235.620544 | U106: 55.620544 | V106: 398.551913 | W106: 48.551913
A107: 548.330281 | B107: 2.113012 | C107: 19.810005 | D107: 29.810005 | E107: 100.386342 | F107: 90.386342 | G107: 93.217247 | H107: 186.270723 | I107: 26.270723 | J107: 70.745451 | K107: 270.745451 | L107: 56.616721 | M107: 156.616721 | N107: 121.656668 | O107: 46.656668 | P107: 106.26874 | Q107: 46.26874 | R107: 298.773635 | S107: 28.773635 | T107: 235.679423 | U107: 55.679423 | V107: 398.872468 | W107: 48.872468
A108: 549.758224 | B108: 1.954115 | C108: 19.305994 | D108: 29.305994 | E108: 100.221193 | F108: 90.221193 | G108: 93.248698 | H108: 186.257356 | I108: 26.257356 | J108: 70.793799 | K108: 270.793799 | L108: 56.679746 | M108: 156.679746 | N108: 121.623178 | O108: 46.623178 | P108: 106.158265 | Q108: 46.158265 | R108: 298.875309 | S108: 28.875309 | T108: 235.647758 | U108: 55.647758 | V108: 398.724177 | W108: 48.724177
A109: 551.186168 | B109: 1.82208 | C109: 18.838228 | D109: 28.838228 | E109: 100.905 | F109: 90.905 | G109: 93.374925 | H109: 186.168112 | I109: 26.168112 | J109: 70.877435 | K109: 270.877435 | L109: 57.028011 | M109: 157.028011 | N109: 121.701851 | O109: 46.701851 | P109: 106.618135 | Q109: 46.618135 | R109: 298.928917 | S109: 28.928917 | T109: 235.597749 | U109: 55.597749 | V109: 399.314294 | W109: 49.314294
A110: 552.614111 | B110: 1.724736 | C110: 18.56737 | D110: 28.56737 | E110: 102.09748 | F110: 92.09748 | G110: 94.243262 | H110: 186.325267 | I110: 26.325267 | J110: 70.973518 | K110: 270.973518 | L110: 57.962307 | M110: 157.962307 | N110: 121.726482 | O110: 46.726482 | P110: 107.481471 | Q110: 47.481471 | R110: 298.926289 | S110: 28.926289 | T110: 235.915887 | U110: 55.915887 | V110: 400.520234 | W110: 50.520234
A111: 554.042055 | B111: 1.60749 | C111: 17.984421 | D111: 27.984421 | E111: 102.049843 | F111: 92.049843 | G111: 94.299653 | H111: 186.272741 | I111: 26.272741 | J111: 71.065768 | K111: 271.065768 | L111: 57.918553 | M111: 157.918553 | N111: 121.774472 | O111: 46.774472 | P111: 107.250123 | Q111: 47.250123 | R111: 299.055837 | S111: 29.055837 | T111: 235.925614 | U111: 55.925614 | V111: 400.362099 | W111: 50.362099
A112: 555.469998 | B112: 1.449338 | C112: 17.46748 | D112: 27.46748 | E112: 101.837932 | F112: 91.837932 | G112: 93.931377 | H112: 186.227805 | I112: 26.227805 | J112: 71.142132 | K112: 271.142132 | L112: 57.543295 | M112: 157.543295 | N112: 121.809397 | O112: 46.809397 | P112: 107.1226 | Q112: 47.1226 | R112: 299.203538 | S112: 29.203538 | T112: 235.879663 | U112: 55.879663 | V112: 400.122392 | W112: 50.122392
A113: 556.897941 | B113: 1.351954 | C113: 17.085756 | D113: 27.085756 | E113: 102.078778 | F113: 92.078778 | G113: 94.28994 | H113: 186.312261 | I113: 26.312261 | J113: 71.198943 | K113: 271.198943 | L113: 57.909985 | M113: 157.909985 | N113: 121.738697 | O113: 46.738697 | P113: 107.465545 | Q113: 47.465545 | R113: 299.287029 | S113: 29.287029 | T113: 236.028035 | U113: 56.028035 | V113: 400.584875 | W113: 50.584875
A114: 558.325885 | B114: 1.250021 | C114: 16.558337 | D114: 26.558337 | E114: 102.004869 | F114: 92.004869 | G114: 94.141573 | H114: 186.209129 | I114: 26.209129 | J114: 71.240145 | K114: 271.240145 | L114: 57.909307 | M114: 157.909307 | N114: 121.684493 | O114: 46.684493 | P114: 107.358034 | Q114: 47.358034 | R114: 299.264557 | S114: 29.264557 | T114: 235.827122 | U114: 55.827122 | V114: 400.473432 | W114: 50.473432
A115: 559.753828 | B115: 1.092797 | C115: 16.193719 | D115: 26.193719 | E115: 102.240864 | F115: 92.240864 | G115: 94.09327 | H115: 186.210329 | I115: 26.210329 | J115: 71.265433 | K115: 271.265433 | L115: 57.95289 | M115: 157.95289 | N115: 121.632895 | O115: 46.632895 | P115: 107.496095 | Q115: 47.496095 | R115: 299.180547 | S115: 29.180547 | T115: 235.861509 | U115: 55.861509 | V115: 400.562535 | W115: 50.562535
A116: 561.181772 | B116: 1.006789 | C116: 15.673328 | D116: 25.673328 | E116: 102.347118 | F116: 92.347118 | G116: 94.342805 | H116: 186.20904 | I116: 26.20904 | J116: 71.265807 | K116: 271.265807 | L116: 58.142418 | M116: 158.142418 | N116: 121.563368 | O116: 46.563368 | P116: 107.575113 | Q116: 47.575113 | R116: 299.24355 | S116: 29.24355 | T116: 236.026649 | U116: 56.026649 | V116: 400.768916 | W116: 50.768916
A117: 562.609715 | B117: 0.96185 | C117: 15.082289 | D117: 25.082289 | E117: 101.950641 | F117: 91.950641 | G117: 93.908107 | H117: 186.113431 | I117: 26.113431 | J117: 71.236866 | K117: 271.236866 | L117: 57.84726 | M117: 157.84726 | N117: 121.562006 | O117: 46.562006 | P117: 107.245436 | Q117: 47.245436 | R117: 299.30269 | S117: 29.30269 | T117: 235.816472 | U117: 55.816472 | V117: 400.341458 | W117: 50.341458
A118: 564.037659 | B118: 0.91622 | C118: 14.801303 | D118: 24.801303 | E118: 102.078904 | F118: 92.078904 | G118: 93.921608 | H118: 186.147897 | I118: 26.147897 | J118: 71.181949 | K118: 271.181949 | L118: 57.829133 | M118: 157.829133 | N118: 121.55974 | O118: 46.55974 | P118: 107.286941 | Q118: 47.286941 | R118: 299.256163 | S118: 29.256163 | T118: 235.817322 | U118: 55.817322 | V118: 400.3076 | W118: 50.3076
A119: 565.465602 | B119: 0.903838 | C119: 14.355573 | D119: 24.355573 | E119: 102.031471 | F119: 92.031471 | G119: 93.949453 | H119: 186.06617 | I119: 26.06617 | J119: 71.104579 | K119: 271.104579 | L119: 57.658476 | M119: 157.658476 | N119: 121.491303 | O119: 46.491303 | P119: 107.14142 | Q119: 47.14142 | R119: 299.265744 | S119: 29.265744 | T119: 235.748953 | U119: 55.748953 | V119: 400.13534 | W119: 50.13534
A120: 566.893545 | B120: 0.842207 | C120: 13.94062 | D120: 23.94062 | E120: 101.382239 | F120: 91.382239 | G120: 93.342546 | H120: 186.053368 | I120: 26.053368 | J120: 71.009573 | K120: 271.009573 | L120: 57.255976 | M120: 157.255976 | N120: 121.449401 | O120: 46.449401 | P120: 106.62491 | Q120: 46.62491 | R120: 299.299365 | S120: 29.299365 | T120: 235.506531 | U120: 55.506531 | V120: 399.272641 | W120: 49.272641
A121: 568.321489 | B121: 0.781066 | C121: 13.72305 | D121: 23.72305 | E121: 101.100179 | F121: 91.100179 | G121: 93.252361 | H121: 186.172755 | I121: 26.172755 | J121: 70.908241 | K121: 270.908241 | L121: 57.429198 | M121: 157.429198 | N121: 121.519946 | O121: 46.519946 | P121: 106.383061 | Q121: 46.383061 | R121: 299.392368 | S121: 29.392368 | T121: 235.563459 | U121: 55.563459 | V121: 398.934405 | W121: 48.934405
A122: 569.749432 | B122: 0.812325 | C122: 13.365898 | D122: 23.365898 | E122: 100.934164 | F122: 90.934164 | G122: 93.057428 | H122: 186.0904 | I122: 26.0904 | J122: 70.811566 | K122: 270.811566 | L122: 57.25577 | M122: 157.25577 | N122: 121.615529 | O122: 46.615529 | P122: 106.161117 | Q122: 46.161117 | R122: 299.486735 | S122: 29.486735 | T122: 235.495814 | U122: 55.495814 | V122: 398.889523 | W122: 48.889523
A123: 571.177376 | B123: 0.817648 | C123: 13.261215 | D123: 23.261215 | E123: 101.167886 | F123: 91.167886 | G123: 93.07759 | H123: 186.151453 | I123: 26.151453 | J123: 70.719042 | K123: 270.719042 | L123: 57.201871 | M123: 157.201871 | N123: 121.617038 | O123: 46.617038 | P123: 106.360813 | Q123: 46.360813 | R123: 299.452334 | S123: 29.452334 | T123: 235.547363 | U123: 55.547363 | V123: 399.196533 | W123: 49.196533
A124: 572.605319 | B124: 0.789134 | C124: 13.243774 | D124: 23.243774 | E124: 102.053046 | F124: 92.053046 | G124: 93.898132 | H124: 186.297141 | I124: 26.297141 | J124: 70.627411 | K124: 270.627411 | L124: 57.893635 | M124: 157.893635 | N124: 121.555463 | O124: 46.555463 | P124: 107.129535 | Q124: 47.129535 | R124: 299.471725 | S124: 29.471725 | T124: 235.816257 | U124: 55.816257 | V124: 400.24124 | W124: 50.24124
A125: 574.033263 | B125: 0.794344 | C125: 12.901368 | D125: 22.901368 | E125: 101.611179 | F125: 91.611179 | G125: 93.410904 | H125: 186.213121 | I125: 26.213121 | J125: 70.543437 | K125: 270.543437 | L125: 57.443925 | M125: 157.443925 | N125: 121.462175 | O125: 46.462175 | P125: 106.788868 | Q125: 46.788868 | R125: 299.53163 | S125: 29.53163 | T125: 235.531497 | U125: 55.531497 | V125: 399.727707 | W125: 49.727707
A126: 575.461206 | B126: 0.81113 | C126: 12.640247 | D126: 22.640247 | E126: 100.049765 | F126: 90.049765 | G126: 92.123871 | H126: 186.160396 | I126: 26.160396 | J126: 70.475446 | K126: 270.475446 | L126: 56.272505 | M126: 156.272505 | N126: 121.403222 | O126: 46.403222 | P126: 105.42209 | Q126: 45.42209 | R126: 299.534015 | S126: 29.534015 | T126: 235.127037 | U126: 55.127037 | V126: 397.796517 | W126: 47.796517
A127: 576.88915 | B127: 0.817523 | C127: 12.65193 | D127: 22.65193 | E127: 100.494625 | F127: 90.494625 | G127: 92.532819 | H127: 186.189165 | I127: 26.189165 | J127: 70.42827 | K127: 270.42827 | L127: 56.723546 | M127: 156.723546 | N127: 121.447324 | O127: 46.447324 | P127: 105.688919 | Q127: 45.688919 | R127: 299.564514 | S127: 29.564514 | T127: 235.288401 | U127: 55.288401 | V127: 398.333906 | W127: 48.333906
A128: 578.317093 | B128: 0.801035 | C128: 12.722903 | D128: 22.722903 | E128: 101.60098 | F128: 91.60098 | G128: 93.265591 | H128: 186.262933 | I128: 26.262933 | J128: 70.411976 | K128: 270.411976 | L128: 57.5279 | M128: 157.5279 | N128: 121.433458 | O128: 46.433458 | P128: 106.804276 | Q128: 46.804276 | R128: 299.58469 | S128: 29.58469 | T128: 235.556517 | U128: 55.556517 | V128: 399.804342 | W128: 49.804342
A129: 579.745036 | B129: 0.791784 | C129: 12.616306 | D129: 22.616306 | E129: 100.68635 | F129: 90.68635 | G129: 92.746782 | H129: 186.267743 | I129: 26.267743 | J129: 70.430763 | K129: 270.430763 | L129: 56.959258 | M129: 156.959258 | N129: 121.358615 | O129: 46.358615 | P129: 106.191351 | Q129: 46.191351 | R129: 299.632773 | S129: 29.632773 | T129: 235.508262 | U129: 55.508262 | V129: 398.811996 | W129: 48.811996
A130: 581.17298 | B130: 0.822635 | C130: 12.429525 | D130: 22.429525 | E130: 100.184364 | F130: 90.184364 | G130: 92.410209 | H130: 186.126811 | I130: 26.126811 | J130: 70.474996 | K130: 270.474996 | L130: 56.551534 | M130: 156.551534 | N130: 121.373882 | O130: 46.373882 | P130: 105.653012 | Q130: 45.653012 | R130: 299.673576 | S130: 29.673576 | T130: 235.340744 | U130: 55.340744 | V130: 398.227625 | W130: 48.227625
A131: 582.600923 | B131: 0.835098 | C131: 12.517378 | D131: 22.517378 | E131: 101.266393 | F131: 91.266393 | G131: 93.019681 | H131: 186.21309 | I131: 26.21309 | J131: 70.538986 | K131: 270.538986 | L131: 57.257548 | M131: 157.257548 | N131: =O131+75 -> 121.389614 | O131: 46.389614 | P131: 106.57705 | Q131: 46.57705 | R131: 299.610939 | S131: 29.610939 | T131: 235.482678 | U131: 55.482678 | V131: 399.513518 | W131: 49.513518
A132: 584.028867 | B132: 0.833151 | C132: =D132-10 -> 12.513829 | D132: 22.513829 | E132: =F132+10 -> 101.235112 | F132: 91.235112 | G132: 93.129354 | H132: =I132+160 -> 186.292492 | I132: 26.292492 | J132: 70.623537 | K132: =J132+200 -> 270.623537 | L132: 57.46351 | M132: =L132+100 -> 157.46351 | N132: 121.356604 | O132: 46.356604 | P132: =Q132+60 -> 106.674807 | Q132: 46.674807 | R132: =S132+270 -> 299.607136 | S132: 29.607136 | T132: =U132+180 -> 235.558389 | U132: 55.558389 | V132: =W132+350 -> 399.538232 | W132: 49.538232
A133: 585.45681 | B133: 0.857598 | C133: 12.434249 | D133: 22.434249 | E133: 101.006943 | F133: 91.006943 | G133: 92.844284 | H133: 186.204068 | I133: 26.204068 | J133: 70.720447 | K133: 270.720447 | L133: 57.256533 | M133: 157.256533 | N133: 121.345674 | O133: 46.345674 | P133: 106.437146 | Q133: 46.437146 | R133: 299.584432 | S133: 29.584432 | T133: 235.387012 | U133: 55.387012 | V133: 399.215283 | W133: 49.215283
A134: 586.884754 | B134: 0.885275 | C134: 12.6882 | D134: 22.6882 | E134: 102.017195 | F134: 92.017195 | G134: 93.398899 | H134: 186.352682 | I134: 26.352682 | J134: 70.820012 | K134: 270.820012 | L134: 57.782864 | M134: 157.782864 | N134: 121.316289 | O134: 46.316289 | P134: 107.203183 | Q134: 47.203183 | R134: 299.48286 | S134: 29.48286 | T134: 235.594359 | U134: 55.594359 | V134: 400.289192 | W134: 50.289192
A135: 588.312697 | B135: 0.913144 | C135: 12.773831 | D135: 22.773831 | E135: 102.334998 | F135: 92.334998 | G135: 93.746316 | H135: 186.415642 | I135: 26.415642 | J135: 70.920631 | K135: 270.920631 | L135: 58.064679 | M135: 158.064679 | N135: 121.254928 | O135: 46.254928 | P135: 107.530579 | Q135: 47.530579 | R135: 299.49268 | S135: 29.49268 | T135: 235.776545 | U135: 55.776545 | V135: 400.757786 | W135: 50.757786
A136: 589.74064 | B136: 0.927863 | C136: 12.629511 | D136: 22.629511 | E136: 101.464397 | F136: 91.464397 | G136: 93.046728 | H136: 186.281856 | I136: 26.281856 | J136: 71.021063 | K136: 271.021063 | L136: 57.4456 | M136: 157.4456 | N136: 121.175316 | O136: 46.175316 | P136: 106.897161 | Q136: 46.897161 | R136: 299.504426 | S136: 29.504426 | T136: 235.45877 | U136: 55.45877 | V136: 399.751855 | W136: 49.751855
A137: 591.168584 | B137: 0.928875 | C137: 12.641925 | D137: 22.641925 | E137: 100.42866 | F137: 90.42866 | G137: 92.311124 | H137: 186.26435 | I137: 26.26435 | J137: 71.119885 | K137: 271.119885 | L137: 56.698644 | M137: 156.698644 | N137: 121.071773 | O137: 46.071773 | P137: 105.955413 | Q137: 45.955413 | R137: 299.504125 | S137: 29.504125 | T137: 235.125648 | U137: 55.125648 | V137: 398.351024 | W137: 48.351024
A138: 592.596527 | B138: 0.93051 | C138: 12.733414 | D138: 22.733414 | E138: 100.442409 | F138: 90.442409 | G138: 92.302763 | H138: 186.220665 | I138: 26.220665 | J138: 71.219911 | K138: 271.219911 | L138: 56.667991 | M138: 156.667991 | N138: 120.937757 | O138: 45.937757 | P138: 105.880006 | Q138: 45.880006 | R138: 299.572255 | S138: 29.572255 | T138: 234.988431 | U138: 54.988431 | V138: 398.353944 | W138: 48.353944
A139: 594.024471 | B139: 0.926456 | C139: 12.969914 | D139: 22.969914 | E139: 101.62164 | F139: 91.62164 | G139: 92.999118 | H139: 186.262234 | I139: 26.262234 | J139: 71.324131 | K139: 271.324131 | L139: 57.48102 | M139: 157.48102 | N139: 120.745995 | O139: 45.745995 | P139: 106.987607 | Q139: 46.987607 | R139: 299.576012 | S139: 29.576012 | T139: 235.068443 | U139: 55.068443 | V139: 399.888029 | W139: 49.888029
A140: 595.452414 | B140: 0.972088 | C140: 13.14213 | D140: 23.14213 | E140: 102.105294 | F140: 92.105294 | G140: 93.525879 | H140: 186.30824 | I140: 26.30824 | J140: 71.428203 | K140: 271.428203 | L140: 58.017886 | M140: 158.017886 | N140: 120.498518 | O140: 45.498518 | P140: 107.527588 | Q140: 47.527588 | R140: 299.626762 | S140: 29.626762 | T140: 235.086919 | U140: 55.086919 | V140: 400.631424 | W140: 50.631424
A141: 596.880358 | B141: 1.055813 | C141: 13.146618 | D141: 23.146618 | E141: 101.994596 | F141: 91.994596 | G141: 93.496783 | H141: 186.170595 | I141: 26.170595 | J141: 71.52121 | K141: 271.52121 | L141: 58.049324 | M141: 158.049324 | N141: 120.139548 | O141: 45.139548 | P141: 107.567116 | Q141: 47.567116 | R141: 299.696775 | S141: 29.696775 | T141: 234.78897 | U141: 54.78897 | V141: 400.656759 | W141: 50.656759
A142: 598.308301 | B142: 1.088333 | C142: 13.252087 | D142: 23.252087 | E142: 101.80431 | F142: 91.80431 | G142: 93.275798 | H142: 186.086502 | I142: 26.086502 | J142: 71.597273 | K142: 271.597273 | L142: 57.958572 | M142: 157.958572 | N142: 119.592862 | O142: 44.592862 | P142: 107.468973 | Q142: 47.468973 | R142: 299.649422 | S142: 29.649422 | T142: 234.407952 | U142: 54.407952 | V142: 400.418803 | W142: 50.418803
A143: 599.736245 | B143: 1.092853 | C143: 13.263689 | D143: 23.263689 | E143: 100.900052 | F143: 90.900052 | G143: 92.732039 | H143: 185.894024 | I143: 25.894024 | J143: 71.658659 | K143: 271.658659 | L143: 57.411648 | M143: 157.411648 | N143: 118.851734 | O143: 43.851734 | P143: 106.60235 | Q143: 46.60235 | R143: 299.644092 | S143: 29.644092 | T143: 233.755867 | U143: 53.755867 | V143: 399.340807 | W143: 49.340807
A144: 601.164188 | B144: 1.095297 | C144: 13.35127 | D144: 23.35127 | E144: 101.124911 | F144: 91.124911 | G144: 92.81645 | H144: 185.672942 | I144: 25.672942 | J144: 71.705594 | K144: 271.705594 | L144: 57.467687 | M144: 157.467687 | N144: 117.923699 | O144: 42.923699 | P144: 106.753272 | Q144: 46.753272 | R144: 299.605232 | S144: 29.605232 | T144: 233.078249 | U144: 53.078249 | V144: 399.605438 | W144: 49.605438
A145: 602.592131 | B145: 1.09168 | C145: 13.615317 | D145: 23.615317 | E145: 102.320544 | F145: 92.320544 | G145: 93.611928 | H145: 185.568334 | I145: 25.568334 | J145: 71.736153 | K145: 271.736153 | L145: 58.172776 | M145: 158.172776 | N145: 116.789308 | O145: 41.789308 | P145: 107.727817 | Q145: 47.727817 | R145: 299.495342 | S145: 29.495342 | T145: 232.660375 | U145: 52.660375 | V145: 400.856355 | W145: 50.856355
A146: 604.020075 | B146: 1.113627 | C146: 13.615087 | D146: 23.615087 | E146: 102.197907 | F146: 92.197907 | G146: 93.464633 | H146: 185.128197 | I146: 25.128197 | J146: 71.749274 | K146: 271.749274 | L146: 57.946037 | M146: 157.946037 | N146: 115.414331 | O146: 40.414331 | P146: 107.475314 | Q146: 47.475314 | R146: 299.446788 | S146: 29.446788 | T146: 231.756787 | U146: 51.756787 | V146: 400.5433 | W146: 50.5433
A147: 605.448018 | B147: 1.138455 | C147: 13.672661 | D147: 23.672661 | E147: 102.203079 | F147: 92.203079 | G147: 93.307025 | H147: 184.641632 | I147: 24.641632 | J147: 71.739263 | K147: 271.739263 | L147: 57.814601 | M147: 157.814601 | N147: 114.020163 | O147: 39.020163 | P147: 107.40978 | Q147: 47.40978 | R147: 299.302882 | S147: 29.302882 | T147: 230.70709 | U147: 50.70709 | V147: 400.39931 | W147: 50.39931
A148: 606.875962 | B148: 1.135384 | C148: 13.834183 | D148: 23.834183 | E148: 102.663919 | F148: 92.663919 | G148: 93.740352 | H148: 184.318585 | I148: 24.318585 | J148: 71.705085 | K148: 271.705085 | L148: 58.145842 | M148: 158.145842 | N148: 112.816146 | O148: 37.816146 | P148: 107.726467 | Q148: 47.726467 | R148: 299.101654 | S148: 29.101654 | T148: 230.003912 | U148: 50.003912 | V148: 400.824028 | W148: 50.824028
A149: 608.303905 | B149: 1.123448 | C149: 13.799072 | D149: 23.799072 | E149: 102.388168 | F149: 92.388168 | G149: 93.564928 | H149: 183.854898 | I149: 23.854898 | J149: 71.657157 | K149: 271.657157 | L149: 57.839231 | M149: 157.839231 | N149: 111.893674 | O149: 36.893674 | P149: 107.356139 | Q149: 47.356139 | R149: 298.973925 | S149: 28.973925 | T149: 229.254454 | U149: 49.254454 | V149: 400.45919 | W149: 50.45919
A150: 609.731849 | B150: 1.106035 | C150: 13.97599 | D150: 23.97599 | E150: 102.540588 | F150: 92.540588 | G150: 93.606197 | H150: 183.620168 | I150: 23.620168 | J150: 71.597809 | K150: 271.597809 | L150: 57.792558 | M150: 157.792558 | N150: 111.525971 | O150: 36.525971 | P150: 107.34847 | Q150: 47.34847 | R150: 298.805351 | S150: 28.805351 | T150: 228.907083 | U150: 48.907083 | V150: 400.451564 | W150: 50.451564
A151: 611.159792 | B151: 1.046197 | C151: 14.205193 | D151: 24.205193 | E151: 102.67605 | F151: 92.67605 | G151: 93.808825 | H151: 183.528945 | I151: 23.528945 | J151: 71.518875 | K151: 271.518875 | L151: 57.832194 | M151: 157.832194 | N151: 111.741679 | O151: 36.741679 | P151: 107.330934 | Q151: 47.330934 | R151: 298.61632 | S151: 28.61632 | T151: 228.912407 | U151: 48.912407 | V151: 400.393228 | W151: 50.393228
A152: 612.587736 | B152: 0.925572 | C152: 14.33599 | D152: 24.33599 | E152: 102.393193 | F152: 92.393193 | G152: 93.501923 | H152: 183.406737 | I152: 23.406737 | J152: 71.424488 | K152: 271.424488 | L152: 57.440542 | M152: 157.440542 | N152: 112.500745 | O152: 37.500745 | P152: 107.039605 | Q152: 47.039605 | R152: 298.443433 | S152: 28.443433 | T152: 229.019329 | U152: 49.019329 | V152: 399.954559 | W152: 49.954559
A153: 614.015679 | B153: 0.798899 | C153: 14.632176 | D153: 24.632176 | E153: 102.444547 | F153: 92.444547 | G153: 93.449929 | H153: 183.531933 | I153: 23.531933 | J153: 71.326985 | K153: 271.326985 | L153: 57.30518 | M153: 157.30518 | N153: 113.579447 | O153: 38.579447 | P153: 106.937171 | Q153: 46.937171 | R153: 298.263169 | S153: 28.263169 | T153: 229.557852 | U153: 49.557852 | V153: 399.780809 | W153: 49.780809
A154: 615.443622 | B154: 0.702151 | C154: 14.751073 | D154: 24.751073 | E154: 101.662693 | F154: 91.662693 | G154: 93.029331 | H154: 183.55319 | I154: 23.55319 | J154: 71.229179 | K154: 271.229179 | L154: 56.785109 | M154: 156.785109 | N154: 114.648587 | O154: 39.648587 | P154: 106.231927 | Q154: 46.231927 | R154: 298.093201 | S154: 28.093201 | T154: 230.055317 | U154: 50.055317 | V154: 398.860672 | W154: 48.860672
A155: 616.871566 | B155: 0.656398 | C155: 14.899629 | D155: 24.899629 | E155: 101.022689 | F155: 91.022689 | G155: 92.693483 | H155: 183.544785 | I155: 23.544785 | J155: 71.130999 | K155: 271.130999 | L155: 56.49871 | M155: 156.49871 | N155: 115.68758 | O155: 40.68758 | P155: 106.048889 | Q155: 46.048889 | R155: 297.908405 | S155: 27.908405 | T155: 230.551489 | U155: 50.551489 | V155: 398.474496 | W155: 48.474496
A156: 618.299509 | B156: 0.699785 | C156: 15.285445 | D156: 25.285445 | E156: 101.778651 | F156: 91.778651 | G156: 93.297464 | H156: 183.794822 | I156: 23.794822 | J156: 71.039461 | K156: 271.039461 | L156: 57.041978 | M156: 157.041978 | N156: 116.518884 | O156: 41.518884 | P156: 106.638582 | Q156: 46.638582 | R156: 297.749479 | S156: 27.749479 | T156: 231.245684 | U156: 51.245684 | V156: 399.19212 | W156: 49.19212
A157: 619.727453 | B157: 0.786176 | C157: 15.42209 | D157: 25.42209 | E157: 102.004936 | F157: 92.004936 | G157: 93.246545 | H157: 183.924826 | I157: 23.924826 | J157: 70.959669 | K157: 270.959669 | L157: 56.842617 | M157: 156.842617 | N157: 117.098896 | O157: 42.098896 | P157: 106.305064 | Q157: 46.305064 | R157: 297.622252 | S157: 27.622252 | T157: 231.554459 | U157: 51.554459 | V157: 398.848983 | W157: 48.848983
A158: 621.155396 | B158: 0.888709 | C158: 15.624266 | D158: 25.624266 | E158: 102.151038 | F158: 92.151038 | G158: 93.184811 | H158: 184.074757 | I158: 24.074757 | J158: 70.891937 | K158: 270.891937 | L158: 56.746993 | M158: 156.746993 | N158: 117.637129 | O158: 42.637129 | P158: 106.313352 | Q158: 46.313352 | R158: 297.538143 | S158: 27.538143 | T158: 231.897382 | U158: 51.897382 | V158: 398.791953 | W158: 48.791953
A159: 622.58334 | B159: 0.998268 | C159: 15.919777 | D159: 25.919777 | E159: 102.61766 | F159: 92.61766 | G159: 93.65786 | H159: 184.270543 | I159: 24.270543 | J159: 70.843534 | K159: 270.843534 | L159: 57.217584 | M159: 157.217584 | N159: 118.11832 | O159: 43.11832 | P159: 106.822967 | Q159: 46.822967 | R159: 297.575335 | S159: 27.575335 | T159: 232.386251 | U159: 52.386251 | V159: 399.379869 | W159: 49.379869
A160: 624.011283 | B160: 1.076669 | C160: 15.953832 | D160: 25.953832 | E160: 102.030778 | F160: 92.030778 | G160: 93.110138 | H160: 184.301547 | I160: 24.301547 | J160: 70.825585 | K160: 270.825585 | L160: 56.835797 | M160: 156.835797 | N160: 118.523939 | O160: 43.523939 | P160: 106.367022 | Q160: 46.367022 | R160: 297.668603 | S160: 27.668603 | T160: 232.455932 | U160: 52.455932 | V160: 398.672553 | W160: 48.672553
A161: 625.439226 | B161: 1.178891 | C161: 16.160502 | D161: 26.160502 | E161: 101.617849 | F161: 91.617849 | G161: 92.712932 | H161: 184.48557 | I161: 24.48557 | J161: 70.838558 | K161: 270.838558 | L161: 56.681027 | M161: 156.681027 | N161: 118.87756 | O161: 43.87756 | P161: 106.202631 | Q161: 46.202631 | R161: 297.81373 | S161: 27.81373 | T161: 232.575351 | U161: 52.575351 | V161: 398.234122 | W161: 48.234122
A162: 626.86717 | B162: 1.345855 | C162: 16.492603 | D162: 26.492603 | E162: 102.135378 | F162: 92.135378 | G162: 93.269884 | H162: 184.716623 | I162: 24.716623 | J162: 70.874668 | K162: 270.874668 | L162: 57.334779 | M162: 157.334779 | N162: 119.077943 | O162: 44.077943 | P162: 106.873158 | Q162: 46.873158 | R162: 298.038287 | S162: 28.038287 | T162: 232.808419 | U162: 52.808419 | V162: 399.04303 | W162: 49.04303
A163: 628.295113 | B163: 1.508351 | C163: 16.735771 | D163: 26.735771 | E163: 102.478309 | F163: 92.478309 | G163: 93.523553 | H163: 184.85959 | I163: 24.85959 | J163: 70.929977 | K163: 270.929977 | L163: 57.783068 | M163: 157.783068 | N163: 119.141575 | O163: 44.141575 | P163: 107.488367 | Q163: 47.488367 | R163: 298.255039 | S163: 28.255039 | T163: 232.815092 | U163: 52.815092 | V163: 399.79274 | W163: 49.79274
A164: 629.723057 | B164: 1.64648 | C164: 17.061484 | D164: 27.061484 | E164: 102.567318 | F164: 92.567318 | G164: 93.596492 | H164: 185.034954 | I164: 25.034954 | J164: 71.002385 | K164: 271.002385 | L164: 58.129543 | M164: 158.129543 | N164: 119.09703 | O164: 44.09703 | P164: 107.930069 | Q164: 47.930069 | R164: 298.493423 | S164: 28.493423 | T164: 232.785313 | U164: 52.785313 | V164: 400.210638 | W164: 50.210638
A165: 631.151 | B165: 1.759019 | C165: 17.245599 | D165: 27.245599 | E165: 102.203675 | F165: 92.203675 | G165: 93.3745 | H165: 185.019505 | I165: 25.019505 | J165: 71.089158 | K165: 271.089158 | L165: 58.144898 | M165: 158.144898 | N165: 118.909306 | O165: 43.909306 | P165: 107.929311 | Q165: 47.929311 | R165: 298.721645 | S165: 28.721645 | T165: 232.532613 | U165: 52.532613 | V165: 400.038103 | W165: 50.038103
A166: 632.578944 | B166: 1.852387 | C166: 17.414655 | D166: 27.414655 | E166: 101.582493 | F166: 91.582493 | G166: 92.912547 | H166: 185.000128 | I166: 25.000128 | J166: 71.192432 | K166: 271.192432 | L166: 57.963345 | M166: 157.963345 | N166: 118.710621 | O166: 43.710621 | P166: 107.790388 | Q166: 47.790388 | R166: 298.899073 | S166: 28.899073 | T166: 232.202252 | U166: 52.202252 | V166: 399.618113 | W166: 49.618113
A167: 634.006887 | B167: 1.95979 | C167: 17.702212 | D167: 27.702212 | E167: 101.173103 | F167: 91.173103 | G167: 92.763275 | H167: 185.111198 | I167: 25.111198 | J167: 71.313311 | K167: 271.313311 | L167: 58.027958 | M167: 158.027958 | N167: 118.566026 | O167: 43.566026 | P167: 107.709522 | Q167: 47.709522 | R167: 299.13847 | S167: 29.13847 | T167: 232.079037 | U167: 52.079037 | V167: 399.378027 | W167: 49.378027
A168: 635.434831 | B168: 2.042971 | C168: 17.934021 | D168: 27.934021 | E168: 100.990313 | F168: 90.990313 | G168: 92.658681 | H168: 185.172565 | I168: 25.172565 | J168: 71.442645 | K168: 271.442645 | L168: 58.114891 | M168: 158.114891 | N168: 118.429616 | O168: 43.429616 | P168: 107.724238 | Q168: 47.724238 | R168: 299.336426 | S168: 29.336426 | T168: 232.069794 | U168: 52.069794 | V168: 399.368321 | W168: 49.368321
A169: 636.862774 | B169: 2.120167 | C169: 18.35178 | D169: 28.35178 | E169: 101.376688 | F169: 91.376688 | G169: 92.886769 | H169: 185.425864 | I169: 25.425864 | J169: 71.576116 | K169: 271.576116 | L169: 58.555401 | M169: 158.555401 | N169: 118.43157 | O169: 43.43157 | P169: 108.378098 | Q169: 48.378098 | R169: 299.444313 | S169: 29.444313 | T169: 232.425337 | U169: 52.425337 | V169: 400.122217 | W169: 50.122217
A170: 638.290717 | B170: 2.226005 | C170: 18.741652 | D170: 28.741652 | E170: 101.435695 | F170: 91.435695 | G170: 93.026971 | H170: 185.748038 | I170: 25.748038 | J170: 71.716771 | K170: 271.716771 | L170: 58.820685 | M170: 158.820685 | N170: 118.58119 | O170: 43.58119 | P170: 108.731766 | Q170: 48.731766 | R170: 299.598854 | S170: 29.598854 | T170: 232.822842 | U170: 52.822842 | V170: 400.482876 | W170: 50.482876
A171: 639.718661 | B171: 2.291109 | C171: 18.964152 | D171: 28.964152 | E171: 100.904066 | F171: 90.904066 | G171: 92.704837 | H171: 186.034404 | I171: 26.034404 | J171: 71.860409 | K171: 271.860409 | L171: 58.636469 | M171: 158.636469 | N171: 118.846952 | O171: 43.846952 | P171: 108.594015 | Q171: 48.594015 | R171: 299.701457 | S171: 29.701457 | T171: 233.102202 | U171: 53.102202 | V171: 400.134236 | W171: 50.134236
A172: 641.146604 | B172: 2.372254 | C172: 19.381278 | D172: 29.381278 | E172: 101.052683 | F172: 91.052683 | G172: 92.945605 | H172: 186.480415 | I172: 26.480415 | J172: 71.999835 | K172: 271.999835 | L172: 59.025683 | M172: 159.025683 | N172: 119.317243 | O172: 44.317243 | P172: 109.062654 | Q172: 49.062654 | R172: 299.773857 | S172: 29.773857 | T172: 233.755066 | U172: 53.755066 | V172: 400.59952 | W172: 50.59952
A173: 642.574548 | B173: 2.52591 | C173: 19.74038 | D173: 29.74038 | E173: 101.12383 | F173: 91.12383 | G173: 93.114698 | H173: 186.79308 | I173: 26.79308 | J173: 72.13317 | K173: 272.13317 | L173: 59.295794 | M173: 159.295794 | N173: 119.894754 | O173: 44.894754 | P173: 109.360581 | Q173: 49.360581 | R173: 299.887266 | S173: 29.887266 | T173: 234.356298 | U173: 54.356298 | V173: 400.96103 | W173: 50.96103
A174: 644.002491 | B174: 2.655922 | C174: 20.079008 | D174: 30.079008 | E174: 100.737726 | F174: 90.737726 | G174: 92.87203 | H174: 187.036992 | I174: 27.036992 | J174: 72.25767 | K174: 272.25767 | L174: 59.120656 | M174: 159.120656 | N174: 120.53556 | O174: 45.53556 | P174: 109.294969 | Q174: 49.294969 | R174: 299.907952 | S174: 29.907952 | T174: 234.78342 | U174: 54.78342 | V174: 400.746411 | W174: 50.746411
A175: 645.430435 | B175: 2.7697 | C175: 20.619111 | D175: 30.619111 | E175: 100.810939 | F175: 90.810939 | G175: 93.118696 | H175: 187.381482 | I175: 27.381482 | J175: 72.370497 | K175: 272.370497 | L175: 59.384891 | M175: 159.384891 | N175: 121.249919 | O175: 46.249919 | P175: 109.620035 | Q175: 49.620035 | R175: 299.916966 | S175: 29.916966 | T175: 235.397335 | U175: 55.397335 | V175: 401.054263 | W175: 51.054263
A176: 646.858378 | B176: 2.907891 | C176: 21.019223 | D176: 31.019223 | E176: 100.531661 | F176: 90.531661 | G176: 93.05914 | H176: 187.559073 | I176: 27.559073 | J176: 72.47198 | K176: 272.47198 | L176: 59.446057 | M176: 159.446057 | N176: 121.9694 | O176: 46.9694 | P176: 109.753384 | Q176: 49.753384 | R176: 299.939426 | S176: 29.939426 | T176: 235.860829 | U176: 55.860829 | V176: 401.149877 | W176: 51.149877
A177: 648.286322 | B177: 3.047704 | C177: 21.443805 | D177: 31.443805 | E177: 100.02042 | F177: 90.02042 | G177: 92.820521 | H177: 187.742154 | I177: 27.742154 | J177: 72.561796 | K177: 272.561796 | L177: 59.315942 | M177: 159.315942 | N177: 122.694751 | O177: 47.694751 | P177: 109.773844 | Q177: 49.773844 | R177: 299.90061 | S177: 29.90061 | T177: 236.267754 | U177: 56.267754 | V177: 400.999289 | W177: 50.999289
A178: 649.714265 | B178: 3.204156 | C178: 21.932225 | D178: 31.932225 | E178: 100.100038 | F178: 90.100038 | G178: 93.043052 | H178: 187.931897 | I178: 27.931897 | J178: 72.6395 | K178: 272.6395 | L178: 59.457564 | M178: 159.457564 | N178: 123.34601 | O178: 48.34601 | P178: 109.894588 | Q178: 49.894588 | R178: 299.910932 | S178: 29.910932 | T178: 236.728958 | U178: 56.728958 | V178: 401.132775 | W178: 51.132775
A179: 651.142208 | B179: 3.354407 | C179: 22.269006 | D179: 32.269006 | E179: 100.08619 | F179: 90.08619 | G179: 92.884076 | H179: 187.972953 | I179: 27.972953 | J179: 72.704554 | K179: 272.704554 | L179: 59.373846 | M179: 159.373846 | N179: 123.874666 | O179: 48.874666 | P179: 109.771311 | Q179: 49.771311 | R179: 299.89301 | S179: 29.89301 | T179: 236.949475 | U179: 56.949475 | V179: 401.000723 | W179: 51.000723
A180: 652.570152 | B180: 3.488772 | C180: 22.759021 | D180: 32.759021 | E180: 100.18295 | F180: 90.18295 | G180: 92.84699 | H180: 188.139457 | I180: 28.139457 | J180: 72.757786 | K180: 272.757786 | L180: 59.539424 | M180: 159.539424 | N180: 124.292617 | O180: 49.292617 | P180: 109.918333 | Q180: 49.918333 | R180: 299.864318 | S180: 29.864318 | T180: 237.150147 | U180: 57.150147 | V180: 401.094567 | W180: 51.094567
A181: 653.998095 | B181: 3.636596 | C181: 23.259382 | D181: 33.259382 | E181: 100.496656 | F181: 90.496656 | G181: 93.178241 | H181: 188.265659 | I181: 28.265659 | J181: 72.802203 | K181: 272.802203 | L181: 59.922751 | M181: 159.922751 | N181: 124.614076 | O181: 49.614076 | P181: 110.249757 | Q181: 50.249757 | R181: 299.960495 | S181: 29.960495 | T181: 237.37661 | U181: 57.37661 | V181: 401.490221 | W181: 51.490221
A182: 655.426039 | B182: 3.784928 | C182: 23.651047 | D182: 33.651047 | E182: 100.534421 | F182: 90.534421 | G182: 93.148954 | H182: 188.271265 | I182: 28.271265 | J182: 72.837598 | K182: 272.837598 | L182: 59.998174 | M182: 159.998174 | N182: 124.931653 | O182: 49.931653 | P182: 110.45159 | Q182: 50.45159 | R182: 300.055583 | S182: 30.055583 | T182: 237.542792 | U182: 57.542792 | V182: 401.705988 | W182: 51.705988
A183: 656.853982 | B183: 3.949987 | C183: 24.111605 | D183: 34.111605 | E183: 100.558071 | F183: 90.558071 | G183: 93.126126 | H183: 188.388788 | I183: 28.388788 | J183: 72.868391 | K183: 272.868391 | L183: 60.115608 | M183: 160.115608 | N183: 125.196532 | O183: 50.196532 | P183: 110.637919 | Q183: 50.637919 | R183: 300.195422 | S183: 30.195422 | T183: 237.687242 | U183: 57.687242 | V183: 401.876771 | W183: 51.876771
A184: 658.281926 | B184: 4.136597 | C184: 24.454584 | D184: 34.454584 | E184: 100.414074 | F184: 90.414074 | G184: 92.994693 | H184: 188.452804 | I184: 28.452804 | J184: 72.905194 | K184: 272.905194 | L184: 60.078542 | M184: 160.078542 | N184: 125.388522 | O184: 50.388522 | P184: 110.516977 | Q184: 50.516977 | R184: 300.431483 | S184: 30.431483 | T184: 237.673071 | U184: 57.673071 | V184: 401.660814 | W184: 51.660814
A185: 659.709869 | B185: 4.328436 | C185: 24.880962 | D185: 34.880962 | E185: 100.596658 | F185: 90.596658 | G185: 92.908233 | H185: 188.540796 | I185: 28.540796 | J185: 72.948275 | K185: 272.948275 | L185: 60.223325 | M185: 160.223325 | N185: 125.602076 | O185: 50.602076 | P185: 110.66624 | Q185: 50.66624 | R185: 300.641135 | S185: 30.641135 | T185: 237.755388 | U185: 57.755388 | V185: 401.72103 | W185: 51.72103
A186: 661.137812 | B186: 4.522723 | C186: 25.403877 | D186: 35.403877 | E186: 101.324557 | F186: 91.324557 | G186: 93.28505 | H186: 188.675653 | I186: 28.675653 | J186: 72.992711 | K186: 272.992711 | L186: 60.856181 | M186: 160.856181 | N186: 125.731464 | O186: 50.731464 | P186: 111.326777 | Q186: 51.326777 | R186: 300.85242 | S186: 30.85242 | T186: 237.946215 | U186: 57.946215 | V186: 402.505976 | W186: 52.505976
A187: 662.565756 | B187: 4.705924 | C187: 25.771735 | D187: 35.771735 | E187: 101.46041 | F187: 91.46041 | G187: 93.267426 | H187: 188.701027 | I187: 28.701027 | J187: 73.040764 | K187: 273.040764 | L187: 61.064394 | M187: 161.064394 | N187: 125.807716 | O187: 50.807716 | P187: 111.585941 | Q187: 51.585941 | R187: 301.040226 | S187: 31.040226 | T187: 237.916348 | U187: 57.916348 | V187: 402.799625 | W187: 52.799625
A188: 663.993699 | B188: 4.909747 | C188: 26.235968 | D188: 36.235968 | E188: 101.885603 | F188: 91.885603 | G188: 93.289004 | H188: 188.835803 | I188: 28.835803 | J188: 73.09415 | K188: 273.09415 | L188: 61.28487 | M188: 161.28487 | N188: 125.884907 | O188: 50.884907 | P188: 111.772558 | Q188: 51.772558 | R188: 301.178482 | S188: 31.178482 | T188: 237.937308 | U188: 57.937308 | V188: 403.065699 | W188: 53.065699
A189: 665.421643 | B189: 5.12602 | C189: 26.39094 | D189: 36.39094 | E189: 102.013424 | F189: 92.013424 | G189: 93.602424 | H189: 188.850384 | I189: 28.850384 | J189: 73.154045 | K189: 273.154045 | L189: 61.73567 | M189: 161.73567 | N189: 125.85305 | O189: 50.85305 | P189: 112.231133 | Q189: 52.231133 | R189: 301.380834 | S189: 31.380834 | T189: 238.155347 | U189: 58.155347 | V189: 403.555078 | W189: 53.555078
A190: 666.849586 | B190: 5.327364 | C190: 25.736995 | D190: 35.736995 | E190: 97.03314 | F190: 87.03314 | G190: 92.181368 | H190: 188.452996 | I190: 28.452996 | J190: 73.223523 | K190: 273.223523 | L190: 60.862108 | M190: 160.862108 | N190: 126.165318 | O190: 51.165318 | P190: 112.085118 | Q190: 52.085118 | R190: 301.736859 | S190: 31.736859 | T190: 238.575626 | U190: 58.575626 | V190: 402.130873 | W190: 52.130873
A191: 668.27753 | B191: 5.574608 | C191: 25.402158 | D191: 35.402158 | E191: 88.307047 | F191: 78.307047 | G191: 88.790106 | H191: 188.237382 | I191: 28.237382 | J191: 73.303372 | K191: 273.303372 | L191: 58.512482 | M191: 158.512482 | N191: 127.438264 | O191: 52.438264 | P191: 110.671064 | Q191: 50.671064 | R191: 302.219657 | S191: 32.219657 | T191: 238.93981 | U191: 58.93981 | V191: 398.447369 | W191: 48.447369
A192: 669.705473 | B192: 5.761986 | C192: 26.739988 | D192: 36.739988 | E192: 93.847198 | F192: 83.847198 | G192: 90.291739 | H192: 188.720892 | I192: 28.720892 | J192: 73.388907 | K192: 273.388907 | L192: 59.699941 | M192: 159.699941 | N192: 127.184582 | O192: 52.184582 | P192: 110.926488 | Q192: 50.926488 | R192: 302.113225 | S192: 32.113225 | T192: 238.354134 | U192: 58.354134 | V192: 400.085935 | W192: 50.085935
A193: 671.133417 | B193: 5.897291 | C193: 27.65025 | D193: 37.65025 | E193: 99.672565 | F193: 89.672565 | G193: 92.464423 | H193: 189.009074 | I193: 29.009074 | J193: 73.477357 | K193: 273.477357 | L193: 61.499828 | M193: 161.499828 | N193: 126.588212 | O193: 51.588212 | P193: 112.156207 | Q193: 52.156207 | R193: 302.022644 | S193: 32.022644 | T193: 238.246294 | U193: 58.246294 | V193: 402.632473 | W193: 52.632473
A194: 672.56136 | B194: 6.079428 | C194: 28.218657 | D194: 38.218657 | E194: 101.058745 | F194: 91.058745 | G194: 93.264353 | H194: 189.194823 | I194: 29.194823 | J194: 73.568896 | K194: 273.568896 | L194: 62.359092 | M194: 162.359092 | N194: 126.578317 | O194: 51.578317 | P194: 112.992309 | Q194: 52.992309 | R194: 302.179781 | S194: 32.179781 | T194: 238.476463 | U194: 58.476463 | V194: 403.744143 | W194: 53.744143
A195: 673.989303 | B195: 6.261375 | C195: 28.480311 | D195: 38.480311 | E195: 100.759616 | F195: 90.759616 | G195: 93.105677 | H195: 189.256467 | I195: 29.256467 | J195: 73.662612 | K195: 273.662612 | L195: 62.391497 | M195: 162.391497 | N195: =O195+75 -> 126.731513 | O195: 51.731513 | P195: 113.113684 | Q195: 53.113684 | R195: 302.343319 | S195: 32.343319 | T195: 238.470621 | U195: 58.470621 | V195: 403.802824 | W195: 53.802824
A196: 675.417247 | B196: 6.413927 | C196: =D196-10 -> 28.738659 | D196: 38.738659 | E196: =F196+10 -> 100.697028 | F196: 90.697028 | G196: 93.081044 | H196: =I196+160 -> 189.362646 | I196: 29.362646 | J196: 73.753146 | K196: =J196+200 -> 273.753146 | L196: 62.526171 | M196: =L196+100 -> 162.526171 | N196: 126.77868 | O196: 51.77868 | P196: =Q196+60 -> 113.275781 | Q196: 53.275781 | R196: =S196+270 -> 302.442961 | S196: 32.442961 | T196: =U196+180 -> 238.49116 | U196: 58.49116 | V196: =W196+350 -> 403.886234 | W196: 53.886234
A197: 676.84519 | B197: 6.602882 | C197: 29.101085 | D197: 39.101085 | E197: 100.465444 | F197: 90.465444 | G197: 93.237809 | H197: 189.520553 | I197: 29.520553 | J197: 73.837427 | K197: 273.837427 | L197: 62.851974 | M197: 162.851974 | N197: 126.92034 | O197: 51.92034 | P197: 113.560967 | Q197: 53.560967 | R197: 302.681354 | S197: 32.681354 | T197: 238.636921 | U197: 58.636921 | V197: 404.084909 | W197: 54.084909
A198: 678.273134 | B198: 6.788987 | C198: 29.34215 | D198: 39.34215 | E198: 100.450639 | F198: 90.450639 | G198: 93.190123 | H198: 189.579553 | I198: 29.579553 | J198: 73.914506 | K198: 273.914506 | L198: 63.026734 | M198: 163.026734 | N198: 127.064817 | O198: 52.064817 | P198: 113.736155 | Q198: 53.736155 | R198: 302.893556 | S198: 32.893556 | T198: 238.692222 | U198: 58.692222 | V198: 404.233426 | W198: 54.233426
A199: 679.701077 | B199: 6.953054 | C199: 29.620717 | D199: 39.620717 | E199: 100.556289 | F199: 90.556289 | G199: 93.142956 | H199: 189.69519 | I199: 29.69519 | J199: 73.979799 | K199: 273.979799 | L199: 63.294541 | M199: 163.294541 | N199: 127.230544 | O199: 52.230544 | P199: 114.037071 | Q199: 54.037071 | R199: 303.067351 | S199: 33.067351 | T199: 238.884221 | U199: 58.884221 | V199: 404.504403 | W199: 54.504403
A200: 681.129021 | B200: 7.108404 | C200: 29.872108 | D200: 39.872108 | E200: 100.39707 | F200: 90.39707 | G200: 93.000817 | H200: 189.803121 | I200: 29.803121 | J200: 74.032517 | K200: 274.032517 | L200: 63.427222 | M200: 163.427222 | N200: 127.384302 | O200: 52.384302 | P200: 114.180763 | Q200: 54.180763 | R200: 303.309033 | S200: 33.309033 | T200: 238.994906 | U200: 58.994906 | V200: 404.618462 | W200: 54.618462
... 2324 more rows

Sheet final important
A1: WAVELENGTH | B1: T% | C1: T% | D1: T% | E1: T% | F1: T% | G1: T% | H1: T% | I1: T% | J1: T% | K1: T% | L1: T% | M1: T% | N1: T% | O1: T%
A2: 1/CM | B2: FE3O4 NP | C2: FE-GO | D2: FE-GO | E2: LEVODOPA | F2: LEVODOPA | G2: GO | H2: SA-LS | I2: SA-LS-LD | J2: SA-LS-LD | K2: SA-LS-LD | L2: SA-LS-FE-LD | M2: SA-LS-GO-LD | N2: SA-LS-FE-GO-LD | O2: SA-LS-FE-LD
A3: 399.824163 | B3: 3.402057 | C3: =D3-20 -> 7.118572 | D3: 27.118572 | E3: =F3+10 -> 89.811707 | F3: 79.811707 | G3: 81.688061 | H3: 263.023733 | I3: 52.254376 | J3: =K3+30 -> 182.254376 | K3: 152.254376 | L3: 99.554835 | M3: 309.478299 | N3: 388.058841 | O3: =L3+20 -> 119.554835
A4: 401.252106 | B4: 3.298871 | C4: =D4-10 -> 18.650192 | D4: 28.650192 | E4: =F4+10 -> 97.756139 | F4: 87.756139 | G4: 86.714362 | H4: 263.76752 | I4: 58.508639 | J4: =K4+30 -> 188.508639 | K4: 158.508639 | L4: 106.865773 | M4: 308.83301 | N4: 398.045155 | O4: =L4+20 -> 126.865773
A5: 402.68005 | B5: 3.459323 | C5: 19.903648 | D5: 29.903648 | E5: 102.656494 | F5: 92.656494 | G5: 91.774684 | H5: 264.438973 | I5: 62.958857 | J5: 192.958857 | K5: 162.958857 | L5: 110.744847 | M5: 308.3629 | N5: 404.455034 | O5: 130.744847
A6: 404.107993 | B6: 3.5494 | C6: 19.688431 | D6: 29.688431 | E6: 102.388527 | F6: 92.388527 | G6: 91.667372 | H6: 265.025689 | I6: 62.925721 | J6: 192.925721 | K6: 162.925721 | L6: 111.386152 | M6: 308.103548 | N6: 404.581046 | O6: 131.386152
A7: 405.535937 | B7: 3.472209 | C7: 20.190348 | D7: 30.190348 | E7: 102.458733 | F7: 92.458733 | G7: 92.122539 | H7: 265.525454 | I7: 63.558267 | J7: 193.558267 | K7: 163.558267 | L7: 112.366222 | M7: 308.100382 | N7: 404.920897 | O7: 132.366222
A8: 406.96388 | B8: 3.696794 | C8: 20.433625 | D8: 30.433625 | E8: 103.78237 | F8: 93.78237 | G8: 94.025528 | H8: 265.912678 | I8: 64.411122 | J8: 194.411122 | K8: 164.411122 | L8: 112.631993 | M8: 308.316128 | N8: 406.034363 | O8: 132.631993
A9: 408.391824 | B9: 3.779548 | C9: 19.914948 | D9: 29.914948 | E9: 103.442835 | F9: 93.442835 | G9: 92.107075 | H9: 266.166479 | I9: 62.65917 | J9: 192.65917 | K9: 162.65917 | L9: 111.498807 | M9: 308.155755 | N9: 404.970846 | O9: 131.498807
A10: 409.819767 | B10: 3.71445 | C10: 20.311606 | D10: 30.311606 | E10: 103.784032 | F10: 93.784032 | G10: 92.504718 | H10: 266.283953 | I10: 62.4524 | J10: 192.4524 | K10: 162.4524 | L10: 111.740744 | M10: 307.979439 | N10: 405.344676 | O10: 131.740744
A11: 411.247711 | B11: 3.887496 | C11: 20.190182 | D11: 30.190182 | E11: 103.669124 | F11: 93.669124 | G11: 93.258557 | H11: 266.27316 | I11: 62.801333 | J11: 192.801333 | K11: 162.801333 | L11: 111.6695 | M11: 307.987731 | N11: 405.584576 | O11: 131.6695
A12: 412.675654 | B12: 3.901207 | C12: 20.015209 | D12: 30.015209 | E12: 102.811851 | F12: 92.811851 | G12: 91.86001 | H12: 266.143707 | I12: 62.863568 | J12: 192.863568 | K12: 162.863568 | L12: 111.151942 | M12: 307.79953 | N12: 404.729656 | O12: 131.151942
A13: 414.103597 | B13: 3.844948 | C13: 20.517135 | D13: 30.517135 | E13: 103.205081 | F13: 93.205081 | G13: 93.115956 | H13: 265.898795 | I13: 63.961034 | J13: 193.961034 | K13: 163.961034 | L13: 111.726003 | M13: 307.693352 | N13: 405.268923 | O13: 131.726003
A14: 415.531541 | B14: 3.901362 | C14: 19.942358 | D14: 29.942358 | E14: 101.732255 | F14: 91.732255 | G14: 92.019283 | H14: 265.560863 | I14: 62.166912 | J14: 192.166912 | K14: 162.166912 | L14: 110.568811 | M14: 307.607345 | N14: 403.427747 | O14: 130.568811
A15: 416.959484 | B15: 3.862229 | C15: 18.566752 | D15: 28.566752 | E15: 95.736726 | F15: 85.736726 | G15: 86.259858 | H15: 265.174187 | I15: 56.58808 | J15: 186.58808 | K15: 156.58808 | L15: 104.992595 | M15: 307.409759 | N15: 395.806532 | O15: 124.992595
A16: 418.387428 | B16: 3.910348 | C16: 16.59908 | D16: 26.59908 | E16: 83.985494 | F16: 73.985494 | G16: 78.859911 | H16: 264.779999 | I16: 48.286318 | J16: 178.286318 | K16: 148.286318 | L16: 94.446025 | M16: 307.260949 | N16: 382.372599 | O16: 114.446025
A17: 419.815371 | B17: 3.935599 | C17: 17.833688 | D17: 27.833688 | E17: 89.92816 | F17: 79.92816 | G17: 83.035186 | H17: 264.506716 | I17: 52.310642 | J17: 182.310642 | K17: 152.310642 | L17: 99.695842 | M17: 306.742759 | N17: 388.592454 | O17: 119.695842
A18: 421.243315 | B18: 3.903377 | C18: 19.603834 | D18: 29.603834 | E18: 97.569479 | F18: 87.569479 | G18: 88.817812 | H18: 264.419858 | I18: 58.185487 | J18: 188.185487 | K18: 158.185487 | L18: 106.689395 | M18: 306.493902 | N18: 397.543732 | O18: 126.689395
A19: 422.671258 | B19: 3.968455 | C19: 19.398304 | D19: 29.398304 | E19: 97.864735 | F19: 87.864735 | G19: 88.786786 | H19: 264.494162 | I19: 58.364366 | J19: 188.364366 | K19: 158.364366 | L19: 106.415819 | M19: 306.580318 | N19: 397.733188 | O19: 126.415819
A20: 424.099202 | B20: 3.94813 | C20: 19.254651 | D20: 29.254651 | E20: 96.930613 | F20: 86.930613 | G20: 87.447505 | H20: 264.686313 | I20: 57.757685 | J20: 187.757685 | K20: 157.757685 | L20: 105.831819 | M20: 306.495291 | N20: 396.809014 | O20: 125.831819
A21: 425.527145 | B21: 3.99803 | C21: 20.019822 | D21: 30.019822 | E21: 98.947636 | F21: 88.947636 | G21: 90.050252 | H21: 264.998001 | I21: 59.496401 | J21: 189.496401 | K21: 159.496401 | L21: 107.839248 | M21: 306.242644 | N21: 399.503294 | O21: 127.839248
A22: 426.955088 | B22: 4.051373 | C22: 20.28938 | D22: 30.28938 | E22: 101.701844 | F22: 91.701844 | G22: 92.37839 | H22: 265.427639 | I22: 61.183091 | J22: 191.183091 | K22: 161.183091 | L22: 110.008869 | M22: 306.163612 | N22: 402.967953 | O22: 130.008869
A23: 428.383032 | B23: 3.941007 | C23: 20.671042 | D23: 30.671042 | E23: 103.332905 | F23: 93.332905 | G23: 93.44912 | H23: 265.940032 | I23: 62.411962 | J23: 192.411962 | K23: 162.411962 | L23: 111.595434 | M23: 306.123456 | N23: 404.990133 | O23: 131.595434
A24: 429.810975 | B24: 3.989846 | C24: 20.899723 | D24: 30.899723 | E24: 102.861859 | F24: 92.861859 | G24: 93.917926 | H24: 266.494517 | I24: 62.40359 | J24: 192.40359 | K24: 162.40359 | L24: 111.27463 | M24: 305.986975 | N24: 404.449521 | O24: 131.27463
A25: 431.238919 | B25: 4.102672 | C25: 20.646076 | D25: 30.646076 | E25: 102.016752 | F25: 92.016752 | G25: 92.940644 | H25: 267.058856 | I25: 61.500546 | J25: 191.500546 | K25: 161.500546 | L25: 110.366872 | M25: 305.758419 | N25: 403.39851 | O25: 130.366872
A26: 432.666862 | B26: 4.080409 | C26: 20.753386 | D26: 30.753386 | E26: 102.373917 | F26: 92.373917 | G26: 93.221763 | H26: 267.590662 | I26: 61.671866 | J26: 191.671866 | K26: 161.671866 | L26: 110.81608 | M26: 305.558815 | N26: 403.853835 | O26: 130.81608
A27: 434.094806 | B27: 4.076418 | C27: 20.386892 | D27: 30.386892 | E27: 100.763097 | F27: 90.763097 | G27: 92.686657 | H27: 268.038781 | I27: 60.467404 | J27: 190.467404 | K27: 160.467404 | L27: 109.646325 | M27: 305.418326 | N27: 402.015043 | O27: 129.646325
A28: 435.522749 | B28: 4.012289 | C28: 19.960698 | D28: 29.960698 | E28: 98.623292 | F28: 88.623292 | G28: 90.590429 | H28: 268.365987 | I28: 58.718485 | J28: 188.718485 | K28: 158.718485 | L28: 107.650224 | M28: 305.295158 | N28: 399.219441 | O28: 127.650224
A29: 436.950692 | B29: 4.043009 | C29: 20.59956 | D29: 30.59956 | E29: 100.512777 | F29: 90.512777 | G29: 92.081163 | H29: 268.584589 | I29: 60.164416 | J29: 190.164416 | K29: 160.164416 | L29: 108.640053 | M29: 305.228974 | N29: 401.088609 | O29: 128.640053
A30: 438.378636 | B30: 4.203843 | C30: 20.961224 | D30: 30.961224 | E30: 102.740612 | F30: 92.740612 | G30: 93.906596 | H30: 268.694013 | I30: 61.718339 | J30: 191.718339 | K30: 161.718339 | L30: 110.527156 | M30: 305.143452 | N30: 404.074292 | O30: 130.527156
A31: 439.806579 | B31: 4.213089 | C31: 21.024859 | D31: 31.024859 | E31: 102.724538 | F31: 92.724538 | G31: 93.551821 | H31: 268.693871 | I31: 61.856652 | J31: 191.856652 | K31: 161.856652 | L31: 110.896111 | M31: 305.1353 | N31: 404.099848 | O31: 130.896111
A32: 441.234523 | B32: 4.269092 | C32: 20.958895 | D32: 30.958895 | E32: 100.979953 | F32: 90.979953 | G32: 92.849585 | H32: 268.607779 | I32: 61.054136 | J32: 191.054136 | K32: 161.054136 | L32: 109.212213 | M32: 305.284915 | N32: 401.43946 | O32: 129.212213
A33: 442.662466 | B33: 4.386625 | C33: 20.502053 | D33: 30.502053 | E33: 98.590164 | F33: 88.590164 | G33: 90.979343 | H33: 268.465561 | I33: 59.220194 | J33: 189.220194 | K33: 159.220194 | L33: 107.078437 | M33: 305.263346 | N33: 398.691775 | O33: 127.078437
A34: 444.09041 | B34: 4.402851 | C34: 20.868012 | D34: 30.868012 | E34: 99.020313 | F34: 89.020313 | G34: 90.943692 | H34: 268.281871 | I34: 59.441189 | J34: 189.441189 | K34: 159.441189 | L34: 107.704235 | M34: 305.190145 | N34: 399.755895 | O34: 127.704235
A35: 445.518353 | B35: 4.530351 | C35: 21.058603 | D35: 31.058603 | E35: 99.300472 | F35: 89.300472 | G35: 91.460558 | H35: 268.07666 | I35: 59.514243 | J35: 189.514243 | K35: 159.514243 | L35: 107.856232 | M35: 305.285495 | N35: 400.178752 | O35: 127.856232
A36: 446.946297 | B36: 4.553946 | C36: 20.793408 | D36: 30.793408 | E36: 98.581884 | F36: 88.581884 | G36: 90.28215 | H36: 267.872157 | I36: 58.593439 | J36: 188.593439 | K36: 158.593439 | L36: 107.336651 | M36: 305.23 | N36: 399.115052 | O36: 127.336651
A37: 448.37424 | B37: 4.555201 | C37: 21.589642 | D37: 31.589642 | E37: 101.5902 | F37: 91.5902 | G37: 92.4696 | H37: 267.674012 | I37: 60.976025 | J37: 190.976025 | K37: 160.976025 | L37: 109.889406 | M37: 305.215371 | N37: 402.327114 | O37: 129.889406
A38: 449.802183 | B38: 4.787302 | C38: 22.051301 | D38: 32.051301 | E38: 103.505059 | F38: 93.505059 | G38: 94.346699 | H38: 267.507595 | I38: 62.650412 | J38: 192.650412 | K38: 162.650412 | L38: 111.40237 | M38: 305.278597 | N38: 404.717602 | O38: 131.40237
A39: 451.230127 | B39: 4.843343 | C39: 21.644716 | D39: 31.644716 | E39: 100.49966 | F39: 90.49966 | G39: 91.826635 | H39: 267.413242 | I39: 60.299955 | J39: 190.299955 | K39: 160.299955 | L39: 108.949297 | M39: 305.080437 | N39: 401.29673 | O39: 128.949297
A40: 452.65807 | B40: 4.863829 | C40: 21.806225 | D40: 31.806225 | E40: 98.802146 | F40: 88.802146 | G40: 90.974088 | H40: 267.389904 | I40: 58.829809 | J40: 188.829809 | K40: 158.829809 | L40: 107.510111 | M40: 304.847717 | N40: 399.166368 | O40: 127.510111
A41: 454.086014 | B41: 5.107643 | C41: 22.259139 | D41: 32.259139 | E41: 101.007033 | F41: 91.007033 | G41: 92.668011 | H41: 267.377845 | I41: 60.324232 | J41: 190.324232 | K41: 160.324232 | L41: 109.620782 | M41: 304.698521 | N41: 401.849241 | O41: 129.620782
A42: 455.513957 | B42: 5.225476 | C42: 22.213331 | D42: 32.213331 | E42: 100.830204 | F42: 90.830204 | G42: 92.451166 | H42: 267.389812 | I42: 60.645653 | J42: 190.645653 | K42: 160.645653 | L42: 109.787512 | M42: 304.462393 | N42: 401.421803 | O42: 129.787512
A43: 456.941901 | B43: 5.370467 | C43: 21.646695 | D43: 31.646695 | E43: 97.763332 | F43: 87.763332 | G43: 90.600047 | H43: 267.445844 | I43: 58.313297 | J43: 188.313297 | K43: 158.313297 | L43: 106.358654 | M43: 304.279802 | N43: 396.6952 | O43: 126.358654
A44: 458.369844 | B44: 5.534286 | C44: 21.824878 | D44: 31.824878 | E44: 98.114519 | F44: 88.114519 | G44: 90.137113 | H44: 267.535421 | I44: 57.647552 | J44: 187.647552 | K44: 157.647552 | L44: 106.026664 | M44: 304.04988 | N44: 396.923705 | O44: 126.026664
A45: 459.797788 | B45: 5.57774 | C45: 22.909005 | D45: 32.909005 | E45: 101.180667 | F45: 91.180667 | G45: 92.378233 | H45: 267.650073 | I45: 60.11608 | J45: 190.11608 | K45: 160.11608 | L45: 108.974325 | M45: 303.80161 | N45: 401.212163 | O45: 128.974325
A46: 461.225731 | B46: 5.793989 | C46: 23.120216 | D46: 33.120216 | E46: 101.488109 | F46: 91.488109 | G46: 92.890744 | H46: 267.784815 | I46: 60.384515 | J46: 190.384515 | K46: 160.384515 | L46: 109.168646 | M46: 303.746394 | N46: 401.75526 | O46: 129.168646
A47: 462.653674 | B47: 6.01696 | C47: 23.416443 | D47: 33.416443 | E47: 101.563086 | F47: 91.563086 | G47: 92.712904 | H47: 267.923391 | I47: 60.247591 | J47: 190.247591 | K47: 160.247591 | L47: 109.551259 | M47: 303.7016 | N47: 402.072356 | O47: 129.551259
A48: 464.081618 | B48: 6.217574 | C48: 24.375436 | D48: 34.375436 | E48: 103.649469 | F48: 93.649469 | G48: 94.978491 | H48: 268.046094 | I48: 62.246862 | J48: 192.246862 | K48: 162.246862 | L48: 111.778127 | M48: 303.639846 | N48: 404.819227 | O48: 131.778127
A49: 465.509561 | B49: 6.437021 | C49: 24.276844 | D49: 34.276844 | E49: 103.341422 | F49: 93.341422 | G49: 94.752834 | H49: 268.145458 | I49: 61.901839 | J49: 191.901839 | K49: 161.901839 | L49: 111.283219 | M49: 303.581617 | N49: 404.383397 | O49: 131.283219
A50: 466.937505 | B50: 6.496584 | C50: 23.809881 | D50: 33.809881 | E50: 99.933393 | F50: 89.933393 | G50: 91.777986 | H50: 268.224101 | I50: 58.989121 | J50: 188.989121 | K50: 158.989121 | L50: 108.244955 | M50: 303.421773 | N50: 400.274226 | O50: 128.244955
A51: 468.365448 | B51: 6.676858 | C51: 24.227262 | D51: 34.227262 | E51: 98.816209 | F51: 88.816209 | G51: 91.542836 | H51: 268.283919 | I51: 58.251084 | J51: 188.251084 | K51: 158.251084 | L51: 107.357064 | M51: 303.268372 | N51: 398.931407 | O51: 127.357064
A52: 469.793392 | B52: 6.897805 | C52: 24.624814 | D52: 34.624814 | E52: 100.084591 | F52: 90.084591 | G52: 92.473526 | H52: 268.346702 | I52: 59.392504 | J52: 189.392504 | K52: 159.392504 | L52: 108.431837 | M52: 303.15299 | N52: 400.277278 | O52: 128.431837
A53: 471.221335 | B53: 6.926453 | C53: 24.587792 | D53: 34.587792 | E53: 99.259627 | F53: 89.259627 | G53: 91.899677 | H53: 268.438517 | I53: 58.852323 | J53: 188.852323 | K53: 158.852323 | L53: 107.370198 | M53: 303.004159 | N53: 398.816623 | O53: 127.370198
A54: 472.649278 | B54: 7.099684 | C54: 24.552503 | D54: 34.552503 | E54: 98.131913 | F54: 88.131913 | G54: 91.149329 | H54: 268.562804 | I54: 57.202912 | J54: 187.202912 | K54: 157.202912 | L54: 105.610169 | M54: 302.796758 | N54: 396.944158 | O54: 125.610169
A55: 474.077222 | B55: 7.297611 | C55: 25.280623 | D55: 35.280623 | E55: 100.709083 | F55: 90.709083 | G55: 92.522716 | H55: 268.722519 | I55: 58.809228 | J55: 188.809228 | K55: 158.809228 | L55: 108.009371 | M55: 302.524946 | N55: 400.301276 | O55: 128.009371
A56: 475.505165 | B56: 7.385651 | C56: 26.007069 | D56: 36.007069 | E56: 102.349934 | F56: 92.349934 | G56: 94.405322 | H56: 268.922505 | I56: 60.783332 | J56: 190.783332 | K56: 160.783332 | L56: 110.028802 | M56: 302.383858 | N56: 402.72371 | O56: 130.028802
A57: 476.933109 | B57: 7.514138 | C57: 26.00101 | D57: 36.00101 | E57: 101.981938 | F57: 91.981938 | G57: 94.331222 | H57: 269.12914 | I57: 60.434741 | J57: 190.434741 | K57: 160.434741 | L57: 109.738586 | M57: 302.349472 | N57: 402.240666 | O57: 129.738586
A58: 478.361052 | B58: 7.547347 | C58: 26.24938 | D58: 36.24938 | E58: 102.656089 | F58: 92.656089 | G58: 94.288359 | H58: 269.307403 | I58: 60.558245 | J58: 190.558245 | K58: 160.558245 | L58: 110.294336 | M58: 302.287667 | N58: 402.943822 | O58: 130.294336
A59: 479.788996 | B59: 7.609352 | C59: 26.657727 | D59: 36.657727 | E59: 103.004 | F59: 93.004 | G59: 95.020788 | H59: 269.450821 | I59: 60.846285 | J59: 190.846285 | K59: 160.846285 | L59: 110.554996 | M59: 302.228992 | N59: 403.401126 | O59: 130.554996
A60: 481.216939 | B60: 7.717308 | C60: 26.51223 | D60: 36.51223 | E60: 101.769065 | F60: 91.769065 | G60: 94.117692 | H60: 269.550647 | I60: 59.649232 | J60: 189.649232 | K60: 159.649232 | L60: 109.369034 | M60: 302.011774 | N60: 401.917492 | O60: 129.369034
A61: 482.644883 | B61: 7.754219 | C61: 26.656708 | D61: 36.656708 | E61: 101.538201 | F61: 91.538201 | G61: 93.819925 | H61: 269.591324 | I61: 59.486231 | J61: 189.486231 | K61: 159.486231 | L61: 109.069884 | M61: 301.718222 | N61: 401.348159 | O61: 129.069884
A62: 484.072826 | B62: 7.893762 | C62: 26.765686 | D62: 36.765686 | E62: 101.407547 | F62: 91.407547 | G62: 94.022724 | H62: 269.592327 | I62: 59.344424 | J62: 189.344424 | K62: 159.344424 | L62: 108.570526 | M62: 301.627602 | N62: 400.632386 | O62: 128.570526
A63: 485.500769 | B63: 8.031326 | C63: 26.682886 | D63: 36.682886 | E63: 100.941918 | F63: 90.941918 | G63: 93.136868 | H63: 269.591259 | I63: 58.616056 | J63: 188.616056 | K63: 158.616056 | L63: 108.010376 | M63: 301.498461 | N63: 399.944921 | O63: 128.010376
A64: 486.928713 | B64: 8.121221 | C64: 27.215112 | D64: 37.215112 | E64: 102.161475 | F64: 92.161475 | G64: 94.06713 | H64: 269.593009 | I64: 59.725674 | J64: 189.725674 | K64: 159.725674 | L64: 109.29044 | M64: 301.315161 | N64: 401.696858 | O64: 129.29044
A65: 488.356656 | B65: 8.225129 | C65: 27.535662 | D65: 37.535662 | E65: 102.892914 | F65: 92.892914 | G65: 94.941021 | H65: 269.590284 | I65: 60.399101 | J65: 190.399101 | K65: 160.399101 | L65: 110.108045 | M65: 301.214158 | N65: 402.815572 | O65: 130.108045
A66: 489.7846 | B66: 8.191527 | C66: 27.401343 | D66: 37.401343 | E66: 101.638453 | F66: 91.638453 | G66: 93.733267 | H66: 269.593666 | I66: 59.225373 | J66: 189.225373 | K66: 159.225373 | L66: 109.063494 | M66: 301.027538 | N66: 401.368194 | O66: 129.063494
A67: 491.212543 | B67: 8.217055 | C67: 27.187145 | D67: 37.187145 | E67: 99.724719 | F67: 89.724719 | G67: 92.48856 | H67: 269.597834 | I67: 57.61764 | J67: 187.61764 | K67: 157.61764 | L67: 107.236024 | M67: 300.896453 | N67: 399.047364 | O67: 127.236024
A68: 492.640487 | B68: 8.313671 | C68: =D68-10 -> 27.068652 | D68: 37.068652 | E68: =F68+10 -> 99.224458 | F68: 89.224458 | G68: 92.062714 | H68: 269.57418 | I68: 57.10096 | J68: =K68+30 -> 187.10096 | K68: 157.10096 | L68: 106.771013 | M68: 300.831589 | N68: 398.46021 | O68: =L68+20 -> 126.771013
A69: 494.06843 | B69: 8.27048 | C69: 27.71955 | D69: 37.71955 | E69: 101.283547 | F69: 91.283547 | G69: 93.584061 | H69: 269.516378 | I69: 58.920855 | J69: 188.920855 | K69: 158.920855 | L69: 108.739484 | M69: 300.663667 | N69: 401.057585 | O69: 128.739484
A70: 495.496373 | B70: 8.279776 | C70: 28.238356 | D70: 38.238356 | E70: 102.678696 | F70: 92.678696 | G70: 95.113003 | H70: 269.432937 | I70: 60.023467 | J70: 190.023467 | K70: 160.023467 | L70: 109.799024 | M70: 300.628362 | N70: 402.825098 | O70: 129.799024
A71: 496.924317 | B71: 8.26361 | C71: 28.117486 | D71: 38.117486 | E71: 102.468053 | F71: 92.468053 | G71: 94.610426 | H71: 269.312174 | I71: 59.430675 | J71: 189.430675 | K71: 159.430675 | L71: 109.372165 | M71: 300.624798 | N71: 402.381274 | O71: 129.372165
A72: 498.35226 | B72: 8.189113 | C72: 28.280183 | D72: 38.280183 | E72: 103.013779 | F72: 93.013779 | G72: 94.945849 | H72: 269.143138 | I72: 59.92411 | J72: 189.92411 | K72: 159.92411 | L72: 109.922052 | M72: 300.447515 | N72: 402.855817 | O72: 129.922052
A73: 499.780204 | B73: 8.212917 | C73: 28.028529 | D73: 38.028529 | E73: 101.998388 | F73: 91.998388 | G73: 94.491977 | H73: 268.949636 | I73: 59.205101 | J73: 189.205101 | K73: 159.205101 | L73: 109.138439 | M73: 300.27214 | N73: 401.748658 | O73: 129.138439
A74: 501.208147 | B74: 8.109691 | C74: 27.242293 | D74: 37.242293 | E74: 98.416571 | F74: 88.416571 | G74: 91.333157 | H74: 268.767782 | I74: 56.303763 | J74: 186.303763 | K74: 156.303763 | L74: 105.924221 | M74: 300.106111 | N74: 397.546537 | O74: 125.924221
A75: 502.636091 | B75: 7.963487 | C75: 27.388077 | D75: 37.388077 | E75: 98.013761 | F75: 88.013761 | G75: 90.984253 | H75: 268.604063 | I75: 55.914174 | J75: 185.914174 | K75: 155.914174 | L75: 105.186282 | M75: 300.005742 | N75: 396.737046 | O75: 125.186282
A76: 504.064034 | B76: 7.952054 | C76: 27.919203 | D76: 37.919203 | E76: 100.314672 | F76: 90.314672 | G76: 93.081119 | H76: 268.466555 | I76: 57.372428 | J76: 187.372428 | K76: 157.372428 | L76: 107.209988 | M76: 299.990041 | N76: 399.359436 | O76: 127.209988
A77: 505.491978 | B77: 7.854473 | C77: 28.023884 | D77: 38.023884 | E77: 100.636478 | F77: 90.636478 | G77: 93.453724 | H77: 268.371259 | I77: 57.678979 | J77: 187.678979 | K77: 157.678979 | L77: 107.730014 | M77: 299.893577 | N77: 399.81393 | O77: 127.730014
A78: 506.919921 | B78: 7.791842 | C78: 28.008877 | D78: 38.008877 | E78: 100.429021 | F78: 90.429021 | G78: 93.540988 | H78: 268.296337 | I78: 57.659673 | J78: 187.659673 | K78: 157.659673 | L78: 107.291004 | M78: 299.778493 | N78: 399.370184 | O78: 127.291004
A79: 508.347864 | B79: 7.745491 | C79: 28.007756 | D79: 38.007756 | E79: 100.690637 | F79: 90.690637 | G79: 93.727401 | H79: 268.215775 | I79: 57.631282 | J79: 187.631282 | K79: 157.631282 | L79: 107.651365 | M79: 299.597403 | N79: 399.902536 | O79: 127.651365
A80: 509.775808 | B80: 7.537465 | C80: 28.041164 | D80: 38.041164 | E80: 100.528427 | F80: 90.528427 | G80: 93.698583 | H80: 268.139693 | I80: 57.557376 | J80: 187.557376 | K80: 157.557376 | L80: 107.824252 | M80: 299.413644 | N80: 400.082875 | O80: 127.824252
A81: 511.203751 | B81: 7.360625 | C81: 27.90296 | D81: 37.90296 | E81: 100.727564 | F81: 90.727564 | G81: 93.856376 | H81: 268.07059 | I81: 57.593249 | J81: 187.593249 | K81: 157.593249 | L81: 107.612951 | M81: 299.363948 | N81: 400.087735 | O81: 127.612951
A82: 512.631695 | B82: 7.225917 | C82: 27.856555 | D82: 37.856555 | E82: 101.275198 | F82: 91.275198 | G82: 93.869896 | H82: 268.004103 | I82: 57.838255 | J82: 187.838255 | K82: 157.838255 | L82: 107.943834 | M82: 299.209274 | N82: 400.564852 | O82: 127.943834
A83: 514.059638 | B83: 7.069182 | C83: 27.830285 | D83: 37.830285 | E83: 100.516608 | F83: 90.516608 | G83: 93.494675 | H83: 267.955531 | I83: 57.549097 | J83: 187.549097 | K83: 157.549097 | L83: 107.526348 | M83: 299.050215 | N83: 399.923972 | O83: 127.526348
A84: 515.487582 | B84: 6.945325 | C84: 27.266378 | D84: 37.266378 | E84: 98.483486 | F84: 88.483486 | G84: 92.232199 | H84: 267.948097 | I84: 55.91784 | J84: 185.91784 | K84: 155.91784 | L84: 105.746216 | M84: 299.077707 | N84: 397.547666 | O84: 125.746216
A85: 516.915525 | B85: 6.7626 | C85: 26.829856 | D85: 36.829856 | E85: 97.095086 | F85: 87.095086 | G85: 91.139871 | H85: 268.001453 | I85: 54.701852 | J85: 184.701852 | K85: 154.701852 | L85: 104.509759 | M85: 299.015194 | N85: 395.663481 | O85: 124.509759
A86: 518.343469 | B86: 6.552538 | C86: 26.75886 | D86: 36.75886 | E86: 97.206481 | F86: 87.206481 | G86: 91.260803 | H86: 268.130643 | I86: 54.778769 | J86: 184.778769 | K86: 154.778769 | L86: 104.384987 | M86: 298.926759 | N86: 395.61057 | O86: 124.384987
A87: 519.771412 | B87: 6.384097 | C87: 26.684874 | D87: 36.684874 | E87: 98.456218 | F87: 88.456218 | G87: 91.772135 | H87: 268.331273 | I87: 55.274233 | J87: 185.274233 | K87: 155.274233 | L87: 105.237594 | M87: 298.883162 | N87: 397.01515 | O87: 125.237594
A88: 521.199355 | B88: 6.217002 | C88: 27.110132 | D88: 37.110132 | E88: 100.724741 | F88: 90.724741 | G88: 93.488424 | H88: 268.576354 | I88: 56.949548 | J88: 186.949548 | K88: 156.949548 | L88: 107.254966 | M88: 298.775245 | N88: 399.70719 | O88: 127.254966
A89: 522.627299 | B89: 6.039503 | C89: 27.296621 | D89: 37.296621 | E89: 102.021256 | F89: 92.021256 | G89: 95.003949 | H89: 268.844176 | I89: 58.150739 | J89: 188.150739 | K89: 158.150739 | L89: 108.433403 | M89: 298.847058 | N89: 401.363415 | O89: 128.433403
A90: 524.055242 | B90: 5.785594 | C90: 26.726351 | D90: 36.726351 | E90: 100.846376 | F90: 90.846376 | G90: 94.127223 | H90: 269.129486 | I90: 57.30233 | J90: 187.30233 | K90: 157.30233 | L90: 107.572547 | M90: 298.942209 | N90: 400.028091 | O90: 127.572547
A91: 525.483186 | B91: 5.536109 | C91: 26.226344 | D91: 36.226344 | E91: 99.081149 | F91: 89.081149 | G91: 92.97574 | H91: 269.425946 | I91: 56.344701 | J91: 186.344701 | K91: 156.344701 | L91: 106.069862 | M91: 298.858095 | N91: 397.823329 | O91: 126.069862
A92: 526.911129 | B92: 5.360352 | C92: 26.013201 | D92: 36.013201 | E92: 99.742406 | F92: 89.742406 | G92: 93.292338 | H92: 269.715917 | I92: 56.602569 | J92: 186.602569 | K92: 156.602569 | L92: 106.220284 | M92: 298.883499 | N92: 398.362873 | O92: 126.220284
A93: 528.339073 | B93: 5.104597 | C93: 25.976827 | D93: 35.976827 | E93: 101.570255 | F93: 91.570255 | G93: 94.131378 | H93: 269.983317 | I93: 57.63093 | J93: 187.63093 | K93: 157.63093 | L93: 107.792123 | M93: 298.95188 | N93: 400.584353 | O93: 127.792123
A94: 529.767016 | B94: 4.841793 | C94: 25.839341 | D94: 35.839341 | E94: 102.171539 | F94: 92.171539 | G94: 94.826833 | H94: 270.217559 | I94: 58.470422 | J94: 188.470422 | K94: 158.470422 | L94: 108.410409 | M94: 298.984334 | N94: 401.481988 | O94: 128.410409
A95: 531.194959 | B95: 4.632692 | C95: 25.344349 | D95: 35.344349 | E95: 101.981007 | F95: 91.981007 | G95: 94.616228 | H95: 270.412704 | I95: 58.265528 | J95: 188.265528 | K95: 158.265528 | L95: 108.059357 | M95: 299.071378 | N95: 401.215094 | O95: 128.059357
A96: 532.622903 | B96: 4.394187 | C96: 25.003861 | D96: 35.003861 | E96: 102.030316 | F96: 92.030316 | G96: 94.349233 | H96: 270.568525 | I96: 58.075754 | J96: 188.075754 | K96: 158.075754 | L96: 108.121361 | M96: 299.0575 | N96: 401.198946 | O96: 128.121361
A97: 534.050846 | B97: 4.176901 | C97: 24.599939 | D97: 34.599939 | E97: 101.747809 | F97: 91.747809 | G97: 94.413769 | H97: 270.694345 | I97: 58.060369 | J97: 188.060369 | K97: 158.060369 | L97: 107.888337 | M97: 298.988493 | N97: 400.873049 | O97: 127.888337
A98: 535.47879 | B98: 3.957755 | C98: 24.00391 | D98: 34.00391 | E98: 101.327081 | F98: 91.327081 | G98: 93.980434 | H98: 270.800457 | I98: 57.663837 | J98: 187.663837 | K98: 157.663837 | L98: 107.430857 | M98: 298.954105 | N98: 400.284194 | O98: 127.430857
A99: 536.906733 | B99: 3.71398 | C99: 23.740967 | D99: 33.740967 | E99: 101.561572 | F99: 91.561572 | G99: 94.065572 | H99: 270.876801 | I99: 57.801321 | J99: 187.801321 | K99: 157.801321 | L99: 107.695177 | M99: 298.90624 | N99: 400.458629 | O99: 127.695177
A100: 538.334677 | B100: 3.534559 | C100: 23.371713 | D100: 33.371713 | E100: 101.751413 | F100: 91.751413 | G100: 94.365878 | H100: 270.916256 | I100: 57.886821 | J100: 187.886821 | K100: 157.886821 | L100: 107.82772 | M100: 298.869286 | N100: 400.654372 | O100: 127.82772
A101: 539.76262 | B101: 3.330009 | C101: 22.884255 | D101: 32.884255 | E101: 101.747592 | F101: 91.747592 | G101: 94.144362 | H101: 270.93236 | I101: 57.678339 | J101: 187.678339 | K101: 157.678339 | L101: 107.70742 | M101: 298.801399 | N101: 400.569617 | O101: 127.70742
A102: 541.190564 | B102: 3.069099 | C102: 22.552329 | D102: 32.552329 | E102: 101.974274 | F102: 91.974274 | G102: 94.35256 | H102: 270.923427 | I102: 57.945618 | J102: 187.945618 | K102: 157.945618 | L102: 107.775386 | M102: 298.780995 | N102: 400.709723 | O102: 127.775386
A103: 542.618507 | B103: 2.880783 | C103: 22.025471 | D103: 32.025471 | E103: 102.033414 | F103: 92.033414 | G103: 94.430805 | H103: 270.881583 | I103: 57.830334 | J103: 187.830334 | K103: 157.830334 | L103: 107.715592 | M103: 298.818429 | N103: 400.693432 | O103: 127.715592
A104: 544.04645 | B104: 2.745154 | C104: 21.495364 | D104: 31.495364 | E104: 101.517627 | F104: 91.517627 | G104: 94.030515 | H104: 270.826883 | I104: 57.331063 | J104: 187.331063 | K104: 157.331063 | L104: 107.287138 | M104: 298.757818 | N104: 400.063387 | O104: 127.287138
A105: 545.474394 | B105: 2.562746 | C105: 20.899934 | D105: 30.899934 | E105: 100.57599 | F105: 90.57599 | G105: 93.619741 | H105: 270.779315 | I105: 56.92865 | J105: 186.92865 | K105: 156.92865 | L105: 106.362625 | M105: 298.727354 | N105: 398.950215 | O105: 126.362625
A106: 546.902337 | B106: 2.325176 | C106: 20.210762 | D106: 30.210762 | E106: 100.222722 | F106: 90.222722 | G106: 93.169968 | H106: 270.745716 | I106: 56.542816 | J106: 186.542816 | K106: 156.542816 | L106: 105.96385 | M106: 298.759651 | N106: 398.551913 | O106: 125.96385
A107: 548.330281 | B107: 2.113012 | C107: 19.810005 | D107: 29.810005 | E107: 100.386342 | F107: 90.386342 | G107: 93.217247 | H107: 270.745451 | I107: 56.616721 | J107: 186.616721 | K107: 156.616721 | L107: 106.26874 | M107: 298.773635 | N107: 398.872468 | O107: 126.26874
A108: 549.758224 | B108: 1.954115 | C108: 19.305994 | D108: 29.305994 | E108: 100.221193 | F108: 90.221193 | G108: 93.248698 | H108: 270.793799 | I108: 56.679746 | J108: 186.679746 | K108: 156.679746 | L108: 106.158265 | M108: 298.875309 | N108: 398.724177 | O108: 126.158265
A109: 551.186168 | B109: 1.82208 | C109: 18.838228 | D109: 28.838228 | E109: 100.905 | F109: 90.905 | G109: 93.374925 | H109: 270.877435 | I109: 57.028011 | J109: 187.028011 | K109: 157.028011 | L109: 106.618135 | M109: 298.928917 | N109: 399.314294 | O109: 126.618135
A110: 552.614111 | B110: 1.724736 | C110: 18.56737 | D110: 28.56737 | E110: 102.09748 | F110: 92.09748 | G110: 94.243262 | H110: 270.973518 | I110: 57.962307 | J110: 187.962307 | K110: 157.962307 | L110: 107.481471 | M110: 298.926289 | N110: 400.520234 | O110: 127.481471
A111: 554.042055 | B111: 1.60749 | C111: 17.984421 | D111: 27.984421 | E111: 102.049843 | F111: 92.049843 | G111: 94.299653 | H111: 271.065768 | I111: 57.918553 | J111: 187.918553 | K111: 157.918553 | L111: 107.250123 | M111: 299.055837 | N111: 400.362099 | O111: 127.250123
A112: 555.469998 | B112: 1.449338 | C112: 17.46748 | D112: 27.46748 | E112: 101.837932 | F112: 91.837932 | G112: 93.931377 | H112: 271.142132 | I112: 57.543295 | J112: 187.543295 | K112: 157.543295 | L112: 107.1226 | M112: 299.203538 | N112: 400.122392 | O112: 127.1226
A113: 556.897941 | B113: 1.351954 | C113: 17.085756 | D113: 27.085756 | E113: 102.078778 | F113: 92.078778 | G113: 94.28994 | H113: 271.198943 | I113: 57.909985 | J113: 187.909985 | K113: 157.909985 | L113: 107.465545 | M113: 299.287029 | N113: 400.584875 | O113: 127.465545
A114: 558.325885 | B114: 1.250021 | C114: 16.558337 | D114: 26.558337 | E114: 102.004869 | F114: 92.004869 | G114: 94.141573 | H114: 271.240145 | I114: 57.909307 | J114: 187.909307 | K114: 157.909307 | L114: 107.358034 | M114: 299.264557 | N114: 400.473432 | O114: 127.358034
A115: 559.753828 | B115: 1.092797 | C115: 16.193719 | D115: 26.193719 | E115: 102.240864 | F115: 92.240864 | G115: 94.09327 | H115: 271.265433 | I115: 57.95289 | J115: 187.95289 | K115: 157.95289 | L115: 107.496095 | M115: 299.180547 | N115: 400.562535 | O115: 127.496095
A116: 561.181772 | B116: 1.006789 | C116: 15.673328 | D116: 25.673328 | E116: 102.347118 | F116: 92.347118 | G116: 94.342805 | H116: 271.265807 | I116: 58.142418 | J116: 188.142418 | K116: 158.142418 | L116: 107.575113 | M116: 299.24355 | N116: 400.768916 | O116: 127.575113
A117: 562.609715 | B117: 0.96185 | C117: 15.082289 | D117: 25.082289 | E117: 101.950641 | F117: 91.950641 | G117: 93.908107 | H117: 271.236866 | I117: 57.84726 | J117: 187.84726 | K117: 157.84726 | L117: 107.245436 | M117: 299.30269 | N117: 400.341458 | O117: 127.245436
A118: 564.037659 | B118: 0.91622 | C118: 14.801303 | D118: 24.801303 | E118: 102.078904 | F118: 92.078904 | G118: 93.921608 | H118: 271.181949 | I118: 57.829133 | J118: 187.829133 | K118: 157.829133 | L118: 107.286941 | M118: 299.256163 | N118: 400.3076 | O118: 127.286941
A119: 565.465602 | B119: 0.903838 | C119: 14.355573 | D119: 24.355573 | E119: 102.031471 | F119: 92.031471 | G119: 93.949453 | H119: 271.104579 | I119: 57.658476 | J119: 187.658476 | K119: 157.658476 | L119: 107.14142 | M119: 299.265744 | N119: 400.13534 | O119: 127.14142
A120: 566.893545 | B120: 0.842207 | C120: 13.94062 | D120: 23.94062 | E120: 101.382239 | F120: 91.382239 | G120: 93.342546 | H120: 271.009573 | I120: 57.255976 | J120: 187.255976 | K120: 157.255976 | L120: 106.62491 | M120: 299.299365 | N120: 399.272641 | O120: 126.62491
A121: 568.321489 | B121: 0.781066 | C121: 13.72305 | D121: 23.72305 | E121: 101.100179 | F121: 91.100179 | G121: 93.252361 | H121: 270.908241 | I121: 57.429198 | J121: 187.429198 | K121: 157.429198 | L121: 106.383061 | M121: 299.392368 | N121: 398.934405 | O121: 126.383061
A122: 569.749432 | B122: 0.812325 | C122: 13.365898 | D122: 23.365898 | E122: 100.934164 | F122: 90.934164 | G122: 93.057428 | H122: 270.811566 | I122: 57.25577 | J122: 187.25577 | K122: 157.25577 | L122: 106.161117 | M122: 299.486735 | N122: 398.889523 | O122: 126.161117
A123: 571.177376 | B123: 0.817648 | C123: 13.261215 | D123: 23.261215 | E123: 101.167886 | F123: 91.167886 | G123: 93.07759 | H123: 270.719042 | I123: 57.201871 | J123: 187.201871 | K123: 157.201871 | L123: 106.360813 | M123: 299.452334 | N123: 399.196533 | O123: 126.360813
A124: 572.605319 | B124: 0.789134 | C124: 13.243774 | D124: 23.243774 | E124: 102.053046 | F124: 92.053046 | G124: 93.898132 | H124: 270.627411 | I124: 57.893635 | J124: 187.893635 | K124: 157.893635 | L124: 107.129535 | M124: 299.471725 | N124: 400.24124 | O124: 127.129535
A125: 574.033263 | B125: 0.794344 | C125: 12.901368 | D125: 22.901368 | E125: 101.611179 | F125: 91.611179 | G125: 93.410904 | H125: 270.543437 | I125: 57.443925 | J125: 187.443925 | K125: 157.443925 | L125: 106.788868 | M125: 299.53163 | N125: 399.727707 | O125: 126.788868
A126: 575.461206 | B126: 0.81113 | C126: 12.640247 | D126: 22.640247 | E126: 100.049765 | F126: 90.049765 | G126: 92.123871 | H126: 270.475446 | I126: 56.272505 | J126: 186.272505 | K126: 156.272505 | L126: 105.42209 | M126: 299.534015 | N126: 397.796517 | O126: 125.42209
A127: 576.88915 | B127: 0.817523 | C127: 12.65193 | D127: 22.65193 | E127: 100.494625 | F127: 90.494625 | G127: 92.532819 | H127: 270.42827 | I127: 56.723546 | J127: 186.723546 | K127: 156.723546 | L127: 105.688919 | M127: 299.564514 | N127: 398.333906 | O127: 125.688919
A128: 578.317093 | B128: 0.801035 | C128: 12.722903 | D128: 22.722903 | E128: 101.60098 | F128: 91.60098 | G128: 93.265591 | H128: 270.411976 | I128: 57.5279 | J128: 187.5279 | K128: 157.5279 | L128: 106.804276 | M128: 299.58469 | N128: 399.804342 | O128: 126.804276
A129: 579.745036 | B129: 0.791784 | C129: 12.616306 | D129: 22.616306 | E129: 100.68635 | F129: 90.68635 | G129: 92.746782 | H129: 270.430763 | I129: 56.959258 | J129: 186.959258 | K129: 156.959258 | L129: 106.191351 | M129: 299.632773 | N129: 398.811996 | O129: 126.191351
A130: 581.17298 | B130: 0.822635 | C130: 12.429525 | D130: 22.429525 | E130: 100.184364 | F130: 90.184364 | G130: 92.410209 | H130: 270.474996 | I130: 56.551534 | J130: 186.551534 | K130: 156.551534 | L130: 105.653012 | M130: 299.673576 | N130: 398.227625 | O130: 125.653012
A131: 582.600923 | B131: 0.835098 | C131: 12.517378 | D131: 22.517378 | E131: 101.266393 | F131: 91.266393 | G131: 93.019681 | H131: 270.538986 | I131: 57.257548 | J131: 187.257548 | K131: 157.257548 | L131: 106.57705 | M131: 299.610939 | N131: 399.513518 | O131: 126.57705
A132: 584.028867 | B132: 0.833151 | C132: =D132-10 -> 12.513829 | D132: 22.513829 | E132: =F132+10 -> 101.235112 | F132: 91.235112 | G132: 93.129354 | H132: 270.623537 | I132: 57.46351 | J132: =K132+30 -> 187.46351 | K132: 157.46351 | L132: 106.674807 | M132: 299.607136 | N132: 399.538232 | O132: =L132+20 -> 126.674807
A133: 585.45681 | B133: 0.857598 | C133: 12.434249 | D133: 22.434249 | E133: 101.006943 | F133: 91.006943 | G133: 92.844284 | H133: 270.720447 | I133: 57.256533 | J133: 187.256533 | K133: 157.256533 | L133: 106.437146 | M133: 299.584432 | N133: 399.215283 | O133: 126.437146
A134: 586.884754 | B134: 0.885275 | C134: 12.6882 | D134: 22.6882 | E134: 102.017195 | F134: 92.017195 | G134: 93.398899 | H134: 270.820012 | I134: 57.782864 | J134: 187.782864 | K134: 157.782864 | L134: 107.203183 | M134: 299.48286 | N134: 400.289192 | O134: 127.203183
A135: 588.312697 | B135: 0.913144 | C135: 12.773831 | D135: 22.773831 | E135: 102.334998 | F135: 92.334998 | G135: 93.746316 | H135: 270.920631 | I135: 58.064679 | J135: 188.064679 | K135: 158.064679 | L135: 107.530579 | M135: 299.49268 | N135: 400.757786 | O135: 127.530579
A136: 589.74064 | B136: 0.927863 | C136: 12.629511 | D136: 22.629511 | E136: 101.464397 | F136: 91.464397 | G136: 93.046728 | H136: 271.021063 | I136: 57.4456 | J136: 187.4456 | K136: 157.4456 | L136: 106.897161 | M136: 299.504426 | N136: 399.751855 | O136: 126.897161
A137: 591.168584 | B137: 0.928875 | C137: 12.641925 | D137: 22.641925 | E137: 100.42866 | F137: 90.42866 | G137: 92.311124 | H137: 271.119885 | I137: 56.698644 | J137: 186.698644 | K137: 156.698644 | L137: 105.955413 | M137: 299.504125 | N137: 398.351024 | O137: 125.955413
A138: 592.596527 | B138: 0.93051 | C138: 12.733414 | D138: 22.733414 | E138: 100.442409 | F138: 90.442409 | G138: 92.302763 | H138: 271.219911 | I138: 56.667991 | J138: 186.667991 | K138: 156.667991 | L138: 105.880006 | M138: 299.572255 | N138: 398.353944 | O138: 125.880006
A139: 594.024471 | B139: 0.926456 | C139: 12.969914 | D139: 22.969914 | E139: 101.62164 | F139: 91.62164 | G139: 92.999118 | H139: 271.324131 | I139: 57.48102 | J139: 187.48102 | K139: 157.48102 | L139: 106.987607 | M139: 299.576012 | N139: 399.888029 | O139: 126.987607
A140: 595.452414 | B140: 0.972088 | C140: 13.14213 | D140: 23.14213 | E140: 102.105294 | F140: 92.105294 | G140: 93.525879 | H140: 271.428203 | I140: 58.017886 | J140: 188.017886 | K140: 158.017886 | L140: 107.527588 | M140: 299.626762 | N140: 400.631424 | O140: 127.527588
A141: 596.880358 | B141: 1.055813 | C141: 13.146618 | D141: 23.146618 | E141: 101.994596 | F141: 91.994596 | G141: 93.496783 | H141: 271.52121 | I141: 58.049324 | J141: 188.049324 | K141: 158.049324 | L141: 107.567116 | M141: 299.696775 | N141: 400.656759 | O141: 127.567116
A142: 598.308301 | B142: 1.088333 | C142: 13.252087 | D142: 23.252087 | E142: 101.80431 | F142: 91.80431 | G142: 93.275798 | H142: 271.597273 | I142: 57.958572 | J142: 187.958572 | K142: 157.958572 | L142: 107.468973 | M142: 299.649422 | N142: 400.418803 | O142: 127.468973
A143: 599.736245 | B143: 1.092853 | C143: 13.263689 | D143: 23.263689 | E143: 100.900052 | F143: 90.900052 | G143: 92.732039 | H143: 271.658659 | I143: 57.411648 | J143: 187.411648 | K143: 157.411648 | L143: 106.60235 | M143: 299.644092 | N143: 399.340807 | O143: 126.60235
A144: 601.164188 | B144: 1.095297 | C144: 13.35127 | D144: 23.35127 | E144: 101.124911 | F144: 91.124911 | G144: 92.81645 | H144: 271.705594 | I144: 57.467687 | J144: 187.467687 | K144: 157.467687 | L144: 106.753272 | M144: 299.605232 | N144: 399.605438 | O144: 126.753272
A145: 602.592131 | B145: 1.09168 | C145: 13.615317 | D145: 23.615317 | E145: 102.320544 | F145: 92.320544 | G145: 93.611928 | H145: 271.736153 | I145: 58.172776 | J145: 188.172776 | K145: 158.172776 | L145: 107.727817 | M145: 299.495342 | N145: 400.856355 | O145: 127.727817
A146: 604.020075 | B146: 1.113627 | C146: 13.615087 | D146: 23.615087 | E146: 102.197907 | F146: 92.197907 | G146: 93.464633 | H146: 271.749274 | I146: 57.946037 | J146: 187.946037 | K146: 157.946037 | L146: 107.475314 | M146: 299.446788 | N146: 400.5433 | O146: 127.475314
A147: 605.448018 | B147: 1.138455 | C147: 13.672661 | D147: 23.672661 | E147: 102.203079 | F147: 92.203079 | G147: 93.307025 | H147: 271.739263 | I147: 57.814601 | J147: 187.814601 | K147: 157.814601 | L147: 107.40978 | M147: 299.302882 | N147: 400.39931 | O147: 127.40978
A148: 606.875962 | B148: 1.135384 | C148: 13.834183 | D148: 23.834183 | E148: 102.663919 | F148: 92.663919 | G148: 93.740352 | H148: 271.705085 | I148: 58.145842 | J148: 188.145842 | K148: 158.145842 | L148: 107.726467 | M148: 299.101654 | N148: 400.824028 | O148: 127.726467
A149: 608.303905 | B149: 1.123448 | C149: 13.799072 | D149: 23.799072 | E149: 102.388168 | F149: 92.388168 | G149: 93.564928 | H149: 271.657157 | I149: 57.839231 | J149: 187.839231 | K149: 157.839231 | L149: 107.356139 | M149: 298.973925 | N149: 400.45919 | O149: 127.356139
A150: 609.731849 | B150: 1.106035 | C150: 13.97599 | D150: 23.97599 | E150: 102.540588 | F150: 92.540588 | G150: 93.606197 | H150: 271.597809 | I150: 57.792558 | J150: 187.792558 | K150: 157.792558 | L150: 107.34847 | M150: 298.805351 | N150: 400.451564 | O150: 127.34847
A151: 611.159792 | B151: 1.046197 | C151: 14.205193 | D151: 24.205193 | E151: 102.67605 | F151: 92.67605 | G151: 93.808825 | H151: 271.518875 | I151: 57.832194 | J151: 187.832194 | K151: 157.832194 | L151: 107.330934 | M151: 298.61632 | N151: 400.393228 | O151: 127.330934
A152: 612.587736 | B152: 0.925572 | C152: 14.33599 | D152: 24.33599 | E152: 102.393193 | F152: 92.393193 | G152: 93.501923 | H152: 271.424488 | I152: 57.440542 | J152: 187.440542 | K152: 157.440542 | L152: 107.039605 | M152: 298.443433 | N152: 399.954559 | O152: 127.039605
A153: 614.015679 | B153: 0.798899 | C153: 14.632176 | D153: 24.632176 | E153: 102.444547 | F153: 92.444547 | G153: 93.449929 | H153: 271.326985 | I153: 57.30518 | J153: 187.30518 | K153: 157.30518 | L153: 106.937171 | M153: 298.263169 | N153: 399.780809 | O153: 126.937171
A154: 615.443622 | B154: 0.702151 | C154: 14.751073 | D154: 24.751073 | E154: 101.662693 | F154: 91.662693 | G154: 93.029331 | H154: 271.229179 | I154: 56.785109 | J154: 186.785109 | K154: 156.785109 | L154: 106.231927 | M154: 298.093201 | N154: 398.860672 | O154: 126.231927
A155: 616.871566 | B155: 0.656398 | C155: 14.899629 | D155: 24.899629 | E155: 101.022689 | F155: 91.022689 | G155: 92.693483 | H155: 271.130999 | I155: 56.49871 | J155: 186.49871 | K155: 156.49871 | L155: 106.048889 | M155: 297.908405 | N155: 398.474496 | O155: 126.048889
A156: 618.299509 | B156: 0.699785 | C156: 15.285445 | D156: 25.285445 | E156: 101.778651 | F156: 91.778651 | G156: 93.297464 | H156: 271.039461 | I156: 57.041978 | J156: 187.041978 | K156: 157.041978 | L156: 106.638582 | M156: 297.749479 | N156: 399.19212 | O156: 126.638582
A157: 619.727453 | B157: 0.786176 | C157: 15.42209 | D157: 25.42209 | E157: 102.004936 | F157: 92.004936 | G157: 93.246545 | H157: 270.959669 | I157: 56.842617 | J157: 186.842617 | K157: 156.842617 | L157: 106.305064 | M157: 297.622252 | N157: 398.848983 | O157: 126.305064
A158: 621.155396 | B158: 0.888709 | C158: 15.624266 | D158: 25.624266 | E158: 102.151038 | F158: 92.151038 | G158: 93.184811 | H158: 270.891937 | I158: 56.746993 | J158: 186.746993 | K158: 156.746993 | L158: 106.313352 | M158: 297.538143 | N158: 398.791953 | O158: 126.313352
A159: 622.58334 | B159: 0.998268 | C159: 15.919777 | D159: 25.919777 | E159: 102.61766 | F159: 92.61766 | G159: 93.65786 | H159: 270.843534 | I159: 57.217584 | J159: 187.217584 | K159: 157.217584 | L159: 106.822967 | M159: 297.575335 | N159: 399.379869 | O159: 126.822967
A160: 624.011283 | B160: 1.076669 | C160: 15.953832 | D160: 25.953832 | E160: 102.030778 | F160: 92.030778 | G160: 93.110138 | H160: 270.825585 | I160: 56.835797 | J160: 186.835797 | K160: 156.835797 | L160: 106.367022 | M160: 297.668603 | N160: 398.672553 | O160: 126.367022
A161: 625.439226 | B161: 1.178891 | C161: 16.160502 | D161: 26.160502 | E161: 101.617849 | F161: 91.617849 | G161: 92.712932 | H161: 270.838558 | I161: 56.681027 | J161: 186.681027 | K161: 156.681027 | L161: 106.202631 | M161: 297.81373 | N161: 398.234122 | O161: 126.202631
A162: 626.86717 | B162: 1.345855 | C162: 16.492603 | D162: 26.492603 | E162: 102.135378 | F162: 92.135378 | G162: 93.269884 | H162: 270.874668 | I162: 57.334779 | J162: 187.334779 | K162: 157.334779 | L162: 106.873158 | M162: 298.038287 | N162: 399.04303 | O162: 126.873158
A163: 628.295113 | B163: 1.508351 | C163: 16.735771 | D163: 26.735771 | E163: 102.478309 | F163: 92.478309 | G163: 93.523553 | H163: 270.929977 | I163: 57.783068 | J163: 187.783068 | K163: 157.783068 | L163: 107.488367 | M163: 298.255039 | N163: 399.79274 | O163: 127.488367
A164: 629.723057 | B164: 1.64648 | C164: 17.061484 | D164: 27.061484 | E164: 102.567318 | F164: 92.567318 | G164: 93.596492 | H164: 271.002385 | I164: 58.129543 | J164: 188.129543 | K164: 158.129543 | L164: 107.930069 | M164: 298.493423 | N164: 400.210638 | O164: 127.930069
A165: 631.151 | B165: 1.759019 | C165: 17.245599 | D165: 27.245599 | E165: 102.203675 | F165: 92.203675 | G165: 93.3745 | H165: 271.089158 | I165: 58.144898 | J165: 188.144898 | K165: 158.144898 | L165: 107.929311 | M165: 298.721645 | N165: 400.038103 | O165: 127.929311
A166: 632.578944 | B166: 1.852387 | C166: 17.414655 | D166: 27.414655 | E166: 101.582493 | F166: 91.582493 | G166: 92.912547 | H166: 271.192432 | I166: 57.963345 | J166: 187.963345 | K166: 157.963345 | L166: 107.790388 | M166: 298.899073 | N166: 399.618113 | O166: 127.790388
A167: 634.006887 | B167: 1.95979 | C167: 17.702212 | D167: 27.702212 | E167: 101.173103 | F167: 91.173103 | G167: 92.763275 | H167: 271.313311 | I167: 58.027958 | J167: 188.027958 | K167: 158.027958 | L167: 107.709522 | M167: 299.13847 | N167: 399.378027 | O167: 127.709522
A168: 635.434831 | B168: 2.042971 | C168: 17.934021 | D168: 27.934021 | E168: 100.990313 | F168: 90.990313 | G168: 92.658681 | H168: 271.442645 | I168: 58.114891 | J168: 188.114891 | K168: 158.114891 | L168: 107.724238 | M168: 299.336426 | N168: 399.368321 | O168: 127.724238
A169: 636.862774 | B169: 2.120167 | C169: 18.35178 | D169: 28.35178 | E169: 101.376688 | F169: 91.376688 | G169: 92.886769 | H169: 271.576116 | I169: 58.555401 | J169: 188.555401 | K169: 158.555401 | L169: 108.378098 | M169: 299.444313 | N169: 400.122217 | O169: 128.378098
A170: 638.290717 | B170: 2.226005 | C170: 18.741652 | D170: 28.741652 | E170: 101.435695 | F170: 91.435695 | G170: 93.026971 | H170: 271.716771 | I170: 58.820685 | J170: 188.820685 | K170: 158.820685 | L170: 108.731766 | M170: 299.598854 | N170: 400.482876 | O170: 128.731766
A171: 639.718661 | B171: 2.291109 | C171: 18.964152 | D171: 28.964152 | E171: 100.904066 | F171: 90.904066 | G171: 92.704837 | H171: 271.860409 | I171: 58.636469 | J171: 188.636469 | K171: 158.636469 | L171: 108.594015 | M171: 299.701457 | N171: 400.134236 | O171: 128.594015
A172: 641.146604 | B172: 2.372254 | C172: 19.381278 | D172: 29.381278 | E172: 101.052683 | F172: 91.052683 | G172: 92.945605 | H172: 271.999835 | I172: 59.025683 | J172: 189.025683 | K172: 159.025683 | L172: 109.062654 | M172: 299.773857 | N172: 400.59952 | O172: 129.062654
A173: 642.574548 | B173: 2.52591 | C173: 19.74038 | D173: 29.74038 | E173: 101.12383 | F173: 91.12383 | G173: 93.114698 | H173: 272.13317 | I173: 59.295794 | J173: 189.295794 | K173: 159.295794 | L173: 109.360581 | M173: 299.887266 | N173: 400.96103 | O173: 129.360581
A174: 644.002491 | B174: 2.655922 | C174: 20.079008 | D174: 30.079008 | E174: 100.737726 | F174: 90.737726 | G174: 92.87203 | H174: 272.25767 | I174: 59.120656 | J174: 189.120656 | K174: 159.120656 | L174: 109.294969 | M174: 299.907952 | N174: 400.746411 | O174: 129.294969
A175: 645.430435 | B175: 2.7697 | C175: 20.619111 | D175: 30.619111 | E175: 100.810939 | F175: 90.810939 | G175: 93.118696 | H175: 272.370497 | I175: 59.384891 | J175: 189.384891 | K175: 159.384891 | L175: 109.620035 | M175: 299.916966 | N175: 401.054263 | O175: 129.620035
A176: 646.858378 | B176: 2.907891 | C176: 21.019223 | D176: 31.019223 | E176: 100.531661 | F176: 90.531661 | G176: 93.05914 | H176: 272.47198 | I176: 59.446057 | J176: 189.446057 | K176: 159.446057 | L176: 109.753384 | M176: 299.939426 | N176: 401.149877 | O176: 129.753384
A177: 648.286322 | B177: 3.047704 | C177: 21.443805 | D177: 31.443805 | E177: 100.02042 | F177: 90.02042 | G177: 92.820521 | H177: 272.561796 | I177: 59.315942 | J177: 189.315942 | K177: 159.315942 | L177: 109.773844 | M177: 299.90061 | N177: 400.999289 | O177: 129.773844
A178: 649.714265 | B178: 3.204156 | C178: 21.932225 | D178: 31.932225 | E178: 100.100038 | F178: 90.100038 | G178: 93.043052 | H178: 272.6395 | I178: 59.457564 | J178: 189.457564 | K178: 159.457564 | L178: 109.894588 | M178: 299.910932 | N178: 401.132775 | O178: 129.894588
A179: 651.142208 | B179: 3.354407 | C179: 22.269006 | D179: 32.269006 | E179: 100.08619 | F179: 90.08619 | G179: 92.884076 | H179: 272.704554 | I179: 59.373846 | J179: 189.373846 | K179: 159.373846 | L179: 109.771311 | M179: 299.89301 | N179: 401.000723 | O179: 129.771311
A180: 652.570152 | B180: 3.488772 | C180: 22.759021 | D180: 32.759021 | E180: 100.18295 | F180: 90.18295 | G180: 92.84699 | H180: 272.757786 | I180: 59.539424 | J180: 189.539424 | K180: 159.539424 | L180: 109.918333 | M180: 299.864318 | N180: 401.094567 | O180: 129.918333
A181: 653.998095 | B181: 3.636596 | C181: 23.259382 | D181: 33.259382 | E181: 100.496656 | F181: 90.496656 | G181: 93.178241 | H181: 272.802203 | I181: 59.922751 | J181: 189.922751 | K181: 159.922751 | L181: 110.249757 | M181: 299.960495 | N181: 401.490221 | O181: 130.249757
A182: 655.426039 | B182: 3.784928 | C182: 23.651047 | D182: 33.651047 | E182: 100.534421 | F182: 90.534421 | G182: 93.148954 | H182: 272.837598 | I182: 59.998174 | J182: 189.998174 | K182: 159.998174 | L182: 110.45159 | M182: 300.055583 | N182: 401.705988 | O182: 130.45159
A183: 656.853982 | B183: 3.949987 | C183: 24.111605 | D183: 34.111605 | E183: 100.558071 | F183: 90.558071 | G183: 93.126126 | H183: 272.868391 | I183: 60.115608 | J183: 190.115608 | K183: 160.115608 | L183: 110.637919 | M183: 300.195422 | N183: 401.876771 | O183: 130.637919
A184: 658.281926 | B184: 4.136597 | C184: 24.454584 | D184: 34.454584 | E184: 100.414074 | F184: 90.414074 | G184: 92.994693 | H184: 272.905194 | I184: 60.078542 | J184: 190.078542 | K184: 160.078542 | L184: 110.516977 | M184: 300.431483 | N184: 401.660814 | O184: 130.516977
A185: 659.709869 | B185: 4.328436 | C185: 24.880962 | D185: 34.880962 | E185: 100.596658 | F185: 90.596658 | G185: 92.908233 | H185: 272.948275 | I185: 60.223325 | J185: 190.223325 | K185: 160.223325 | L185: 110.66624 | M185: 300.641135 | N185: 401.72103 | O185: 130.66624
A186: 661.137812 | B186: 4.522723 | C186: 25.403877 | D186: 35.403877 | E186: 101.324557 | F186: 91.324557 | G186: 93.28505 | H186: 272.992711 | I186: 60.856181 | J186: 190.856181 | K186: 160.856181 | L186: 111.326777 | M186: 300.85242 | N186: 402.505976 | O186: 131.326777
A187: 662.565756 | B187: 4.705924 | C187: 25.771735 | D187: 35.771735 | E187: 101.46041 | F187: 91.46041 | G187: 93.267426 | H187: 273.040764 | I187: 61.064394 | J187: 191.064394 | K187: 161.064394 | L187: 111.585941 | M187: 301.040226 | N187: 402.799625 | O187: 131.585941
A188: 663.993699 | B188: 4.909747 | C188: 26.235968 | D188: 36.235968 | E188: 101.885603 | F188: 91.885603 | G188: 93.289004 | H188: 273.09415 | I188: 61.28487 | J188: 191.28487 | K188: 161.28487 | L188: 111.772558 | M188: 301.178482 | N188: 403.065699 | O188: 131.772558
A189: 665.421643 | B189: 5.12602 | C189: 26.39094 | D189: 36.39094 | E189: 102.013424 | F189: 92.013424 | G189: 93.602424 | H189: 273.154045 | I189: 61.73567 | J189: 191.73567 | K189: 161.73567 | L189: 112.231133 | M189: 301.380834 | N189: 403.555078 | O189: 132.231133
A190: 666.849586 | B190: 5.327364 | C190: 25.736995 | D190: 35.736995 | E190: 97.03314 | F190: 87.03314 | G190: 92.181368 | H190: 273.223523 | I190: 60.862108 | J190: 190.862108 | K190: 160.862108 | L190: 112.085118 | M190: 301.736859 | N190: 402.130873 | O190: 132.085118
A191: 668.27753 | B191: 5.574608 | C191: 25.402158 | D191: 35.402158 | E191: 88.307047 | F191: 78.307047 | G191: 88.790106 | H191: 273.303372 | I191: 58.512482 | J191: 188.512482 | K191: 158.512482 | L191: 110.671064 | M191: 302.219657 | N191: 398.447369 | O191: 130.671064
A192: 669.705473 | B192: 5.761986 | C192: 26.739988 | D192: 36.739988 | E192: 93.847198 | F192: 83.847198 | G192: 90.291739 | H192: 273.388907 | I192: 59.699941 | J192: 189.699941 | K192: 159.699941 | L192: 110.926488 | M192: 302.113225 | N192: 400.085935 | O192: 130.926488
A193: 671.133417 | B193: 5.897291 | C193: 27.65025 | D193: 37.65025 | E193: 99.672565 | F193: 89.672565 | G193: 92.464423 | H193: 273.477357 | I193: 61.499828 | J193: 191.499828 | K193: 161.499828 | L193: 112.156207 | M193: 302.022644 | N193: 402.632473 | O193: 132.156207
A194: 672.56136 | B194: 6.079428 | C194: 28.218657 | D194: 38.218657 | E194: 101.058745 | F194: 91.058745 | G194: 93.264353 | H194: 273.568896 | I194: 62.359092 | J194: 192.359092 | K194: 162.359092 | L194: 112.992309 | M194: 302.179781 | N194: 403.744143 | O194: 132.992309
A195: 673.989303 | B195: 6.261375 | C195: 28.480311 | D195: 38.480311 | E195: 100.759616 | F195: 90.759616 | G195: 93.105677 | H195: 273.662612 | I195: 62.391497 | J195: 192.391497 | K195: 162.391497 | L195: 113.113684 | M195: 302.343319 | N195: 403.802824 | O195: 133.113684
A196: 675.417247 | B196: 6.413927 | C196: =D196-10 -> 28.738659 | D196: 38.738659 | E196: =F196+10 -> 100.697028 | F196: 90.697028 | G196: 93.081044 | H196: 273.753146 | I196: 62.526171 | J196: =K196+30 -> 192.526171 | K196: 162.526171 | L196: 113.275781 | M196: 302.442961 | N196: 403.886234 | O196: =L196+20 -> 133.275781
A197: 676.84519 | B197: 6.602882 | C197: 29.101085 | D197: 39.101085 | E197: 100.465444 | F197: 90.465444 | G197: 93.237809 | H197: 273.837427 | I197: 62.851974 | J197: 192.851974 | K197: 162.851974 | L197: 113.560967 | M197: 302.681354 | N197: 404.084909 | O197: 133.560967
A198: 678.273134 | B198: 6.788987 | C198: 29.34215 | D198: 39.34215 | E198: 100.450639 | F198: 90.450639 | G198: 93.190123 | H198: 273.914506 | I198: 63.026734 | J198: 193.026734 | K198: 163.026734 | L198: 113.736155 | M198: 302.893556 | N198: 404.233426 | O198: 133.736155
A199: 679.701077 | B199: 6.953054 | C199: 29.620717 | D199: 39.620717 | E199: 100.556289 | F199: 90.556289 | G199: 93.142956 | H199: 273.979799 | I199: 63.294541 | J199: 193.294541 | K199: 163.294541 | L199: 114.037071 | M199: 303.067351 | N199: 404.504403 | O199: 134.037071
A200: 681.129021 | B200: 7.108404 | C200: 29.872108 | D200: 39.872108 | E200: 100.39707 | F200: 90.39707 | G200: 93.000817 | H200: 274.032517 | I200: 63.427222 | J200: 193.427222 | K200: 163.427222 | L200: 114.180763 | M200: 303.309033 | N200: 404.618462 | O200: 134.180763
... 2324 more rows
